{"text_format":"3","workbook":"xlsx","n_sheets":25,"sheets":["Перечень документов_схема","Пакет док-тов ЮЛ","Пакет док-тов ИП","Док-ты по залогу","Док-та по залогодателю","Заявка","Лист2","приложение к заявке (БР)","заключение","Согласие НБ и МВД ЮЛ","Согласие НБ МВД директор","Анкета поручителя","Согласие НБ и МВД ФЛ","Анкета поруч-залог ЮЛ","залоговая опись авто","залоговая опись недвиж","акт оценки авто","с копейками","без копеек","ДП овер+вкл","обороты счета в бел","обороты счета в долл","обороты счета в евро","обороты счета в росс","закл о мониторинге"],"not_rendered":{"images":4,"macros":1,"external_links":12,"defined_names":125,"comments":3},"read":"whole","date_system":"1900"}

{"sheet":"Перечень документов_схема","index":0,"n_rows":0,"n_cols":0,"rows_kept":0,"hidden":true}

{"sheet":"Пакет док-тов ЮЛ","index":1,"n_rows":30,"n_cols":4,"rows_kept":30,"merged":[[1,2,1,3],[2,1,2,3],[3,1,3,3],[18,1,18,3],[19,0,19,3],[20,1,20,3],[25,1,25,3],[27,1,27,3],[28,1,28,3],[29,1,29,3]]}
[]
[]
[null,"СПИСОК"]
[null,"  документов на получение кредита юридическому лицу"]
[null,"Наименование документа","Описание формы предоставления","Отметка о необходимости документа"]
[1,"Заявка на получение кредита","установленная форма Банка"]
[2,"Приложение к заявке","установленная форма Банка"]
[3,"Согласие кредитополучателя на предоставление кредитного отчета, согласие руководителя на предоставление сведений об организации из информационных ресурсов, находящихся в ведении Министерства внутренних дел Республики Беларусь и Национального банка Республ","установленная форма Банка"]
[4,"Согласие руководителя на предоставление  сведений о нем из информационных ресурсов, находящихся в ведении Министерства внутренних дел Республики Беларусь и Национального банка Республики Беларусь","установленная форма Банка"]
[5,"Бухгалтерский баланс и Отчет о прибылях и убытках за последний финансовый год (для Заявителей, обязанных в соответствии с законодательством составлять бухгалтерскую отчетность) / налоговая декларация за последний финансовый год (для Заявителей,  в соответствии с законодательством освобожденных от  составления бухгалтерской отчетности):\n- налоговая декларация по упрощенной системе налогообложения (для Заявителей, применяющих упрощенную систему налогообложения без уплаты налога на добавленную стоимость)\n- налоговая декларация по упрощенной системе налогообложения и налогу на добавленную стоимость (для Заявителей, применяющих упрощенную систему налогообложения с уплатой налога на добавленную стоимость)","копия*"]
[6,"Копии учредительных документов: устав (учредительный договор), свидетельство о государственной регистрации юридического лица","копия*"]
[7,"- Решение уполномоченного органа о назначении руководителя \n- контракт с руководителем \n- приказ о вступлении в должность руководителя \n\nВ случае если от имени заявителя документы и/или договоры будет подписывать не директор, то предоставляется:                                                                \n1) уполномоченным лицом - доверенность (надлежащим образом заверенная копия) уполномоченного на подписание лица и копия паспорта (вида на жительство) уполномоченного лица (страницы с фотографией, фамилией на русском языке, отметкой о регистрации по месту жительства);                                                                                                                                                                                                                                                                       2) исполняющим обязанности директора:                                                                                                                                                                                                                   - приказ о назначении лица исполняющего обязанности директора - если в уставе клиента предусмотрено, что на случай отсутствия исполнительного органа (директора) его полномочия переходят к лицу, назначенному директором в качестве исполняющего обязанности;                                                                                                                                                                                                                                                                         - решение общего собрания участников или собственника клиента о назначении исполняющим обязанности директора - если в уставе клиента не предусмотрено, что на случай отсутствия исполнительного органа (директора) его полномочия переходят к лицу, назначенному директором в качестве исполняющего обязанности. ","копия*"]
[null,"Если руководителем является управляющий – индивидуальный предприниматель: копия договора на оказание услуг управления, заключенного между Кредитополучателем и управляющим – индивидуальным предпринимателем; копия документа о государственной регистрации (перерегистрации) индивидуального предпринимателя, выступающего в качестве управляющего. "]
[null,"В случае, когда управление Кредитополучателем передано управляющей компании, в отношении уполномоченного сотрудника управляющей компании: копия договора (контракта) на оказание услуг управления, заключенного между Кредитополучателем и управляющей компанией; копия устава и (или) учредительного договора (при необходимости); копия трудового договора (контракта) с руководителем управляющей компании (либо выписка из трудового договора (контракта), содержащая сведения о сроке действия трудового договора (контракта) и полномочиях руководителя); доверенность (либо копия доверенности) уполномоченного лица на исполнение обязанностей по управлению (в случае, если функции управляющей компании исполняются не руководителем, а иным работником)."]
["8","Паспорт руководителя и (или) иного лица, уполномоченного на подписание кредитного договора (страницы с фотографией, фамилией на русском языке, отметкой о регистрации по месту жительства) ","копия*"]
["9","Действующий экспортный контракт (при наличии)","копия*"]
["10","Контракт (иной документ), по которому планируется проведение оплаты за счет кредитных средств","копия*"]
[]
[null,"Кредитополучатель, находящийся на РКО в ЗАО \"Банк \"Решение\", может не предоставлять документы, указанные в п.6-8."]
[]
[null,"Документы по поручителю-физическому лицу:"]
[11,"Анкета поручителя","установленная форма Банка"]
["12","Паспорт (вид на жительство) (страницы с фотографией, фамилией на русском языке, отметкой о регистрации по месту жительства)","копия*"]
["13","Согласие поручителя на предоставление кредитного отчета, а также сведений о нем из информационных ресурсов, находящихся в ведении Министерства внутренних дел Республики Беларусь","установленная форма Банка"]
[]
[null,"Документы по обеспечению обязательств"]
[]
[null,"Документы по залогодателю-третьему лицу"]
[null,"Представляемые Кредитополучателем, поручителем копии документов должны быть оформлены следующим образом:\n– и/или заверены подписью Кредитополучателя / поручителя (в случае наличия – единоличным исполнительным органом Кредитополучателя). Учиняется надпись «копия верна», указывается должность, фамилия, имя, отчество (при наличии), дата, проставляется собственноручная подпись Кредитополучателя / единоличного исполнительного органа Кредитополучателя и скрепляется печатью (печатью по желанию Кредитополучателя копии документов могут не скрепляться);\n– и/или заверены Клиентским менеджером, который принимает пакет документов. При этом Клиентский менеджер проставляет на изготовленной копии документа надпись «копия верна», указывает свою фамилию, имя, отчество (при наличии), должность, дату.\n** оригиналы предоставляемых документов должны быть:\n- для юридического лица - подписаны руководителем юридического лица (уполномоченным сотрудником предприятия) и заверены печатью юридического лица;\n- для физического лица - подписаны подписью физического лица.\n"]
[null,"Дополнительно могут быть запрошены любые другие документы, которые, по мнению банка, могут влиять на принятие решения о предоставлении кредита."]

{"sheet":"Пакет док-тов ИП","index":2,"n_rows":23,"n_cols":4,"rows_kept":23,"merged":[[0,1,0,3],[1,1,1,3],[11,1,11,3],[13,1,13,3],[18,1,18,3],[20,1,20,3],[21,1,21,3],[22,1,22,3]]}
[null,"СПИСОК"]
[null,"  документов на получение кредита ИП"]
[null,"Наименование документа","Описание формы предоставления","Отметка о необходимости документа"]
[1,"Заявка на получение кредита","установленная форма Банка"]
[2,"Приложение к заявке","установленная форма Банка"]
[3,"Согласие кредитополучателя на предоставление кредитного отчета и сведений  из информационных ресурсов, находящихся в ведении Министерства внутренних дел Республики Беларусь и Национального банка Республики Беларусь","установленная форма Банка"]
[4,"Cвидетельство о государственной регистрации","копия*"]
[5,"Паспорт (вид на жительство) (страницы с фотографией, фамилией на русском языке, отметкой о регистрации по месту жительства)","копия*"]
[6," Налоговая декларация за последний финансовый год:\n- налоговая декларация по упрощенной системе налогообложения (для ИП , применяющих упрощенную систему налогообложения без уплаты налога на добавленную стоимость)\n- налоговая декларация по упрощенной системе налогообложения и налогу на добавленную стоимость (для ИП, применяющих упрощенную систему налогообложения с уплатой налога на добавленную стоимость)\n- налоговые декларации по уплате подоходного налога и налога на добавленную стоимость (для ИП, применяющих систему налогообложения с уплатой подоходного налога)\n- налоговые декларации по уплате единого налога (для ИП, применяющих систему налогообложения с уплатой единого налога)","копия*"]
["7","Действующий экспортный контракт (при наличии)","копия*"]
["8","Контракт (иной документ), по которому планируется проведение оплаты за счет кредитных средств","копия*"]
[null,"Кредитополучатель, находящийся на РКО в ЗАО \"Банк \"Решение\", может не предоставлять документы, указанные в п.4-5"]
[]
[null,"Документы по поручителю-физическому лицу:"]
[9,"Анкета поручителя","установленная форма Банка"]
["10","Паспорт (вид на жительство) (страницы с фотографией, фамилией на русском языке, отметкой о регистрации по месту жительства)","копия*"]
["11","Согласие поручителя на предоставление кредитного отчета, а также сведений о нем из информационных ресурсов, находящихся в ведении Министерства внутренних дел Республики Беларусь","установленная форма Банка"]
[]
[null,"Документы по обеспечению обязательств"]
[]
[null,"Документы по залогодателю-третьему лицу"]
[null,"*Представляемые Кредитополучателем копии документов должны быть оформлены следующим образом:\n– и/или заверены подписью Кредитополучателя (в случае наличия – единоличным исполнительным органом Кредитополучателя). Учиняется надпись «копия верна», указывается должность, фамилия, имя, отчество (при наличии), дата, проставляется собственноручная подпись Кредитополучателя / единоличного исполнительного органа Кредитополучателя и скрепляется печатью (печатью по желанию Кредитополучателя копии документов могут не скрепляться);\n– и/или заверены Клиентским менеджером, который принимает пакет документов. При этом Клиентский менеджер проставляет на изготовленной копии документа надпись «копия верна», указывает свою фамилию, имя, отчество (при наличии), должность, дату.\n** оригиналы предоставляемых документов должны быть подписаны индивидуальным предпринимателем и заверены печатью индивидуального предпринимателя (при наличии);"]
[null,"Дополнительно могут быть запрошены любые другие документы, которые, по мнению Банка, могут влиять на принятие решения о предоставлении кредита."]

{"sheet":"Док-ты по залогу","index":3,"n_rows":70,"n_cols":16,"rows_kept":70,"merged":[[0,0,0,15],[1,0,3,15],[4,0,4,13],[5,0,5,15],[6,1,6,13],[7,1,7,13],[8,1,8,13],[9,1,9,13],[10,1,10,13],[11,1,11,13],[12,1,12,13],[13,1,13,13],[14,1,14,13],[15,1,15,13],[16,1,16,13],[17,1,17,13],[18,1,18,13],[19,0,19,15],[20,1,20,13],[21,1,21,13],[22,1,22,13],[23,1,23,13],[24,1,24,13],[25,0,25,15],[26,1,26,13],[27,1,27,13],[28,1,28,13],[29,1,29,13],[30,0,30,15],[31,1,31,13],[32,1,32,13],[33,1,33,13],[34,1,34,13],[35,1,35,13],[36,0,36,15],[37,1,37,13],[38,1,38,13],[39,1,39,13],[40,1,40,13],[41,1,41,13],[42,1,42,13],[43,1,43,13],[44,1,44,13],[45,1,45,13],[46,0,46,15],[47,1,47,13],[48,1,48,13],[49,1,49,13],[50,1,50,13],[51,1,51,13],[52,1,52,13],[53,1,53,13],[54,1,54,13],[55,1,55,13],[56,1,56,13],[57,0,57,15],[58,1,58,13],[59,1,59,13],[60,1,60,13],[61,1,61,13],[62,1,62,13],[63,1,63,13],[64,1,64,13],[65,1,65,13],[66,1,66,13],[67,1,67,13],[68,1,68,15],[69,1,69,15]]}
["Приложение 1.8  к Положению о порядке предоставления субъектам хозяйствования Кредитных продуктов категории \"Экспресс\" в ЗАО \"Банк \"Решение\""]
["Список документов на имущество, предоставляемое в залог."]
[]
[]
["Наименование документа",{"$nulls":13},"Описание формы предоставления","Отметка о необходимости документа"]
["Список документов на предоставляемые в залог объекты недвижимого имущества:"]
[1,"Акт о внутренней оценке или Заключение и отчет о независимой оценке",{"$nulls":12},"оригинал"]
[2,"Залоговая опись",{"$nulls":12},"оригинал"]
[3,"Свидетельство (удостоверение)  о регистрации права собственности (права хозяйственного ведения)  на объект недвижимости (предоставляется при наличии)",{"$nulls":12},"копия"]
[4,"В случае отсутствия свидетельства (удостоверения):\nВыписка  из регистрационной книги о правах, ограничениях, обременениях прав на капитальное строение (изолированное помещение или машино-место). ",{"$nulls":12},"оригинал"]
[5,"Технический паспорт на объект недвижимости с Приложениями к нему (план объекта).",{"$nulls":12},"копия"]
[6,"В случае наличия у залогодателя прав на земельный участок:\nСвидетельство (удостоверение) о регистрации прав на земельный участок, и/либо государственный акт на земельный участок  (предоставляется при наличии)",{"$nulls":12},"копия"]
[7,"В случае если правоустанавливающих документов на земельный участок нет в наличии:\nВыписка из регистрационной книги о правах, ограничениях (обременениях) прав на земельный участок.",{"$nulls":12},"оригинал"]
[8,"В случае аренды земельного участка:\n- Договор аренды земельного участка\n- Справка из землеустроительной службы местного исполнительного органа ",{"$nulls":12},"- копия\n- оригинал"]
[9,"В случае залога жилой недвижимости:\nВыписка из лицевого счёта собственника или справка ЖЭУ (товарищества собственников) или исполкома о проживающих и имеющих право пользования жилым помещением лицах",{"$nulls":12},"оригинал"]
[10,"В случае если предмет залога является историко-культурной ценностью:\nОхранное обязательство на историко-культурную ценность.",{"$nulls":12},"копия"]
[11,"В случае, если предмет залога передан в аренду, финансовую аренду (лизинг):\nДоговор(-ы) аренды, финансовой аренды (лизинга) и/или реестр договоров (с указанием номера и даты договора, арендатора (лизингополучателя), срока действия, арендной ставки)",{"$nulls":12},"копия / оригинал"]
[12,"Для физических лиц (индивидуальных предпринимателей): \nПодписанное в присутствии работника ответственного подразделения Банка согласие супруги (супруга) залогодателя на передачу недвижимого имущества в залог (кроме случаев, когда договор ипотеки заключается в нотариальной форме).",{"$nulls":12},"оригинал"]
[13,"Для частных унитарных предприятий:\n- Согласие учредителя на передачу недвижимого имущества в залог;\n- Если учредителем унитарного предприятия является физическое лицо - подписанное в присутствии работника ответственного подразделения Банка согласие супруги (супруга) учредителя на передачу недвижимого имущества в залог (кроме случаев, когда договор ипотеки заключается в нотариальной форме).",{"$nulls":12},"оригинал"]
["Список документов на предоставляемые в залог права:"]
[1,"Акт о внутренней оценке или Заключение и отчет о независимой оценке",{"$nulls":12},"оригинал"]
[2,"Залоговая опись",{"$nulls":12},"оригинал"]
[3,"Проект договора купли-продажи, подписанный сторонами или договор купли-продажи со всеми приложениями и доп.соглашениями.",{"$nulls":12},"копия"]
[4,"Для имущественных прав на приобретение оборудования:\nИнформация о технических характеристиках, если таковая отсутствует в договоре купли-продажи (при наличии).",{"$nulls":12},"копия"]
[5,"Для имущественных прав на приобретение созданной недвижимости:\nТехнический паспорт на объект недвижимости с приложениями (в случае наличия).",{"$nulls":12},"копия"]
["Список документов на предоставляемые в залог права (лизинговые платежи):"]
[1,"Акт о внутренней оценке или Заключение и отчет о независимой оценке",{"$nulls":12},"оригинал"]
[2,"Залоговая опись",{"$nulls":12},"оригинал"]
[3,"Если передаются в залог имущественные права по 10 договорам, или менее: \n- договоры финансовой аренды (лизинга) со всеми приложениями и доп.соглашениями; \n- выписка из бух.учета (счет 62) с разбивкой по контрагентам (при возможности предоставления).",{"$nulls":12},"- копия\n- оригинал"]
[3,"Если передаются в залог имущественные права по более чем 10-ти договорам:\n - типовая форма договора (в случае наличия);\n- не менее 10-ти договоров, по которым передаются в залог имущественные права, со всеми приложениями и доп.соглашениями; \n- выписка из бухгалтерского учета (счет 62) с разбивкой по контрагентам (при возможности предоставления)",{"$nulls":12},"- копия\n- копия\n- оригинал"]
["Список документов на предоставляемые в залог права (дебиторская задолженность):"]
[1,"Акт о внутренней оценке или Заключение и отчет о независимой оценке",{"$nulls":12},"оригинал"]
[2,"Залоговая опись",{"$nulls":12},"оригинал"]
[3,"Договоры поставки со всеми приложениями и доп.соглашениями",{"$nulls":12},"копия"]
[4,"Акты сверки, подписанные залогодателем и его контрагентам",{"$nulls":12},"копия"]
[5,"Оборотно-сальдовая ведомость по 62 счету за последние 6 месяцев (в развернутом виде по контрагентам помесячно – при возможности предоставления).",{"$nulls":12},"оригинал"]
["Список документов на предоставляемые в залог транспортные средства:"]
[1,"Залоговая опись",{"$nulls":12},"оригинал"]
[2,"Акт о внутренней оценке или Заключение и отчет о независимой оценке",{"$nulls":12},"оригинал"]
[3,"Свидетельство о регистрации (технический паспорт) или договор купли-продажи – для транспортных средств, подлежащих регистрации в органах ГАИ",{"$nulls":12},"копия"]
[4,"Страховой полис на условиях «полное автокаско» (предоставляется при наличии)",{"$nulls":12},"копия"]
[5,"Если место хранения транспортного средства отличается от адреса, указанного в свидетельстве о регистрации ТС:\nДоговоры аренды площадей (стоянки, машино-места, гаража) и другие документы, являющиеся основанием хранения транспортного(ых) средств во внеэксплуатационный период  (в случае наличия).",{"$nulls":12},"копия"]
[6,"Если транспортное средство передано в аренду, финансовую аренду (лизинг):\nДоговор аренды, финансовой аренды (лизинга).",{"$nulls":12},"копия"]
[7,"Если имущество приобретено в течение трех месяцев до подачи заявки на кредит:\nДоговор купли-продажи со всеми приложениями (в т.ч. ТТН или акт приема-передачи) и доп.соглашениями.\n",{"$nulls":12},"копия"]
[8,"Для физических лиц (индивидуальных предпринимателей):\nСогласие супруги (супруга) залогодателя на передачу имущества в залог. ",{"$nulls":12},"оригинал"]
[9,"Для частных унитарных предприятий:\n- Согласие учредителя на передачу имущества в залог, если согласно Уставу частного унитарного предприятия такое согласие требуется;\n- Если учредителем унитарного предприятия является физическое лицо - согласие супруги (супруга) учредителя на передачу имущества в залог.",{"$nulls":12},"копия"]
["Список документов на предоставляемое в залог оборудование (кроме оборудования, переданного в лизинг третьим лицам):"]
[1,"Акт о внутренней оценке или Заключение и отчет о независимой оценке",{"$nulls":12},"оригинал"]
[2,"Залоговая опись",{"$nulls":12},"оригинал"]
[3,"Ведомость по счету 01 «Основные средства» и по счету 02 «Амортизация основных средств»  либо справка/отчет об основных средствах с указанием балансовой стоимости основных средств на 1 января текущего года и остаточной стоимости на 1 число текущего месяца (при ведении бухгалтерского учета);",{"$nulls":12},"оригинал"]
[4,"Договор купли-продажи, либо иной документ, подтверждающий приобретение права собственности",{"$nulls":12},"копия"]
[5,"Документы, подтверждающие оплату и получение предмета залога (ТТН, платежные документы) - в случае, если согласно ДКП право собственности переходит залогодателю после полной оплаты",{"$nulls":12},"копия"]
[6,"Договор аренды площадей (складов, территорий), если имущество эксплуатируется (хранится) не на собственных площадях залогодателя",{"$nulls":12},"копия"]
[7,"Договор страхования от утраты, повреждения (в случае наличия)",{"$nulls":12},"копия"]
[8,"Техническая документация на имущество (в случае наличия).",{"$nulls":12},"копия"]
[9,"Для физических лиц (индивидуальных предпринимателей):\nСогласие супруги (супруга) залогодателя на передачу имущества в залог. ",{"$nulls":12},"оригинал"]
[10,"Для частных унитарных предприятий:\n- Согласие учредителя на передачу имущества в залог, если согласно Уставу частного унитарного предприятия такое согласие требуется;\n- Если учредителем унитарного предприятия является физическое лицо - согласие супруги (супруга) учредителя на передачу имущества в залог.",{"$nulls":12},"копия"]
["Список документов на предоставляемое в залог оборудование, переданное в лизинг третьим лицам:"]
[1,"Акт о внутренней оценке или Заключение и отчет о независимой оценке",{"$nulls":12},"оригинал"]
[2,"Залоговая опись",{"$nulls":12},"оригинал"]
[3,"Если имущество числится на балансе либо на забалансовом счете:\nведомость по соответствующему счету",{"$nulls":12},"оригинал"]
[4,"Договор купли-продажи, либо иной документ, подтверждающий приобретение права собственности",{"$nulls":12},"копия"]
[5,"Документы, подтверждающие оплату и получение предмета залога (ТТН, платежные документы) - в случае, если согласно ДКП право собственности переходит залогодателю после полной оплаты",{"$nulls":12},"копия"]
[6,"Договор финансовой аренды (лизинга)",{"$nulls":12},"копия"]
[7,"Договор страхования от утраты, повреждения (в случае наличия)",{"$nulls":12},"копия"]
[8,"Техническая документация на имущество (в случае наличия).",{"$nulls":12},"копия"]
[9,"Для индивидуальных предпринимателей:\nСогласие супруги (супруга) залогодателя на передачу имущества в залог. ",{"$nulls":12},"оригинал"]
[10,"Для частных унитарных предприятий:\n- Согласие учредителя на передачу имущества в залог, если согласно Уставу частного унитарного предприятия такое согласие требуется;\n- Если учредителем унитарного предприятия является физическое лицо - согласие супруги (супруга) учредителя на передачу имущества в залог.",{"$nulls":12},"копия"]
[null,"Представляемые Участником сделки документы быть оформлены следующим образом:\n– и/или заверены подписью представителя Участника сделки. Учиняется надпись «копия верна», указывается должность, фамилия, имя, отчество (при наличии), дата, проставляется собственноручная подпись представителя Участника сделки и скрепляется печатью, при ее наличии у Участника сделки (печатью по желанию Участника сделки копии документов могут не скрепляться);\n– и/или заверены КМ/АМ, который принимает пакет документов. При этом КМ/АМ проставляет на изготовленной копии документа надпись «сверено с оригиналом» или «с оригиналом сверено», указывает свою фамилию, имя, отчество (при наличии), должность, дату\nоригиналы предоставляемых документов должны быть:\n- для юридического лица - подписаны руководителем юридического лица (уполномоченным сотрудником предприятия) и заверены печатью юридического лица;\n- для индивидуального предпринимателя - подписаны индивидуальным предпринимателем и заверены печатью индивидуального предпринимателя (при наличии);\n- для физического лица - подписаны подписью физического лица.\n"]
[null,"Дополнительно могут быть запрошены любые другие документы, которые, по мнению банка, могут влиять на принятие решения о предоставлении кредита."]

{"sheet":"Док-та по залогодателю","index":4,"n_rows":24,"n_cols":4,"rows_kept":24,"merged":[[1,1,1,3],[2,1,2,3],[4,1,4,3],[8,1,8,3],[13,1,13,3],[22,1,22,3],[23,1,23,3]]}
[]
[null,"СПИСОК"]
[null,"                    документов, необходимых для оформления залога третьего лица"]
[null,"Наименование документа","Описание формы предоставления","Отметка о необходимости документа"]
[null,"При оформлении залога физического лица:"]
[1,"Анкета залогодателя.","установленная форма Банка"]
[2,"Согласие залогодателя на предоставление кредитного отчета и сведений  из информационных ресурсов, находящихся в ведении Министерства внутренних дел Республики Беларусь и Национального банка Республики Беларусь","установленная форма Банка"]
[3,"Документ, удостоверяющий личность (паспорт, вид на жительство, удостоверение беженца)  (страницы с фотографией, фамилией на русском языке, отметкой о регистрации по месту жительства, отметка о браке)","копия"]
[null,"При оформлении залога индивидуального предпринимателя:"]
[1,"Анкета залогодателя ","установленная форма Банка"]
["2","Согласие залогодателя на предоставление кредитного отчета и сведений  из информационных ресурсов, находящихся в ведении Министерства внутренних дел Республики Беларусь и Национального банка Республики Беларусь","установленная форма Банка"]
["3","Свидетельство о государственной регистрации","копия"]
["4","Документ, удостоверяющий личность (паспорт, вид на жительство, удостоверение беженца)  (страницы с фотографией, фамилией на русском языке, отметкой о регистрации по месту жительства, отметка о браке)","копия"]
[null,"При оформлении залога юридического лица:"]
["1","Анкета залогодателя","установленная форма Банка"]
["2","Согласие залогодателя на предоставление кредитного отчета, согласие руководителя на предоставление сведений об организации из информационных ресурсов, находящихся в ведении Министерства внутренних дел Республики Беларусь и Национального банка Республ","установленная форма Банка"]
["3","Свидетельство о государственной регистрации организации","копия"]
["4","Устав организации","копия"]
["5","- Решение уполномоченного органа о назначении руководителя \n- контракт с руководителем \n- приказ о вступлении в должность руководителя \n\nВ случае если от имени заявителя документы и/или договоры будет подписывать не директор, то предоставляется:                                                                \n1) уполномоченным лицом - доверенность (надлежащим образом заверенная копия) уполномоченного на подписание лица и копия паспорта (вида на жительство) уполномоченного лица (страницы с фотографией, фамилией на русском языке, отметкой о регистрации по месту жительства);                                                                                                                                                                                                                                                                       2) исполняющим обязанности директора:                                                                                                                                                                                                                   - приказ о назначении лица исполняющего обязанности директора - если в уставе клиента предусмотрено, что на случай отсутствия исполнительного органа (директора) его полномочия переходят к лицу, назначенному директором в качестве исполняющего обязанности;                                                                                                                                                                                                                                                                         - решение общего собрания участников или собственника клиента о назначении исполняющим обязанности директора - если в уставе клиента не предусмотрено, что на случай отсутствия исполнительного органа (директора) его полномочия переходят к лицу, назначенному директором в качестве исполняющего обязанности. ","копия"]
[null,"Если руководителем является управляющий – индивидуальный предприниматель: копия договора на оказание услуг управления, заключенного между Кредитополучателем и управляющим – индивидуальным предпринимателем; копия документа о государственной регистрации (перерегистрации) индивидуального предпринимателя, выступающего в качестве управляющего. ","копия"]
[null,"В случае, когда управление Кредитополучателем передано управляющей компании, в отношении уполномоченного сотрудника управляющей компании: копия договора (контракта) на оказание услуг управления, заключенного между Кредитополучателем и управляющей компанией; копия устава и (или) учредительного договора (при необходимости); копия трудового договора (контракта) с руководителем управляющей компании (либо выписка из трудового договора (контракта), содержащая сведения о сроке действия трудового договора (контракта) и полномочиях руководителя); доверенность (либо копия доверенности) уполномоченного лица на исполнение обязанностей по управлению (в случае, если функции управляющей компании исполняются не руководителем, а иным работником).","копия"]
["6","Документ, удостоверяющий личность руководителя (паспорт, вид на жительство, удостоверение беженца) руководителя и (или) иного лица, уполномоченного на подписание договора обеспечения (страницы с фотографией, фамилией на русском языке, отметкой о регистрации по месту жительства, отметка о браке)","копия"]
[null,"Представляемые Участником сделки копии документов должны быть оформлены следующим образом:\n– и/или заверены подписью представителя Участника сделки. Учиняется надпись «копия верна», указывается должность, фамилия, имя, отчество (при наличии), дата, проставляется собственноручная подпись представителя Участника сделки и скрепляется печатью, при ее наличии у Участника сделки (печатью по желанию Участника сделки копии документов могут не скрепляться);\n– и/или заверены КМ/АМ, который принимает пакет документов. При этом КМ/АМ проставляет на изготовленной копии документа надпись «сверено с оригиналом» или «с оригиналом сверено», указывает свою фамилию, имя, отчество (при наличии), должность, дату\nоригиналы предоставляемых документов должны быть:\n- для юридического лица - подписаны руководителем юридического лица (уполномоченным сотрудником предприятия) и заверены печатью юридического лица;\n- для индивидуального предпринимателя - подписаны индивидуальным предпринимателем и заверены печатью индивидуального предпринимателя (при наличии);\n- для физического лица - подписаны подписью физического лица.\n"]
[null,"Дополнительно могут быть запрошены любые другие документы, которые, по мнению банка, могут влиять на принятие решения о предоставлении кредита."]

{"sheet":"Заявка","index":5,"n_rows":129,"n_cols":29,"rows_kept":129,"merged":[[0,8,0,10],[0,11,0,27],[1,21,1,27],[2,0,2,27],[3,1,3,8],[3,9,3,27],[4,0,13,0],[4,1,4,27],[5,1,5,14],[5,15,5,27],[6,1,6,14],[6,15,6,27],[7,1,7,14],[7,15,7,27],[8,1,8,14],[8,15,8,27],[9,1,9,14],[9,15,9,27],[10,1,10,14],[10,15,10,27],[11,1,11,14],[11,15,11,22],[11,23,11,27],[12,1,12,14],[12,15,12,22],[12,23,12,27],[13,1,13,14],[13,15,13,27],[14,1,14,14],[14,15,14,27],[15,1,15,25],[15,26,15,27],[16,1,16,10],[16,11,16,27],[16,28,16,38],[17,0,18,0],[17,1,17,3],[17,4,17,7],[17,8,17,10],[17,11,17,14],[17,15,17,19],[17,20,17,27],[18,1,18,27],[19,1,19,24],[19,25,19,27],[20,0,27,0],[20,1,20,27],[21,1,21,12],[21,13,21,14],[21,15,21,27],[22,1,22,12],[22,13,22,14],[22,15,22,27],[23,1,23,12],[23,13,23,14],[23,15,23,27],[24,1,24,12],[24,13,24,14],[24,15,24,27],[25,1,25,12],[25,13,25,14],[25,15,25,27],[26,1,26,12],[26,13,26,14],[26,15,26,27],[27,1,27,12],[27,13,27,14],[27,15,27,27],[28,1,28,24],[28,25,28,27],[29,1,29,24],[29,25,29,27],[30,1,30,27],[31,0,44,0],[31,1,31,27],[32,1,32,3],[32,4,32,5],[32,6,32,10],[32,11,32,15],[32,16,32,20],[32,21,32,25],[33,1,33,3],[33,4,33,5],[33,6,33,10],[33,11,33,15],[33,16,33,20],[33,21,33,25],[33,26,33,27],[34,1,34,3],[34,4,34,5],[34,6,34,10],[34,11,34,15],[34,16,34,20],[34,21,34,25],[34,26,34,27],[35,1,35,3],[35,4,35,5],[35,6,35,10],[35,11,35,15],[35,16,35,20],[35,21,35,25],[35,26,35,27],[36,1,36,3],[36,4,36,5],[36,6,36,10],[36,11,36,15],[36,16,36,20],[36,21,36,25],[36,26,36,27],[37,1,37,3],[37,4,37,5],[37,6,37,10],[37,11,37,15],[37,16,37,20],[37,21,37,25],[37,26,37,27],[38,1,38,3],[38,4,38,5],[38,6,38,10],[38,11,38,15],[38,16,38,20],[38,21,38,25],[38,26,38,27],[39,1,39,3],[39,4,39,5],[39,6,39,10],[39,11,39,15],[39,16,39,20],[39,21,39,25],[39,26,39,27],[40,1,40,3],[40,4,40,5],[40,6,40,10],[40,11,40,15],[40,16,40,20],[40,21,40,25],[40,26,40,27],[41,1,41,3],[41,4,41,5],[41,6,41,10],[41,11,41,15],[41,16,41,20],[41,21,41,25],[41,26,41,27],[42,1,42,3],[42,4,42,5],[42,6,42,10],[42,11,42,15],[42,16,42,20],[42,21,42,25],[42,26,42,27],[43,1,43,3],[43,4,43,5],[43,6,43,10],[43,11,43,15],[43,16,43,20],[43,21,43,25],[43,26,43,27],[44,1,44,3],[44,4,44,5],[44,6,44,10],[44,11,44,15],[44,16,44,20],[44,21,44,25],[44,26,44,27],[45,1,45,27],[46,1,46,5],[46,6,46,15],[46,16,46,22],[47,1,47,5],[47,6,47,15],[47,16,47,22],[48,1,48,5],[48,6,48,15],[48,16,48,22],[49,1,49,5],[49,6,49,15],[49,16,49,22],[50,1,50,5],[50,6,50,15],[50,16,50,22],[51,1,51,5],[51,6,51,15],[51,16,51,22],[52,1,52,5],[52,6,52,15],[52,16,52,22],[53,1,53,5],[53,6,53,15],[53,16,53,22],[54,1,54,5],[54,6,54,15],[54,16,54,22],[55,0,58,0],[55,1,55,27],[56,1,56,19],[56,20,56,27],[57,1,57,19],[57,20,57,27],[58,1,58,19],[58,20,58,27],[59,0,62,0],[59,1,59,27],[60,1,60,19],[60,20,60,27],[61,1,61,19],[61,20,61,27],[62,1,62,19],[62,20,62,27],[63,0,66,0],[63,1,63,27],[64,1,64,5],[64,6,64,19],[64,20,64,27],[65,1,65,5],[65,6,65,19],[65,20,65,27],[66,1,66,5],[66,6,66,19],[66,20,66,27],[67,0,67,27],[68,1,68,5],[68,8,68,12],[68,15,68,19],[69,1,69,5],[69,8,69,12],[69,15,69,19],[70,1,70,5],[70,8,70,11],[71,0,71,27],[72,0,72,27],[73,0,73,27],[74,0,74,27],[75,0,75,27],[76,0,76,27],[77,0,77,27],[79,0,79,12],[79,14,79,17],[79,19,79,25],[80,14,80,17],[80,19,80,25],[81,15,81,16],[82,7,82,12],[82,14,82,17]]}
[{"$nulls":11},"Заявка юридического лица",{"$nulls":16},"<- Начните заполнение с этой строки"]
[{"$nulls":21},"на получение кредита"]
["Уважаемый Заявитель! Просим Вас проверить, что заполнены все реквизиты Заявки, выделенные серым фоном. В случае отсутствия информации просим указать в соответствующем реквизите «Нет». Примерное время заполнения - 15 минут."]
["1.",{"$f":"IF(L1=\"Заявка юридического лица\",\"Заявитель (полное наименование юридеского лица):\",\"Заявитель (фамилия, имя, отчество):\")","v":"Заявитель (полное наименование юридеского лица):"}]
["2.","Запрашиваемые условия кредитования:"]
[null,"Кредитный продукт (выбрать из списка):",{"$nulls":13},"Кредитование по программе Банка развития"]
[null,"Форма предоставления кредита (выбрать из списка):"]
[null,{"$f":"IF(P6=\"Быстрое решение\",\"Лимит овердрафта:\",\"Сумма кредита:\")","v":"Сумма кредита:"}]
[null,"Валюта кредита (выбрать из списка):"]
[null,"Цель кредита (выбрать из списка):"]
[null,"Цель кредита (подробно):"]
[null,"Срок кредитования (выбрать из списка):",{"$nulls":21},"месяцев"]
[null,{"$f":"IF(OR(P7=\"Овердрафт\",P7=\"Возобновляемая кредитная линия\"),\"Срок транша (выбрать из списка):\",\"Срок отсрочки (выбрать из списка):\")","v":"Срок отсрочки (выбрать из списка):"},{"$nulls":21},{"$f":"IF(B13=\"Срок транша (выбрать из списка):\",\"дней\",\"месяцев\")","v":"месяцев"}]
[null,"Способ предоставления кредита (выбрать из списка):"]
["3.1","Основной вид деятельности:"]
["3.2","Получал ли Заявитель выручку от осуществления указанного в п.3.1 вида деятельности непрерывно на протяжении 12 последних месяцев? (выбрать из списка)"]
["3.3",{"$f":"IF(L1=\"Заявка индивидуального предпринимателя\",\"Адрес проживания (если отличается от адреса регистрации):\",\"Адрес местонахождения (если отличается от указанного в Уставе):\")","v":"Адрес местонахождения (если отличается от указанного в Уставе):"}]
["3.4","Раб.телефон:",{"$nulls":6},"Моб.телефон:",{"$nulls":6},"Адрес эл.почты*:"]
[null,"*Необходимо указать актуальный адрес электронной почты, поскольку данный адрес будет использоваться Банком для отправки Заявителю уведомлений (включая оферты, требования и иные сообщения), касающихся использования запрашиваемого  кредита. "]
["4.1","Есть ли у Заявителя открытые текущие (расчетные) счета в ЗАО \"Банк \"Решение\"? (выбрать из списка)"]
["4.2","Информация об открытых текущих (расчетных) счетах в других банках:"]
[null,"Номер текущего счета",{"$nulls":11},"Валюта",null,"Наименование обслуживающего банка"]
[]
[]
[]
[]
[]
[]
["5.","Обязан ли Заявитель вести бухгалтерский учет в соответствии с законодательством Республики Беларусь? \n(выбрать из списка)"]
["6.1","Поступает ли выручка Заявителя на текущие (расчетные) счета, открытые в других банках?"]
[null,{"$f":"IF(OR(P6=\"Быстрое решение\",P6=\"Подзарядка\"),\"Если на этот вопрос Вы ответили НЕТ, п.6.2 заполнять не нужно.\",\" \")","v":" "}]
["6.2",{"$f":"IF(OR(P6=\"Быстрое решение\",P6=\"Подзарядка\"),\"Сумма выручки от реализации продукции, товаров, работ, услуг, поступившей за последние 12 месяцев на текущие (расчетные)  счета Заявителя напрямую от контрагентов (т.е. без перечислений в рамках одного юридического лица):\",\"Сумма выручки от реализации продукции, \nтоваров, работ, услуг за последние 12 месяцев, \nпредшествующих последней квартальной дате:\")","v":"Сумма выручки от реализации продукции, \nтоваров, работ, услуг за последние 12 месяцев, \nпредшествующих последней квартальной дате:"}]
[null,"Месяц",null,null,"Год",null,{"$f":"IF(OR(P6=\"Быстрое решение\",P6=\"Подзарядка\"),\"BYN (тыс.)\",\"экв. тыс. BYN\")","v":"экв. тыс. BYN"},{"$nulls":4},{"$f":"IF(OR(P6=\"Быстрое решение\",P6=\"Подзарядка\"),\"USD (тыс.)\",\"Показатель по состоянию на последнюю квартальную дату\")","v":"Показатель по состоянию на последнюю квартальную дату"},{"$nulls":4},{"$f":"IF(OR(P6=\"Быстрое решение\",P6=\"Подзарядка\"),\"EUR (тыс.)\",\"Размер показателя\")","v":"Размер показателя"},{"$nulls":4},{"$f":"IF(OR(P6=\"Быстрое решение\",P6=\"Подзарядка\"),\"RUB (тыс.)\",\"Валюта\")","v":"Валюта"}]
[{"$nulls":11},{"$f":"IF(OR(P6=\"Быстрое решение\",P6=\"Подзарядка\"),\" \",\"Размер дебиторской задолженности\")","v":"Размер дебиторской задолженности"},{"$nulls":9},{"$f":"IF(OR($P$6=\"Быстрое решение\",$P$6=\"Подзарядка\"),\" \",\"тыс. BYN\")","v":"тыс. BYN"}]
[null,{"$f":"IF(B34=\"январь\",\"февраль\",IF(B34=\"февраль\",\"март\",IF(B34=\"март\",\"апрель\",IF(B34=\"апрель\",\"май\",IF(B34=\"май\",\"июнь\",IF(B34=\"июнь\",\"июль\",IF(B34=\"июль\",\"август\",IF(B34=\"август\",\"сентябрь\",IF(B34=\"сентябрь\",\"октябрь\",IF(B34=\"октябрь\",\"ноябрь\",IF(B34=\"ноябрь\",\"декабрь\",IF(B34=\"декабрь\",\"январь\"))))))))))))","v":false},{"$nulls":9},{"$f":"IF(OR(P6=\"Быстрое решение\",P6=\"Подзарядка\"),\" \",\"Размер просроченной дебиторской задолженности\")","v":"Размер просроченной дебиторской задолженности"},{"$nulls":9},{"$f":"IF(OR($P$6=\"Быстрое решение\",$P$6=\"Подзарядка\"),\" \",\"тыс. BYN\")","v":"тыс. BYN"}]
[null,{"$f":"IF(B35=\"январь\",\"февраль\",IF(B35=\"февраль\",\"март\",IF(B35=\"март\",\"апрель\",IF(B35=\"апрель\",\"май\",IF(B35=\"май\",\"июнь\",IF(B35=\"июнь\",\"июль\",IF(B35=\"июль\",\"август\",IF(B35=\"август\",\"сентябрь\",IF(B35=\"сентябрь\",\"октябрь\",IF(B35=\"октябрь\",\"ноябрь\",IF(B35=\"ноябрь\",\"декабрь\",IF(B35=\"декабрь\",\"январь\"))))))))))))","v":false},{"$nulls":9},{"$f":"IF(OR(P6=\"Быстрое решение\",P6=\"Подзарядка\"),\" \",\"Размер кредиторской задолженности\")","v":"Размер кредиторской задолженности"},{"$nulls":9},{"$f":"IF(OR($P$6=\"Быстрое решение\",$P$6=\"Подзарядка\"),\" \",\"тыс. BYN\")","v":"тыс. BYN"}]
[null,false,{"$nulls":9},{"$f":"IF(OR($P$6=\"Быстрое решение\",$P$6=\"Подзарядка\"),\" \",\"Размер просроченной кредиторской задолженности\")","v":"Размер просроченной кредиторской задолженности"},{"$nulls":9},{"$f":"IF(OR($P$6=\"Быстрое решение\",$P$6=\"Подзарядка\"),\" \",\"тыс. BYN\")","v":"тыс. BYN"}]
[null,false,{"$nulls":9},{"$f":"IF(AND(P6=\"Кредитный экспресс\",P7=\"Возобновляемая кредитная линия\"),\"Краткосрочные активы\",IF(OR(P6=\"Быстрое решение\",P6=\"Подзарядка\"),\"   \",IF(AND(P6=\"Просто авто\",$Z$29=\"Нет\"),\"Чистый доход за последний отчетный год\",\" \")))","v":" "},{"$nulls":9},{"$f":"IF(OR($L$38=\"Краткосрочные активы\",L38=\"Чистый доход за последний отчетный год\"),\"тыс. BYN\",IF(OR($P$6=\"Быстрое решение\",$P$6=\"Подзарядка\"),\"   \",\" \"))","v":" "}]
[null,false,{"$nulls":9},{"$f":"IF(AND(P6=\"Кредитный экспресс\",P7=\"Возобновляемая кредитная линия\"),\"Краткосрочные активы на предыдущую квартальную дату\",IF(OR(P6=\"Быстрое решение\",P6=\"Подзарядка\"),\"   \",\" \"))","v":" "},{"$nulls":9},{"$f":"IF($L$38=\"Краткосрочные активы\",\"тыс. BYN\",IF(OR($P$6=\"Быстрое решение\",$P$6=\"Подзарядка\"),\"   \",\" \"))","v":" "}]
[null,false,{"$nulls":9},{"$f":"IF(OR($P$6=\"Быстрое решение\",$P$6=\"Подзарядка\"),\" \",\"  \")","v":"  "},{"$nulls":4},{"$f":"IF(OR($P$6=\"Быстрое решение\",$P$6=\"Подзарядка\"),\" \",\"  \")","v":"  "},{"$nulls":4},{"$f":"IF(OR($P$6=\"Быстрое решение\",$P$6=\"Подзарядка\"),\" \",\"  \")","v":"  "}]
[null,false,{"$nulls":9},"  ",{"$nulls":4},"  ",{"$nulls":4},"  "]
[null,false,{"$nulls":9},"  ",{"$nulls":4},"  ",{"$nulls":4},"  "]
[null,false,{"$nulls":9},"  ",{"$nulls":4},"  ",{"$nulls":4},"  "]
[null,false,{"$nulls":9},"  ",{"$nulls":4},"  ",{"$nulls":4},"  "]
[null,false,{"$nulls":9},"  ",{"$nulls":4},"  ",{"$nulls":4},"  "]
["7.","Кредитный портфель Заявителя:"]
[null,"Номер кредитного договора",{"$nulls":4},"Цель кредита",{"$nulls":9},"Процентная ставка по кредиту"]
{"$rows_empty":8}
["8."," Сведения об организациях, участником (учредителем, руководителем) которых является Заявитель и/или учредитель Заявителя и/ли физическое лицо, состоящее в отношениях (брачных) близкого родства или свойства с учредителем Заявителя, а так же об организациях, связанных с Заявителем экономически и (или) юридически таким образом, что ухудшение их финансового положения обусловливает или делает вероятным ухудшение финансового положения Заявителя:"]
[null,"Наименование / Фамилия, имя, отчество",{"$nulls":18},"Тип взаимосвязи (выбрать из списка)"]
[]
[]
["9.",{"$f":"IF(L1=\"Заявка юридического лица\",\"Предлагаемые поручительства учредителей (и/или иных лиц):\",\"Предлагаемые поручительства физических лиц:\")","v":"Предлагаемые поручительства учредителей (и/или иных лиц):"}]
[null,"Фамилия, имя, отчество",{"$nulls":18},"Отношение к Заявителю \n(выбрать из списка)"]
[]
[]
["10.","Предлагаемый залог (в случае необходимости)"]
[null,"Тип предмета залога",{"$nulls":4},"Наименование предмета залога",{"$nulls":13},"Залогодатель"]
[]
[]
["Ранее предоставлены в ЗАО \"Банк \"Решение\" копии следующих документов, которые на дату подписания заявки являются актуальными, изменения в них не вносились:"]
[null,"Свидетельство о госурадственной регистрации",{"$nulls":6},"Устав",{"$nulls":6},"Паспорт руководителя/иного уполномоченного лица"]
[null,"Решение уполномоченного органа о назначении руководителя",{"$nulls":6},"Трудовой договор (контракт) с руководителем",{"$nulls":6},"Приказ о вступлении в должность руководителя"]
[null,"Доверенность иного уполномоченного лица"]
["Подписывая и предоставляя в Банк настоящую заявку:"]
["1. Заявитель подтверждает, что вся изложенная в Заявке информация является подлинной, соответствует действительности на дату заполнения настоящей заявки. Заявитель уведомлен, что за предоставление недостоверных сведений при получении кредита предусмотрена ответственность в соответствии с законодательством. Заявитель подтверждает, что органы управления избраны согласно установленной процедуре, являются легитимными, корпоративных споров между участниками нет."]
["2. Заявитель обязуется незамедлительно уведомлять Банк о любых изменениях в информации, предоставленной Банку при получении кредита."]
["3. Заявитель выражает согласие на проведение анализа хозяйственной деятельности Заявителя. При этом Банк имеет право обращаться к любому лицу, известному или неизвестному Заявителю, которое, по мнению Банка, может оказать содействие в принятии решения о предоставлении кредита Заявителю. "]
["4. Заявитель извещен, что принятие к рассмотрению настоящей Заявки не означает возникновения у Банка обязательства по предоставлению кредита. "]
["5. Заявитель извещен, что при любом решении Банка о предоставлении кредита настоящая Заявка и прилагаемые к ней документы не возвращаются."]
["6. Заявитель извещен, что в случае отказа от предоставления кредита Банк вправе не сообщать причин отказа."]
[]
["Подпись Заявителя"]
[{"$nulls":14},"подпись",{"$nulls":4},"И.О. Фамилия"]
[{"$nulls":15},"М.П."]
[{"$nulls":7},"Дата подписания заявки"]
{"$rows_empty":41}
[null,null,"Да",null,"Офис"]
[null,null,"Нет",null,"Магазин"]
[{"$nulls":4},"Склад"]
[{"$nulls":4},"Цех"]
[{"$nulls":4},"Производственная база"]

{"sheet":"Лист2","index":6,"n_rows":72,"n_cols":57,"rows_kept":72,"hidden":true,"merged":[[0,5,0,7],[0,14,0,17],[0,21,0,23],[0,31,0,35],[0,41,0,44],[0,55,0,58],[10,0,10,1],[39,0,39,1]]}
[{"$nulls":3},"ПРОДУКТЫ",null,"ФОРМА",{"$nulls":8},"ВАЛЮТА",{"$nulls":6},"ЦЕЛИ",{"$nulls":9},"сроки",{"$nulls":9},"сроки транша/отсрочки",{"$nulls":13},"способы предоставления"]
[{"$f":"SUBSTITUTE(\"\",\" \",\"_\")","v":""},"Быстрое решение",null,"Быстрое решение",{"$f":"IF(A3=\"Быстрое_решение\",\"ов0\",IF(A3=\"Подзарядка\",\"подз0\",IF(A3=\"Кредитный_экспресс\",\"кэ0\",IF(A3=\"Так_просто\",\"тп0\",IF(A3=\"Просто_авто\",\"тп0\",IF(A3=\"Кредитование_по_программе_Банка_развития\",\"тп0\"))))))","v":"тп0"},"Овердрафт",{"$nulls":6},{"$f":"IF(A3=\"Быстрое_решение\",\"ов\",IF(A3=\"Подзарядка\",\"подз\",IF(A3=\"Кредитный_экспресс\",\"кэ\",IF(A3=\"Так_просто\",\"кэ\",IF(A3=\"Просто_авто\",\"кэ\",IF(A3=\"Кредитование_по_программе_Банка_развития\",\"подз\"))))))","v":"подз"},"Быстрое решение","BYN","USD","EUR","RUB",null,{"$f":"IF(A3=\"Быстрое_решение\",\"ов2\",IF(A3=\"Подзарядка\",\"подз2\",IF(A3=\"Кредитный_экспресс\",\"кэ2\",IF(A3=\"Так_просто\",\"кэ2\",IF(A3=\"Просто_авто\",\"авто\",IF(A3=\"Кредитование_по_программе_Банка_развития\",\"кэ2\"))))))","v":"кэ2"},"Быстрое решение","устранение кассовых разрывов",{"$nulls":7},{"$f":"IF(A3=\"Быстрое_решение\",\"ов3\",IF(A3=\"Подзарядка\",\"ов3\",IF(A3=\"Так_просто\",\"тп3\",IF(A3=\"Просто_авто\",\"кэ3\",IF(AND(A3=\"Кредитный_экспресс\",Заявка!P10=\"финансирование краткосрочных активов\"),\"тп3\",IF(AND(A3=\"Кредитование_по_программе_Банка_развития\",Заявка!P10=\"финансирование краткосрочных активов\"),\"тп3\",IF(AND(A3=\"Кредитование_по_программе_Банка_развития\",Заявка!P10=\"погашение кредитов на краткосрочные активы\"),\"тп3\",\"кэ3\")))))))","v":"кэ3"},"Быстрое решение",12,{"$nulls":7},{"$f":"IF(A3=\"Быстрое_решение\",\"ов4\",IF(AND(A3=\"Подзарядка\",Заявка!P7=\"Возобновляемая кредитная линия\"),\"подз4\",IF(AND(A3=\"Кредитный_экспресс\",Заявка!P7=\"Возобновляемая кредитная линия\"),\"подз4\",IF(AND(A3=\"Так_просто\",Заявка!P7=\"Разовый кредит\"),\"тп4\",IF(A3=\"Просто_авто\",\"авто4\",IF(AND(Заявка!P7=\"Разовый кредит\",A3=\"Кредитный_экспресс\"),\"тп4\",IF(AND(A3=\"Кредитование_по_программе_Банка_развития\",Заявка!P10=\"финансирование краткосрочных активов\"),\"бр6\",IF(AND(A3=\"Кредитование_по_программе_Банка_развития\",Заявка!P10=\"финансирование долгосрочных активов\"),\"бр12\",IF(AND(A3=\"Кредитование_по_программе_Банка_развития\",Заявка!P10=\"погашение кредитов на краткосрочные активы\"),\"бр6\",IF(AND(A3=\"Кредитование_по_программе_Банка_развития\",Заявка!P10=\"погашение кредитов на долгосрочные активы, лизинга\"),\"бр12\",\"авто4\"))))))))))","v":"авто4"},"Быстрое решение",30,{"$nulls":11},{"$f":"IF(OR(A3=\"Быстрое_решение\",A3=\"Подзарядка\",A3=\"Просто_авто\",A3=\"Кредитование_по_программе_Банка_развития\",),\"ов5\",\"тп5\")","v":"ов5"},"Быстрое решение","на счета третьих лиц"]
[{"$f":"SUBSTITUTE(Заявка!P6,\" \",\"_\")","v":"Кредитование_по_программе_Банка_развития"},"Подзарядка",null,"Подзарядка",null,"Возобновляемая кредитная линия",{"$nulls":7},"Подзарядка","BYN",{"$nulls":5},"Подзарядка","финансирование краткосрочных активов",{"$nulls":8},"Подзарядка",12,{"$nulls":8},"Подзарядка",30,60,90,{"$nulls":10},"Подзарядка","на счета третьих лиц"]
[null,"Кредитный_экспресс",null,"Кредитный экспресс",null,"Разовый кредит","Невозобновляемая кредитная линия","Возобновляемая кредитная линия",{"$nulls":5},"Кредитный экспресс","BYN","USD","EUR","RUB",null,null,"Кредитный экспресс","финансирование долгосрочных активов","финансирование краткосрочных активов","погашение кредитов на долгосрочные активы, лизинга","погашение кредитов на краткосрочные активы",{"$nulls":5},"Кредитный экспресс",12,24,36,48,60,{"$nulls":4},"Кредитный экспресс",{"$nulls":13},"Кредитный экспресс","на текущий счет в Банке","на счета третьих лиц"]
[null,"Так_просто",null,"Так просто",null,"Разовый кредит","Невозобновляемая кредитная линия",{"$nulls":6},"Так просто","BYN","USD","EUR","RUB",null,null,"Так просто","финансирование долгосрочных активов","финансирование краткосрочных активов","погашение кредитов на долгосрочные активы, лизинга","погашение кредитов на краткосрочные активы",{"$nulls":5},"Так просто",12,24,36,{"$nulls":6},"Так просто",0,1,2,3,{"$nulls":9},"Так просто","на текущий счет в Банке","на счета третьих лиц"]
[null,"Просто_авто",null,"Просто авто",null,"Разовый кредит","Невозобновляемая кредитная линия",{"$nulls":6},"Просто авто","BYN","USD","EUR","RUB",null,null,"Просто авто","финансирование долгосрочных активов",{"$nulls":8},"Просто авто",12,24,36,48,60,{"$nulls":4},"Просто авто","-",{"$nulls":12},"Просто авто","на счета третьих лиц"]
[null,"Кредитование_по_программе_Банка_развития",null,"Кредитование по программе Банка развития",{"$nulls":36},"БР ДА",0,1,2,3,4,5,6,7,8,9,10,11,12]
[{"$nulls":40},"БР КА",0,1,2,3,4,5,6]
[]
[]
["ЛИМИТ"]
["до 7 разраядов"]
["вход",{"$f":"A57","v":0}]
[{"$f":"IF(LEN(A47)>9,VALUE(MID(A47,LEN(A47)-9,1)),0)","v":0},""]
[{"$f":"IF(LEN(A47)>8,VALUE(MID(A47,LEN(A47)-8,1)),0)","v":0},""]
[{"$f":"IF(LEN(A47)>7,VALUE(MID(A47,LEN(A47)-7,1)),0)","v":0},""]
[{"$f":"IF(LEN(A47)>6,VALUE(MID(A47,LEN(A47)-6,1)),0)","v":0},""]
[{"$f":"FIXED(B42,2,1)","v":"0.00"},""]
[0,""]
[0,""]
[0,""]
[""]
[0]
[0]
["выход",""]
[""]
[]
[0,"ссылка на число"]
[]
[""]
{"$rows_empty":9}
["ЛИМИТ"]
["до 7 разраядов"]
["вход",{"$f":"A57","v":0}]
[{"$f":"IF(LEN(A47)>9,VALUE(MID(A47,LEN(A47)-9,1)),0)","v":0},{"$f":"IF(A43=0,\"\",CHOOSE(A43,\"один миллион \",\"два миллиона \",\"три миллиона \",\"четыре миллиона \",\"пять миллионов \",\"шесть миллионов \",\"семь миллионов \",\"восемь миллионов \",\"девять миллионов \"))","v":""}]
[{"$f":"IF(LEN(A47)>8,VALUE(MID(A47,LEN(A47)-8,1)),0)","v":0},{"$f":"IF(A44=0,\"\",CHOOSE(A44,\"сто \",\"двести \",\"триста \",\"четыреста \",\"пятьсот \",\"шестьсот \",\"семьсот \",\"восемьсот \",\"девятьсот \"))","v":""}]
[{"$f":"IF(LEN(A47)>7,VALUE(MID(A47,LEN(A47)-7,1)),0)","v":0},{"$f":"IF(AND(A45=1,A46=0),\"десять \",IF(A45=0,\"\",CHOOSE(A45,CHOOSE(A46,\"одиннадцать \",\"двенадцать \",\"тринадцать \",\"четырнадцать \",\"пятнадцать \",\"шестнадцать \",\"семнадцать \",\"восемнадцать \",\"девятнадцать \"),\"двадцать \",\"тридцать \",\"сорок \",\"пятьдесят \",\"шестьдесят \",\"семьдесят \",\"восемьдесят \",\"девяносто \")))","v":""}]
[{"$f":"IF(LEN(A47)>6,VALUE(MID(A47,LEN(A47)-6,1)),0)","v":0},{"$f":"IF(OR(A45=1,A46=0),\"\",CHOOSE(A46,\"одна \",\"две \",\"три \",\"четыре \",\"пять \",\"шесть \",\"семь \",\"восемь \",\"девять \"))","v":""}]
[{"$f":"FIXED(B42,2,1)","v":"0.00"},{"$f":"IF(SUM(A43:A46)=0,\"\",CHOOSE(IF(AND(A45<>1,A46=1),1,IF(AND(A45<>1,A46>1,A46<5),2,3)),\"тысяча \",\"тысячи \",\"тысяч \"))","v":""}]
[{"$f":"IF(LEN(A47)>5,VALUE(MID(A47,LEN(A47)-5,1)),0)","v":0},{"$f":"IF(A48=0,\"\",CHOOSE(A48,\"сто \",\"двести \",\"триста \",\"четыреста \",\"пятьсот \",\"шестьсот \",\"семьсот \",\"восемьсот \",\"девятьсот \"))","v":""}]
[{"$f":"IF(LEN(A47)>4,VALUE(MID(A47,LEN(A47)-4,1)),0)","v":0},{"$f":"IF(AND(A49=1,A50=0),\"десять \",IF(A49=0,\"\",CHOOSE(A49,CHOOSE(A50,\"одиннадцать \",\"двенадцать \",\"тринадцать \",\"четырнадцать \",\"пятнадцать \",\"шестнадцать \",\"семнадцать \",\"восемнадцать \",\"девятнадцать \"),\"двадцать \",\"тридцать \",\"сорок \",\"пятьдесят \",\"шестьдесят \",\"семьдесят \",\"восемьдесят \",\"девяносто \")))","v":""}]
[{"$f":"IF(LEN(A47)>3,VALUE(MID(A47,LEN(A47)-3,1)),0)","v":0},{"$f":"IF(OR(A49=1,A50=0),\"\",CHOOSE(A50,\"один\",\"два\",\"три\",\"четыре\",\"пять\",\"шесть\",\"семь\",\"восемь\",\"девять\"))","v":""}]
[{"$f":"IF(LEN(A47)>10,\"ошибка: превышение разрядности числа\",B43&B44&B45&B46&B47&B48&B49&B50&B51&B52&B53)","v":""}]
[{"$f":"IF(LEN(A47)>1,VALUE(MID(A47,LEN(A47)-1,1)),0)","v":0}]
[{"$f":"VALUE(RIGHT(A47,1))","v":0}]
["выход",{"$f":"REPLACE(A51,1,1,UPPER(LEFT(A51,1)))","v":""}]
[{"$f":"IF(LEN(A47)>10,\"ошибка: превышение разрядности числа\",B43&B44&B45&B46&B47&B48&B49&B50)","v":""}]
[]
[{"$f":"'акт оценки авто'!C23","v":0},"ссылка на число"]
[]
[{"$f":"B54","v":""}]
[]
[]
[]
["Поддержка предприятий производственной сферы, сельского, лесного и рыбного хозяйства","Поддержка предприятий-экспортеров","Поддержка регионов","Поддержка женского предпринимательства","Поддержка стартап-компаний","Поддержка предприятий сферы торговли и услуг","Поддержка социального предпринимательства","Поддержка юго-восточных регионов и Орши","Поддержка экологических проектов","Поддержка производителей медицинских средств защиты и медицинского оборудования в период распространения коронавирусной инфекции COVID-19",null,{"$f":"SUBSTITUTE(заключение!E20,\" \",\"_\")","v":"Поддержка_женского_предпринимательства"}]
[{"$f":"(заключение!$D$5-1)+3","v":2},{"$f":"(заключение!$D$5-1.5)+3","v":1.5},{"$f":"(заключение!$D$5-1.5)+3","v":1.5},{"$f":"(заключение!$D$5-1.5)+3","v":1.5},{"$f":"(заключение!$D$5-1.5)+3","v":1.5},{"$f":"(заключение!$D$5)+3","v":3},{"$f":"(заключение!$D$5/2)+3","v":3},{"$f":"(заключение!$D$5/2)+3","v":3},{"$f":"(заключение!$D$5/2)+3","v":3},{"$f":"(заключение!$D$5/2)+2.5","v":2.5}]
[]
["ставка:"]
[{"$f":"IF(L63=\"Поддержка_предприятий_производственной_сферы,_сельского,_лесного_и_рыбного_хозяйства\",A64,IF(OR(L63=\"Поддержка_предприятий-экспортеров\",L63=\"Поддержка_регионов\",L63=\"Поддержка_женского_предпринимательства\",L63=\"Поддержка_стартап-компаний\"),B64,IF(L63=\"Поддержка_предприятий_сферы_торговли_и_услуг\",F64,IF(OR(L63=\"Поддержка_социального_предпринимательства\",L63=\"Поддержка_юго-восточных_регионов_и_Орши\",L63=\"Поддержка_экологических_проектов\"),G64,J64))))","v":1.5}]
[]
["Отсутствуют"," - наличие у Заявителя действующего экспортного контракта (включая страны СНГ);\n - объем экспортной выручки от реализации продукции, товаров, работ, услуг (без учета НДС) за предшествующий календарный год составляет не менее 30% от общего объема выручки без учета НДС.","Заявитель зарегистрирован и осуществляет деятельность на территории средних, малых городских поселений, сельской местности (на территории Республики Беларусь, за исключением территории городов Брест, Витебск, Гомель, Гродно, Минск, Могилев)","Доля участия женщин в уставном капитале не менее 50%, управление осуществляется женщиной.","- Заявитель вновь создан, осуществляет деятельность менее 1 года с момента регистрации либо с момента государственной регистрации Заявителя истек 1 год, при этом финансово-хозяйственная деятельность до года обращения за финансированием не осуществлялась.\n- 25 % и более  уставного фонда Заявителя НЕ принадлежит юридическому лицу, средняя численность работников за предыдущий календарный год которого превышает 100 человек, и объем выручки от реализации продукции, товаров, работ, услуг (без учета НДС) за предыдущий календарный год превышает предельное значение, ежегодно устанавливаемое нормативными правовыми актами государственных органов Республики Беларусь для малых организаций, обратившихся за оказанием государственной финансовой поддержки; \n- 25% и более уставного фонда Заявителя НЕ принадлежит физическому лицу, которое является владельцем 25 и более процентов акций (долей, паев) другого юридического лица, средняя численность работников за предыдущий календарный год которого превышает 100 человек, и объем выручки от реализации продукции, товаров, работ, услуг (без учета НДС) за предыдущий календарный год превышает предельное значение, ежегодно устанавливаемое нормативными правовыми актами государственных органов Республики Беларусь для малых организаций, обратившихся за оказанием государственной финансовой поддержки.\n","Отсутствуют","Выполнение Заявителем одного из условий:\n1. среднесписочная численность работников-инвалидов, одиноких родителей, имеющих детей в возрасте до 18 лет, многодетных родителей, неработающих пенсионеров, выпускников детских домов в возрасте до 21 года, лиц, освобожденных из мест лишения свободы, при условии, что по итогам предыдущего календарного года составляет не менее 40%;\n2.  ежегодно не менее 10% чистой прибыли Заявителя передается на оказание помощи социальным учреждениям (организации, осуществляющие социальную защиту населения, оказывающие социальную помощь малообеспеченным гражданам, гражданам, нуждающимся в поддержке государства, лицам, которые в силу своих физических особенностей, особенностей психофизического развития и иных обстоятельств не могут самостоятельно реализовывать свои права и законные интересы (одиноким пожилым гражданам, инвалидам, ветеранам войны и труда, многодетным и неполным семьям, детям-инвалидам, детям-сиротам, детям, оставшимся без попечения родителей, другим категориям граждан, определенным законодательством).","Заявитель зарегистрирован и осуществляет деятельность на территории Кричевского, Климовичского, Краснопольского, Костюковичского, Славгородского, Чериковского и Хотимского районов Могилевской области, а также Оршанского района Витебской области.","Сфера деятельности Заявителя:\n- производство экологически безопасной упаковки (в том числе из стекла и бумаги);\n- использование возобновляемых источников энергии (солнце, ветер, вода, геотермальная энергия, энергия биомассы);\n- подготовка к использованию (сбор, сортировка, перевозка), использованием, обезвреживанием отходов производства и потребления;\n- производство органической продукции (для сертифицированных производителей);\n- производство биогумуса, зоогумуса;\n- установка электрических заправочных станций, техническому обслуживанию и ремонту электротранспорта, гибридов.\nЛибо цель кредита:\n- приобретение, монтаж, модернизацию установок, работающих на возобновляемых источниках энергии;\n- приобретение автотранспорта и заправочных станций, работающих на электричестве, а также переоборудование автотранспорта с двигателями внутреннего сгорания на электротранспорт, гибриды;\n- приобретение техники, оборудования, работающих на электричестве, взамен техники, работающей на нефтепродуктах;\n- строительство (реконструкцию, модернизацию) собственных очистных сооружений.","Деятельность Заявителя связана с производством медицинских средств защиты (защитные костюмы, маски, перчатки, очки, респираторы, антисептики, халаты и прочее), медицинского оборудования и другая деятельность, направленная на борьбу с распространением коронавирусной инфекции (COVID-19)."]
[{"$f":"IF(L63=\"Поддержка_предприятий_производственной_сферы,_сельского,_лесного_и_рыбного_хозяйства\",A64,IF(OR(L63=\"Поддержка_предприятий-экспортеров\",L63=\"Поддержка_регионов\",L63=\"Поддержка_женского_предпринимательства\",L63=\"Поддержка_стартап-компаний\"),B64,IF(L63=\"Поддержка_предприятий_сферы_торговли_и_услуг\",F64,IF(OR(L63=\"Поддержка_социального_предпринимательства\",L63=\"Поддержка_юго-восточных_регионов_и_Орши\",L63=\"Поддержка_экологических_проектов\"),G64,J64))))","v":1.5}]
["доп.усл:"]
[{"$f":"IF(L63=\"Поддержка_предприятий_производственной_сферы,_сельского,_лесного_и_рыбного_хозяйства\",A69,IF(L63=\"Поддержка_предприятий-экспортеров\",B69,IF(L63=\"Поддержка_регионов\",C69,IF(L63=\"Поддержка_женского_предпринимательства\",D69,IF(L63=\"Поддержка_стартап-компаний\",E69,IF(L63=\"Поддержка_предприятий_сферы_торговли_и_услуг\",F69,IF(L63=\"Поддержка_социального_предпринимательства\",G69,IF(L63=\"Поддержка_юго-восточных_регионов_и_Орши\",H69,IF(L63=\"Поддержка_экологических_проектов\",I69,J69)))))))))","v":"Доля участия женщин в уставном капитале не менее 50%, управление осуществляется женщиной."}]

{"sheet":"приложение к заявке (БР)","index":7,"n_rows":100,"n_cols":25,"rows_kept":100,"merged":[[0,21,0,27],[1,8,1,10],[1,11,1,27],[2,12,2,27],[3,13,3,27],[4,0,4,27],[5,1,5,14],[5,15,5,27],[6,1,6,14],[6,17,6,18],[6,19,6,20],[6,21,6,27],[7,1,7,14],[7,15,7,27],[8,1,8,14],[8,15,8,27],[9,1,9,14],[9,15,9,16],[9,17,9,27],[10,1,10,14],[10,15,10,16],[10,17,10,27],[11,1,11,14],[11,15,11,18],[11,19,11,27],[12,1,12,14],[12,15,12,18],[12,19,12,27],[13,1,13,14],[13,15,13,18],[13,19,13,27],[14,1,14,27],[15,0,15,27],[16,1,16,14],[16,15,16,27],[17,1,17,14],[17,15,17,27],[18,1,18,14],[18,15,18,18],[18,19,18,20],[18,21,18,27],[19,0,25,0],[19,1,19,27],[20,1,20,7],[20,8,20,12],[20,13,20,17],[20,18,20,22],[20,23,20,27],[21,1,21,7],[21,8,21,12],[21,13,21,17],[21,18,21,22],[21,23,21,27],[22,1,22,7],[22,8,22,12],[22,13,22,17],[22,18,22,22],[22,23,22,27],[23,1,23,7],[23,8,23,12],[23,13,23,17],[23,18,23,22],[23,23,23,27],[24,1,24,7],[24,8,24,12],[24,13,24,17],[24,18,24,22],[24,23,24,27],[25,1,25,9],[25,10,25,27],[26,0,39,0],[26,1,26,27],[27,12,27,14],[27,15,27,17],[27,18,27,20],[27,21,27,23],[27,24,27,26],[28,1,28,11],[28,12,28,14],[28,15,28,17],[28,18,28,20],[28,21,28,23],[28,24,28,26],[29,1,29,11],[29,12,29,14],[29,15,29,17],[29,18,29,20],[29,21,29,23],[29,24,29,26],[30,1,30,11],[30,12,30,14],[30,15,30,17],[30,18,30,20],[30,21,30,23],[30,24,30,26],[31,1,31,11],[31,12,31,14],[31,15,31,17],[31,18,31,20],[31,21,31,23],[31,24,31,26],[32,1,32,11],[32,12,32,14],[32,15,32,17],[32,18,32,20],[32,21,32,23],[32,24,32,26],[33,1,33,11],[33,12,33,14],[33,15,33,17],[33,18,33,20],[33,21,33,23],[33,24,33,26],[34,1,34,11],[34,12,34,14],[34,15,34,17],[34,18,34,20],[34,21,34,23],[34,24,34,26],[35,1,35,11],[35,12,35,14],[35,15,35,17],[35,18,35,20],[35,21,35,23],[35,24,35,26],[36,1,36,11],[36,12,36,14],[36,15,36,17],[36,18,36,20],[36,21,36,23],[36,24,36,26],[37,1,37,11],[37,12,37,14],[37,15,37,17],[37,18,37,20],[37,21,37,23],[37,24,37,26],[38,1,38,11],[38,12,38,14],[38,15,38,17],[38,18,38,20],[38,21,38,23],[38,24,38,26],[39,1,39,11],[39,12,39,14],[39,15,39,17],[39,18,39,20],[39,21,39,23],[39,24,39,26],[40,0,40,27],[41,1,41,26],[42,1,42,26],[43,1,43,26],[44,1,44,26],[45,1,45,26],[46,1,46,26],[47,1,47,26],[48,1,48,26],[49,15,49,16],[50,0,50,12],[50,14,50,17],[50,19,50,25],[51,14,51,17],[51,19,51,25],[52,15,52,16],[53,7,53,12],[53,14,53,17]]}
[{"$nulls":21},"Приложение к"]
[{"$nulls":11},{"$f":"IF(Заявка!$L$1=\"Заявка юридического лица\",\"заявке юридического лица\",\"заявке индивидуального предпринимателя\")","v":"заявке юридического лица"}]
[{"$nulls":12},"на получение кредита за счет средств "]
[{"$nulls":13},"ОАО \"Банк развития Республики Беларусь\""]
["Информация о деятельности Заявителя:"]
["1.","Основной вид деятельности (ОКЭД - 5 цифр):"]
["2.","Опыт работы по данному виду деятельности:",{"$nulls":15},"лет",{"$nulls":3},"мес."]
["3.","Конкурентные преимущества Заявителя:"]
["4.","В каком населенном пункте осуществляется деятельность?"]
["5.","Среднесписочная численность работников за предыдущий год:",{"$nulls":15},"чел."]
["6.","в т.ч. среднесписочная численность работников-инвалидов, одиноких родителей, имеющих детей в возрасте до 18 лет, многодетных родителей, неработающих пенсионеров, выпускников детских домов в возрасте до 21 года, лиц, освобожденных из мест лишения свободы за предыдущий год:",{"$nulls":15},"чел."]
["7.","Выручка без НДС за предыдущий год:",{"$nulls":17},"BYN"]
["8.","в т.ч. экспортная выручка без НДС за предыдущий год:",{"$nulls":17},"BYN"]
["9.","Размер ежегодной чистой прибыли, передаваемой на оказание помощи социальным учреждениям*:",{"$nulls":17},"BYN"]
[null,"*Под социальными учреждениями понимаются организации, осуществляющие социальную защиту населения, оказывающие социальную помощь малообеспеченным гражданам, гражданам, нуждающимся в поддержке государства, лицам, которые в силу своих физических особенностей, особенностей психофизического развития и иных обстоятельств не могут самостоятельно реализовывать свои права и законные интересы (одиноким пожилым гражданам, инвалидам, ветеранам войны и труда, многодетным и неполным семьям, детям-инвалидам, детям-сиротам, детям, оставшимся без попечения родителей, другим категориям граждан, определенным законодательством"]
["Информация о финансируемом проекте:"]
["1.","Вид деятельности проекта, финансируемого за счет кредита (ОКЭД - 5 цифр):"]
["2.","Суть проекта (какой объект/продукцию планируется приобрести/какие услуги (работы) оплатить, какую продукцию планируется производить, кто потенциальные потребители продукции/работ (услуг), планируемый объем реализации/произвосдтва):"]
["3.","Сумма финансируемого проекта:",{"$nulls":17},"BYN"]
["4.","Структура расходов на проект, их источники:"]
[null,"Наименование расходов",{"$nulls":6},"Период их осуществления",{"$nulls":4},"За счет собственных средств, BYN:",{"$nulls":4},"За счет кредитных средств, BYN:",{"$nulls":4},"За счет иных заемных средств, BYN:"]
[]
[]
[]
[]
[null,"Комментарии по иным заемным средствам:"]
["5. ","Прогнозные показатели деятельности после реализации проекта, тыс. BYN:"]
[{"$nulls":12},{"$f":"CONCATENATE(\"за \",IF(Заявка!P12=12,\"2022 год\",IF(Заявка!P12=24,\"2022 год\",IF(Заявка!P12=36,\"2022 год\",IF(Заявка!P12=48,\"2022 год\",IF(Заявка!P12=60,\"2022 год\"))))))","v":"за ЛОЖЬ"},null,null,{"$f":"IF(Заявка!P12=12,\"-\",\"за 2023 год\")","v":"за 2023 год"},null,null,{"$f":"IF(Заявка!P12=12,\"-\",IF(Заявка!P12=24,\"-\",\"за 2024 год\"))","v":"за 2024 год"},null,null,{"$f":"IF(Заявка!P12=12,\"-\",IF(Заявка!P12=24,\"-\",IF(Заявка!P12=36,\"-\",\"за 2025 год\")))","v":"за 2025 год"},null,null,{"$f":"IF(Заявка!P12=12,\"-\",IF(Заявка!P12=24,\"-\",IF(Заявка!P12=36,\"-\",IF(Заявка!P12=48,\"-\",\"за 2026 год\"))))","v":"за 2026 год"}]
[null,"Выручка от рализации продукции, работ, услуг (без НДС)"]
[null,"Себестоимость реализованной продукции, работ, услуг"]
[null,"Валовая прибыль"]
[null,"Управленческие расходы"]
[null,"Расходы на реализацию"]
[null,"Прибыль от реализации"]
[null,"Прибыль от текущей деятельности"]
[null,"Прибыль от инвестиционной деятельности"]
[null,"Прибыль от финансовой деятельности"]
[null,"Прибыль до налогообложения"]
[null,"Налог на прибыль"]
[null,"Чистая прибыль"]
[]
[null,"Заявитель подтвержает, что на дату заполнения заявки у него отсутствует просроченная задолженность по активным операциям перед банками, в том числе перед ОАО \"Банк развития Республики Беларусь\""]
[null,"Заявитель подтвержает, что на протяжении 12 последних календарных месяцев в АИС ИДО отсутствовали документы, неоплаченные Заявителем ."]
[null,"Заявитель подтверждает, что на дату заполнения заявки не находится в процессе реорганизации, ликвидации (прекращения деятельности), экономической несостоятельности (банкротства)"]
[null,"Заявитель подтверждает, что на дату заполнения заявки не является субъектом, финансирование которого запрещено в соответствии с специальными экономическими мерами (санкциями, эмбарго), вводимыми Советом Безопасности ООН, США, Европейским союзом, Великобританией, Российской Федерацией"]
[null,"Зявитель подтверждает, что на дату заполнения заявки у него отсутствует задолженность по кредитным договорам (договорам финансовой аренды (лизинга)) в рамках оказания финансовой поддержки субъектам малого и среднего предпринимательства за счет средств ОАО \"Банк развития Республики Беларусь\""]
[null,"Заявитель дает согласие на предоставление сведений, составляющих банковскую или иную охраняемую законом тайну, ОАО «Банк развития Республики Беларусь», ПРООН и органам государственного управления, обязанность предоставления которым данных сведений не предусмотрена законодательством Республики Беларусь"]
[null,"Заявитель подтверждает, что 25% и более его уставного фонда НЕ принадлежит физическому лицу, которое является владельцем 25 и более процентов акций (долей, паев) другого юридического лица, средняя численность работников за предыдущий календарный год которого превышает 100 человек, и объем выручки от реализации продукции, товаров, работ, услуг (без учета НДС) за предыдущий календарный год превышает предельное значение, ежегодно устанавливаемое нормативными правовыми актами государственных органов Республики Беларусь для малых организаций, обратившихся за оказанием государственной финансовой поддержки."]
[null,"Заявитель подтверждает, что 25 % и более его уставного фонда НЕ принадлежит юридическому лицу, объем выручки которого от реализации продукции, товаров, работ, услуг (без учета НДС) за предыдущий календарный год превышает 35 000 000 BYN и/или средняя численность работников за предыдущий календарный год, составляет более 250 человек ."]
[]
["Подпись Заявителя"]
[{"$nulls":14},"подпись",{"$nulls":4},"И.О. Фамилия"]
[{"$nulls":15},"М.П."]
[{"$nulls":7},"Дата подписания заявки"]
{"$rows_empty":41}
[null,null,"Да",null,"Офис"]
[null,null,"Нет",null,"Магазин"]
[{"$nulls":4},"Склад"]
[{"$nulls":4},"Цех"]
[{"$nulls":4},"Производственная база"]

{"sheet":"заключение","index":8,"n_rows":104,"n_cols":30,"rows_kept":104,"hidden":true,"merged":[[0,0,0,12],[1,15,38,19],[2,0,2,1],[4,0,4,2],[6,0,6,3],[6,4,6,12],[8,0,8,3],[8,4,8,12],[10,0,10,3],[10,4,10,12],[12,0,12,3],[12,5,12,12],[14,0,14,3],[14,4,14,5],[14,6,14,12],[16,0,16,12],[17,0,17,3],[17,4,17,12],[19,0,19,3],[19,4,19,12],[21,0,21,3],[21,4,21,12],[23,0,23,3],[23,4,23,5],[23,6,23,12],[25,0,25,3],[25,4,25,12],[27,0,27,3],[27,4,27,12],[29,0,29,3],[29,5,29,12],[31,0,31,3],[31,5,31,12],[33,0,33,3],[33,5,33,12],[35,0,35,3],[35,4,35,12],[37,0,37,3],[37,4,37,12],[39,0,39,3],[39,4,39,12],[41,0,41,3],[41,4,41,12],[43,0,43,3],[43,4,43,12],[45,0,45,3],[45,4,45,12],[47,0,47,12],[48,0,48,3],[48,4,48,12],[50,0,50,3],[50,4,50,12],[52,0,52,3],[52,4,52,5],[52,6,52,12],[54,0,54,3],[54,4,54,12],[56,0,56,3],[56,4,56,12],[59,15,59,28],[60,0,60,4],[60,6,60,9],[60,10,60,11],[61,0,61,4],[61,6,61,9],[61,10,61,11],[62,0,62,4],[62,6,62,9],[62,10,62,11],[63,0,63,4],[63,6,63,9],[63,10,63,11],[63,15,63,28],[64,0,64,4],[64,6,64,9],[64,10,64,11],[64,15,64,17],[64,20,64,22],[64,25,64,27],[65,0,65,4],[65,15,65,17],[65,20,65,22],[65,25,65,27],[66,0,66,4],[66,6,66,9],[66,10,66,11],[66,15,66,17],[66,20,66,22],[66,25,66,27],[67,0,67,4],[67,15,67,17],[67,20,67,22],[67,25,67,27],[68,0,68,4],[68,6,68,9],[68,10,68,11],[69,0,69,4],[69,25,69,27],[70,0,70,12],[72,0,72,12],[73,0,73,11],[74,0,74,11],[75,0,75,11],[76,0,76,11],[77,0,77,11],[78,0,78,11],[79,0,79,11],[80,0,80,12],[81,0,81,12],[82,0,82,1],[82,2,82,7],[82,8,82,10],[83,0,83,1],[83,2,83,7],[83,8,83,10],[84,0,84,12],[85,0,85,12],[86,0,86,3],[86,4,86,5],[86,6,86,8],[86,9,86,10],[87,0,87,3],[87,4,87,5],[87,6,87,8],[87,9,87,10],[88,0,88,3],[88,4,88,5],[88,6,88,8],[88,9,88,10],[89,0,89,3],[89,4,89,5],[89,6,89,8],[89,9,89,10],[90,0,90,4],[91,0,91,7],[91,8,91,10],[91,11,91,12],[91,15,91,18],[92,0,92,7],[92,8,92,10],[92,11,92,12],[93,0,93,11],[94,0,94,11],[95,0,95,11],[96,0,96,12],[97,0,97,12],[98,0,98,7],[98,8,98,12],[99,0,99,7],[99,8,99,12],[100,0,100,6],[100,9,100,10],[101,0,101,6],[101,9,101,10],[101,11,101,12]]}
["ЗАКЛЮЧЕНИЕ КРЕДИТНОГО ЭКСПЕРТА"]
[{"$nulls":11},{"$f":"TODAY()","v":"2021-05-26"},{"$nulls":3},"<-- дата проставляется текущая, каждый раз, когда открываем файл. Она же тянется в КД. Если нужно ее зафиксировать/изменить - поставьте ее вручную"]
["Курсы валют к \nBYN:",null,"1 USD =",null,"1 EUR = ",null,"1 RUB = "]
[]
["Ставка рефинансирования",{"$nulls":3},"%"]
[]
["Наименование Заявителя:",{"$nulls":3},{"$f":"Заявка!J4","v":0}]
[]
["Вид деятельности Заявителя:",{"$nulls":3},{"$f":"Заявка!P15","v":0}]
[]
["ОКЭД вида деятельности Заявителя:",{"$nulls":3},{"$f":"'приложение к заявке (БР)'!P6","v":0}]
[]
["Среднесписочная численность работников за предыдущий год:",{"$nulls":3},{"$f":"'приложение к заявке (БР)'!P10","v":0},"чел."]
[]
["Выручка без НДС за предыдущий год:",{"$nulls":3},{"$f":"'приложение к заявке (БР)'!P12","v":0},null,"BYN"]
[]
["Запрашиваемые условия сделки:"]
["Кредитный продукт:",{"$nulls":3},"Кредитование по программе Банка развития"]
[]
["Наименование подпродукта:",{"$nulls":3},"Поддержка женского предпринимательства"]
[]
["Форма предоставления кредита:",{"$nulls":3},"На счета третьих лиц"]
[]
["Сумма кредита:",{"$nulls":5},"BYN"]
[]
["Цель кредита:"]
[]
["Цель кредита (побробно):"]
[]
["Срок кредита:",{"$nulls":4},"месяцев"]
[]
[{"$f":"IF(OR(заключение!E22=\"Овердрафт\",заключение!E22=\"Возобновляемая кредитная линия\"),\"Срок транша:\",\"Срок отсрочки:\")","v":"Срок отсрочки:"},{"$nulls":4},{"$f":"Заявка!X13","v":"месяцев"}]
[]
["Процентная ставка:",{"$nulls":4},"% годовых"]
[]
["Дополнительные требования к Заявителю согласно условиям подпродукта:"]
[]
["Правоспособность Заявителя:"]
[]
["Вывод о кредитонадежности Заявителя:"]
[]
["Наименование поручителя:"]
[]
["Правоспособность, дееспособность поручителя:"]
[]
["Вывод о кредитонадежности поручителя:",{"$nulls":12},{"$f":"IF(AND(E38=\"подтверждена\",E40=\"кредитонадежен\",E44=\"подтверждена\",E46=\"кредитонадежен\"),\"соотв\",\"не соотв\")","v":"не соотв"}]
[]
["Информация о финансируемом проекте:"]
["Кредитный продукт:",{"$nulls":3},"Кредитование по программе Банка развития"]
[]
["Форма предоставления кредита:",{"$nulls":3},"На счета третьих лиц"]
[]
["Сумма кредита:",{"$nulls":3},{"$f":"Заявка!P35","v":0},null,"BYN"]
[]
["Цель кредита:",{"$nulls":3},{"$f":"Заявка!P37","v":0}]
[]
["Цель кредита (побробно):",{"$nulls":3},{"$f":"Заявка!P38","v":0}]
[]
[]
["Критерии пллатежеспособности:"]
["Доля просроченной дебиторской задолженности, %",{"$nulls":4},{"$f":"IF(Заявка!$Q$34>AVERAGE(Заявка!$G$34:$G$45),(Заявка!$Q$35/Заявка!$Q$34)*100,\" \")","v":{"$error":"#DIV/0!"}},"Вывод о выполнении критерия",{"$nulls":3},{"$f":"IF(Заявка!$Q$34>AVERAGE(Заявка!$G$34:$G$45),IF(F61<=40,\"выполняется\",\"не выполняется\"),\"не рассчитывается\")","v":{"$error":"#DIV/0!"}}]
["Отношение дебиторской задолженности к среднемесячной выручке",{"$nulls":4},{"$f":"Заявка!$Q$34/AVERAGE(Заявка!$G$34:$G$45)","v":{"$error":"#DIV/0!"}},"Вывод о выполнении критерия",{"$nulls":3},{"$f":"IF(F62<=3,\"выполняется\",\"не выполняется\")","v":{"$error":"#DIV/0!"}}]
["Доля просроченной кредиторской задолженности, %",{"$nulls":4},{"$f":"IF(Заявка!$Q$37=0,0,Заявка!$Q$37/Заявка!$Q$36)","v":0},"Вывод о выполнении критерия",{"$nulls":3},{"$f":"IF(F63=0,\"выполняется\",\"не выполняется\")","v":"выполняется"}]
["Отношение кредиторской задолженности к среднемесячной выручке",{"$nulls":4},{"$f":"Заявка!$Q$36/AVERAGE(Заявка!$G$34:$G$45)","v":{"$error":"#DIV/0!"}},"Вывод о выполнении критерия",{"$nulls":3},{"$f":"IF(F64<=3,\"выполняется\",\"не выполняется\")","v":{"$error":"#DIV/0!"}},{"$nulls":4},"Для расчета ежемесячного платежа в друхих банках, BYN: "]
["Отношение ежемесячного взноса* к среднемесячной выручке",{"$nulls":4},{"$f":"IF($E$22=\"Возобновляемая кредитная линия\",(($E$24/$E$32*30)+(($E$24/$E$32*30)*$E$34*30/360))/(AVERAGE(Заявка!$G$34:$G$45)*1000),IF($E$22=\"Разовый кредит\",$E$24/(($E$30-$E$32-1)+($E$24/($E$30-$E$32-1)*($E$34*30/360)))/AVERAGE(Заявка!$G$34:$G$45)*1000,IF($E$22=\"Невозобновляемая кредитная линия\",$E$24/(($E$30-заключение!$E$32-3)+($E$24/($E$30-$E$32-3)*($E$34*30/360)))/AVERAGE(Заявка!$G$34:$G$45)*1000)))","v":false},"Вывод о выполнении критерия",{"$nulls":3},{"$f":"IF(ISNUMBER(SEARCH(\"аренд\",E9)),IF(F65<=70%,\"выполняется\",\"не выполняется\"),IF(F65<=25%,\"выполняется\",\"не выполняется\"))","v":"не выполняется"},{"$nulls":4},"Остаток задолженности/лимит овердрафта/ПРЕЗ",{"$nulls":4},"Остаток задолженности/лимит овердрафта/ПРЕЗ",{"$nulls":4},"Остаток задолженности/лимит овердрафта/ПРЕЗ"]
["Ежемесячный взнос по действующим кредитным операциям",{"$nulls":4},{"$f":"S68+X68+AC68","v":{"v":0,"d":"0.00"}},{"$nulls":9},"Срок полного погашения кредита",{"$nulls":4},"Срок полного погашения кредита",{"$nulls":4},"Срок полного погашения кредита"]
["Отношение кредитного портфеля к среднемесячной выручке",{"$nulls":4},{"$f":"($E$24+$F$68)/(AVERAGE(Заявка!$G$34:$G$45)*1000)","v":{"$error":"#DIV/0!"}},"Вывод о выполнении критерия",{"$nulls":3},{"$f":"IF(ISNUMBER(SEARCH(\"долгосрочны\",E26)),\"не рассчитывается\",IF(F67<=2,\"выполняется\",\"не выполняется\"))","v":{"$error":"#DIV/0!"}},{"$nulls":4},"Процентная ставка",{"$nulls":3},"%","Процентная ставка",{"$nulls":3},"%","Процентная ставка",{"$nulls":3},"%"]
[{"$f":"IF(ISNUMBER(SEARCH(\"долгосрочны\",E26)),\" \",\"Задолженность действующим кредитным операциям на краткосрочные активы\")","v":"Задолженность действующим кредитным операциям на краткосрочные активы"},{"$nulls":14},"Ежемесячный взнос",null,null,{"$f":"(S65/ROUNDUP((S66-$L$2)/30,0))+S65*S67/100","v":0},null,"Ежемесячный взнос",null,null,{"$f":"(X65/ROUNDUP((X66-$L$2)/30,0))+X65*X67/100","v":0},null,"Ежемесячный взнос",null,null,{"$f":"(AC65/ROUNDUP((AC66-$L$2)/30,0))+AC65*AC67/100","v":0}]
["Период оборота краткосрочных активов, дней",{"$nulls":4},{"$f":"$F$70/((Заявка!$Q$38+Заявка!$Q$39)/2)","v":{"$error":"#DIV/0!"}},"Вывод о выполнении критерия",{"$nulls":3},{"$f":"IF(E22=\"Возобновляемая кредитная линия\",IF(F69<=90,\"выполняется\",\"не выполняется\"),\"не рассчитывается\")","v":"не рассчитывается"},null,null,{"$f":"IF(AND(OR(K61=\"выполняется\",K61=\"не рассчитывается\"),K62=\"выполняется\",K63=\"выполняется\",K64=\"выполняется\",K65=\"выполняется\",OR(K67=\"не рассчитывается\",K67=\"выполняется\"),OR(K69=\"не рассчитывается\",K69=\"выполняется\")),\"соотв\",\"не соотв\")","v":{"$error":"#DIV/0!"}}]
[{"$f":"IF(K69=\"не рассчитывается\",\" \",\"Выручка за анализируемый квартал, тыс.BYN\")","v":" "},{"$nulls":14},"Заполнить эти таблицы",{"$nulls":4},"↑"]
["*для расчета ежемесячного взноса необходимо сумму кредита разделить на количество месяцев срока действия кредитного договора, прибавить проценты на сумму кредита к уплате за месяц."]
[]
["Базовые требования к Заявителю:",{"$nulls":14},"Заполнить эти таблицы",{"$nulls":4},"↑"]
["Собственный капитал имеет положительное значение по итогам последнего отчетного года",{"$nulls":11},"не оценивается",{"$f":"IF(OR(M74=\"не оценивается\",M74=\"да\"),\"соотв\",\"не соотв\")","v":"соотв"}]
["Чистая прибыль имеет положительное значение по итогам последнего отчетного года",{"$nulls":11},"не оценивается",{"$f":"IF(OR(M75=\"не оценивается\",M75=\"да\"),\"соотв\",\"не соотв\")","v":"соотв"}]
["Просроченная задолженность по ранее выданным и непогашенным кредитам (иным активным операциям) на дату получения кредитного отчета",{"$nulls":11},"отсутствует"]
["Просроченная задолженность по уплате процентов и(или) основного долга по кредитам банков длительностью более 7 календарных дней подряд за 3 полных последних месяца, предшествующих месяцу составления настоящего заключения, и до даты получения кредитного отчета",{"$nulls":11},"отсутствует"]
["Просроченная задолженность по уплате процентов и(или) основного долга по кредитам банков длительностью более 30 календарных дней подряд за 12 полных последних месяцев, предшествующих месяцу составления настоящего заключения, и до даты получения кредитного отчета",{"$nulls":11},"отсутствует"]
["Арест текущих (расчетных) и иных банковских счетов Заявителя на дату осуществления запроса",{"$nulls":11},"отсутствует"]
["Документы в АИС ИДО на дату осуществления запроса",{"$nulls":11},"отсутствуют",{"$f":"IF(AND(N74=\"соотв\",N75=\"соотв\",M76=\"отсутствует\",M77=\"отсутствует\",M78=\"отсутствует\",M79=\"отсутствует\",M80=\"отсутствуют\"),\"соотв\",\"не соотв\")","v":"соотв"}]
[]
["Обеспечение:"]
["Поручительство:",null,{"$f":"Заявка!B62","v":0},{"$nulls":5},{"$f":"IF(Заявка!U62=\"учредитель\",\"- учредитель с долей УФ\",\" \")","v":" "},null,null,100,{"$f":"IF(L83=\" \",\" \",\"%\")","v":"%"},{"$f":"IF(Заявка!$L$1=\"Заявка юридического лица\",\"+\",\"-\")","v":"+"},null,"<- Если поручителей больше, добавить строки ниже"]
["Поручительство:",null,{"$f":"Заявка!B63","v":0},{"$nulls":5},{"$f":"IF(Заявка!U63=\"учредитель\",\"- учредитель с долей УФ\",\" \")","v":" "},null,null,{"$f":"IF(I84=\" \",\"0\",\"0\")","v":"0"},{"$f":"IF(L84=\" \",\" \",\"%\")","v":"%"},{"$f":"IF(AND(N83=\"+\",$L$83+$L$84>=50),\"соотв\",\"не соотв\")","v":"соотв"}]
[]
["Залог:"]
["Наименование предмета залога",{"$nulls":3},"Место нахождения предмета залога",null,"Залогодатель",null,null,{"$f":"CONCATENATE(\"Оценочная стоимость, \",G24)","v":"Оценочная стоимость, BYN"},null,"Дисконт, %",{"$f":"CONCATENATE(\"Залоговая стоимость, \",G24)","v":"Залоговая стоимость, BYN"}]
[]
[]
[]
["Коэффициент покрытия задолженности залогом:",{"$nulls":4},{"$f":"(M88+M89+M90)/E24","v":{"$error":"#DIV/0!"}},{"$nulls":7},{"$f":"IF(F91>=100%,\"соотв\",\"не соотв\")","v":{"$error":"#DIV/0!"}},null,"ТОЛЬКО ДЛЯ БЫСТРОГО РЕШЕНИЯ:"]
["Размер задолженности Заявителя по действующим кредитам в ЗАО \"Банк \"Решение\", выданным по упрощенной процедуре микрокредитования (в том числе овердрафты и \"Подзарядка\"):",{"$nulls":7},0,null,null,{"$f":"G24","v":"BYN"},{"$nulls":3},"Заявитель имел овердрафт в Банке в течение 3 месяцев, предшествующих месяцу подачи заявки?"]
[{"$f":"CONCATENATE(\"Размер задолженности Заявителя по действующим кредитным продуктам  \",E18,\":\")","v":"Размер задолженности Заявителя по действующим кредитным продуктам  Кредитование по программе Банка развития:"},{"$nulls":7},0,null,null,{"$f":"L92","v":"BYN"}]
["Наличие признаков негативной информации о способности должника исполнить свои обязательства:",{"$nulls":11},{"$f":"IF(AND(G24=\"BYN\",OR(M74=\"нет\",M74=\"не оценивается\"),M79=\"отсутствует\"),\"нет\",\"да\")","v":"нет"}]
["В соответствии с Постановлением Правления НБ РБ №138 от 28.09.2006 актив будет классифицирован по:",{"$nulls":11},{"$f":"IF(M94=\"да\",\"II группе риска\",\"I группе риска\")","v":"I группе риска"},null,null,"ВАЛЮТА БАЛАНСА"]
["Действие Закона Республики Беларусь от 09.12.1992 «О хозяйственных обществах» не распространяется",{"$nulls":11},{"$f":"IF(AND(A96=\"В соответствии с Законом Республики Беларусь от 09.12.1992 «О хозяйственных обществах» для общества сделка по заключению кредитного договора будет являться:\",Заявка!L1=\"Заявка юридического лица\",ISNUMBER(SEARCH(\"общество\",E7)),M74=\"да\",E24+(E24*E34*E30/12)/P96<=0.2),\"не крупной\",IF(AND(A96=\"В соответствии с Законом Республики Беларусь от 09.12.1992 «О хозяйственных обществах» для общества сделка по заключению кредитного договора будет являться:\",Заявка!L1=\"Заявка юридического лица\",ISNUMBER(SEARCH(\"унитарное\",E7))),\" \",IF(Заявка!L1=\"Заявка индивидуального предпринимателя\",\" \",IF(AND(A96=\"В соответствии с Законом Республики Беларусь от 09.12.1992 «О хозяйственных обществах» для общества сделка по заключению кредитного договора будет являться:\",Заявка!L1=\"Заявка юридического лица\",ISNUMBER(SEARCH(\"общество\",E7)),M74=\"да\",E24+(E24*E34*E30/12)/P96>0.2),\"крупной\",\" \"))))","v":" "},null,null,23]
[{"$f":"IF(AND(A96=\"В соответствии с Законом Республики Беларусь от 09.12.1992 «О хозяйственных обществах» для общества сделка по заключению кредитного договора будет являться:\",M96=\"крупной\"),\"Перед заключением кредитного договора необходимо предоставление протокола общего собрания участников о совершении крупной сделки\",IF(AND(A96=\"В соответствии с Законом Республики Беларусь от 09.12.1992 «О хозяйственных обществах» для общества сделка по заключению кредитного договора будет являться:\",M96=\"не крупной\"),\"Перед заключением кредитного договора необходимо предоставление протокола общего собрания участников о совершении сделки\",\" \"))","v":" "}]
["ВЫВОД:"]
["На основании проанализированных выше показателей Заявитель признается ",{"$nulls":7},{"$f":"IF(AND(E18=\"Подзарядка\",N46=\"соотв\",#REF!=\"соотв\",N80=\"соотв\",N84=\"соотв\"),\"кредитоспособным\",IF(AND(E18=\"Быстрое решение\",N46=\"соотв\",#REF!=\"соотв\",N80=\"соотв\",N84=\"соотв\",P93=\"да\"),\"кредитоспособным\",IF(AND(E18=\"Кредитный экспресс\",N46=\"соотв\",N69=\"соотв\",N80=\"соотв\",N84=\"соотв\",N91=\"соотв\"),\"кредитоспособным\",IF(AND(E18=\"Так просто\",N46=\"соотв\",#REF!=\"соотв\",N80=\"соотв\",N84=\"соотв\"),\"кредитоспособным\",IF(AND(E18=\"Просто авто\",N46=\"соотв\",#REF!=\"соотв\",N80=\"соотв\",N84=\"соотв\"),\"кредитоспособным\",\"некредитоспособным\")))))","v":{"$error":"#REF!"}}]
[]
["Специалист ОЭФ",{"$nulls":8},"И.О. Фамилия"]
["И.о. начальника ОЭФ",{"$nulls":8},"И.О. Фамилия"]
[]
[{"$nulls":6},"ПОСЛЕ ЗАПОЛНЕНИЯ ЗАКЛЮЧЕНИЯ ЗАПОЛНИТЬ ВКЛАДКУ \"РАБОЧИЙ\""]

{"sheet":"Согласие НБ и МВД ЮЛ","index":9,"n_rows":50,"n_cols":82,"rows_kept":50,"merged":[[0,1,0,100],[1,86,1,100],[2,75,2,100],[3,1,3,100],[4,1,4,100],[6,1,6,100],[7,1,7,100],[8,1,8,38],[8,40,8,100],[9,40,9,100],[10,1,10,100],[11,1,11,100],[12,1,12,25],[12,27,12,100],[13,1,13,17],[13,19,13,100],[14,19,14,100],[15,1,15,100],[16,1,16,100],[18,1,18,45],[18,46,18,75],[18,76,18,100],[19,1,19,45],[19,46,19,75],[19,76,19,100],[20,1,20,45],[20,46,20,75],[20,76,20,100],[21,1,21,45],[21,46,21,75],[21,76,21,100],[22,1,22,45],[22,46,22,75],[22,76,22,100],[23,1,23,45],[23,46,23,75],[23,76,23,100],[24,1,24,45],[24,46,24,75],[24,76,24,100],[25,1,25,45],[25,46,25,75],[25,76,25,100],[26,1,26,45],[26,46,26,75],[26,76,26,100],[27,1,27,45],[27,46,27,75],[27,76,27,100],[28,1,28,45],[28,46,28,75],[28,76,28,100],[29,1,29,45],[29,46,29,75],[29,76,29,100],[31,1,31,29],[32,1,32,40],[32,46,32,65],[32,71,32,100],[33,1,33,40],[33,46,33,65],[33,71,33,100],[34,1,34,5],[34,7,34,40],[35,1,35,20],[36,1,36,57],[37,1,37,40],[37,46,37,65],[37,71,37,100],[38,1,38,40],[38,46,38,65],[38,71,38,100],[41,1,41,2],[41,4,41,100],[43,1,43,100],[44,1,44,4],[44,5,44,69],[45,1,45,13],[45,14,45,69],[45,72,45,80],[45,81,45,97],[46,1,46,97],[48,1,48,5],[48,7,48,16],[48,39,48,58],[48,64,48,93],[49,39,49,58],[49,64,49,93]]}
[null,"Приложение 1.8  к Положению о порядке предоставления субъектам хозяйствования Кредитных продуктов категории \"Экспресс\" в ЗАО \"Банк \"Решение\""]
[]
[]
[null,"СОГЛАСИЕ"]
[null,"на предоставление кредитного отчета"]
[]
[]
[null,"(полное наименование юридического лица, иностранной организации, не являющейся юридическим лицом)"]
[null,"(далее – Субъект кредитной истории) в лице"]
[{"$nulls":40},"(должность, фамилия,"]
[]
[null,"собственное имя, отчество (если таковое имеется))"]
[null,"действующего на основании",{"$nulls":25},"Устава"]
[null,"выражает согласие",{"$nulls":17},"Закрытому акционерному обществу \"Банк \"Решение\""]
[{"$nulls":19},"(указывается пользователь кредитной истории, которому дается согласие)"]
[null,"(далее – Пользователь кредитной истории) на предоставление ему Национальным банком Республики Беларусь кредитного отчета Субъекта кредитной истории."]
[null,"          Настоящее согласие действует в течение трех месяцев с даты его оформления, а в случае заключения в течение трех месяцев с даты его оформления кредитной сделки между Пользователем кредитной истории и Субъектом кредитной истории – в течение всего срока действия указанной кредитной сделки до ее прекращения в установленном законодательством порядке. Согласие на предоставление кредитного отчета, оформленное в течение срока действия кредитной сделки, заключенной между Пользователем кредитной истории и Субъектом кредитной истории, действует в течение всего срока действия указанной кредитной сделки до ее прекращения в установленном законодательством порядке."]
[]
[null,"Сведения о Субъекте кредитной истории*",{"$nulls":44},"Действующие",{"$nulls":29},"Прежние"]
[null,"Полное наименование",{"$nulls":44},{"$f":"B7","v":0}]
[null,"Регистрационный номер в Едином государственном регистре юридических лиц и индивидуальных предпринимателей (для юридического лица Республики Беларусь)",{"$nulls":74},"X"]
[null,"Учетный номер плательщика",{"$nulls":44},{"$f":"AU21","v":0}]
[null,"Сведения из документа, подтверждающего статус иностранного юридического лица и иностранной организации, не являющейся юридическим лицом по иностранному праву (юридическим лицом Республики Беларусь не заполняется):",{"$nulls":44},"X",{"$nulls":29},"X"]
[null,"дата создания (регистрации) ",{"$nulls":74},"X"]
[null,"номер создания (регистрации)",{"$nulls":74},"X"]
[null,"страна места нахождения (регистрации)",{"$nulls":74},"X"]
[null,"Сведения о реорганизации (для юридического лица Республики Беларусь, возникшего в результате реорганизации одного или нескольких юридических лиц):",{"$nulls":44},"X",{"$nulls":29},"X"]
[null,"форма реорганизации (слияние, разделение, преобразование, присоединение)                                                (нужное подчеркнуть) ",{"$nulls":74},"X"]
[null,"дата реорганизации ",{"$nulls":74},"X"]
[null,"полное наименование реорганизованного(ых) юридического(их) лица (лиц)",{"$nulls":44},"регистрационный номер в Едином государственном регистре юридических лиц и индивидуальных предпринимателей",{"$nulls":29},"учетный номер плательщика"]
[]
[null,"За Субъекта кредитной истории"]
[]
[null,"(должность)",{"$nulls":44},"(подпись)",{"$nulls":24},"(инициалы, фамилия)"]
[null,"Дата"]
[null,"М.П."]
[null,"Отметка лица, в присутствии которого оформлено согласие:"]
[]
[null,"(должность)",{"$nulls":44},"(подпись)",{"$nulls":24},"(инициалы, фамилия)"]
[]
[]
[null,"*",null,null,"Если сведения о Субъекте кредитной истории отсутствуют, в графе делается пометка \"–\"."]
[]
[null,"Согласие  (уникальный номер: _________________________)"]
[null,"Я,"]
[null,"директор",{"$nulls":70},"УНП:",{"$nulls":8},{"$f":"AU22","v":0}]
[null,"выражаю согласие на представление сведений об организации из информационных ресурсов, находящихся в ведении Министерства внутренних дел Республики Беларусь и Национального банка Республики Беларусь."]
[]
[null,"Дата",{"$nulls":5},{"$f":"H35","v":"00:00:00"},{"$nulls":56},{"$f":"BT33","v":0}]
[{"$nulls":39},"(подпись)",{"$nulls":24},"(инициалы, фамилия)"]

{"sheet":"Согласие НБ МВД директор","index":10,"n_rows":16,"n_cols":183,"rows_kept":16,"merged":[[0,1,1,99],[2,75,2,100],[4,1,4,100],[5,1,5,100],[7,4,7,95],[8,1,8,35],[8,36,8,95],[9,1,9,19],[9,21,9,48],[9,49,9,58],[9,59,9,65],[9,66,9,75],[9,76,9,95],[10,1,10,100],[12,1,12,9],[12,11,12,28],[12,38,12,55],[12,67,12,96],[13,38,13,55],[13,67,13,96]]}
[null,"Приложение 1.3  к Положению о порядке предоставления субъектам хозяйствования Кредитных продуктов категории \"Экспресс\" в ЗАО \"Банк \"Решение\""]
[]
[]
[]
[null,"СОГЛАСИЕ (уникальный номер: _______________________)"]
[]
[]
[null,"Я,                                                                      ",null,null,"ФИО директора",{"$nulls":91},","]
[null,"идентификационный номер:",{"$nulls":94},","]
[null,"документ:",{"$nulls":19},"паспорт",{"$nulls":27},"серия:",{"$nulls":16},"номер:",{"$nulls":29},","]
[null,"выражаю согласие на предоставление сведений обо мне из информационных   ресурсов,    находящихся   в  ведении    Министерства   внутренних  дел Республики Беларусь и Национального банка Республики Беларусь."]
[]
[null,"Дата"]
[{"$nulls":38},"подпись",{"$nulls":28},"инициалы, фамилия"]
[{"$nulls":182},"паспорт"]
[{"$nulls":182},"вид на жительство"]

{"sheet":"Анкета поручителя","index":11,"n_rows":41,"n_cols":30,"rows_kept":41,"merged":[[0,8,0,36],[1,0,1,36],[3,0,3,10],[3,11,3,34],[4,6,4,34],[5,6,5,34],[7,6,7,34],[11,1,11,5],[11,7,11,34],[12,1,12,5],[12,7,12,34],[14,18,14,21],[14,31,14,34],[16,6,16,23],[16,25,16,34],[17,6,17,23],[17,25,17,34],[19,6,19,34],[29,6,29,13],[29,17,29,24],[30,6,30,13],[30,17,30,24],[33,18,33,27],[33,29,33,34],[34,12,34,16],[34,18,34,27],[34,29,34,35],[39,0,41,10],[39,18,39,27],[39,29,39,34],[40,11,40,17],[40,18,40,27],[40,29,40,35]]}
[{"$nulls":8},"Анкета поручителя/залогодателя для физического лица / индивидуального предпринимателя"]
["Уважаемый клиент! Просим Вас проверить, что заполнены все реквизиты Анкеты. В случае отстутствия информации просим указать в соответствующем реквизите «Нет». "]
[]
["Настоящим выражаю готовность выступить поручителем/залогодателем за"]
[{"$nulls":6},"наименование лица, за которого поручаюсь"]
["Фамилия"]
[]
["Имя, Отчество"]
[]
["АДРЕС ПРОЖИВАНИЯ (если отличается от регистрации)"]
[]
[]
[null,"индекс",{"$nulls":5},"Область, район, город, улица, дом, квартира"]
[]
[]
["МЕСТО РАБОТЫ",{"$nulls":7},"являюсь индивидуальным предпринимателем"]
["Организация"]
[{"$nulls":6},"наименование или \"безработный\" или \"пенсионер\"",{"$nulls":18},"телефон организации"]
[]
["Должность"]
[]
[]
[]
[]
[]
[null,"Не имею непогашенных судимостей",{"$nulls":13},"Не являюсь обвиняемым, подозреваемым по каким-либо расследованиям"]
[]
[]
["КОНТАКТНАЯ ИНФОРМАЦИЯ"]
[{"$nulls":5},"дом. тел.",{"$nulls":10},"моб. тел."]
[{"$nulls":5},"раб. тел.",{"$nulls":10},"Е-mail"]
[]
[]
["Поручитель / Залогодатель"]
[{"$nulls":12},"подпись",{"$nulls":5},"ФИО",{"$nulls":10},"дата"]
[]
[]
[{"$nulls":14},"МП (в случае наличия печати)"]
[]
["Правоспособность и дееспособность поручителя подтверждается "]
[{"$nulls":11},"подпись сотрудника Банка",{"$nulls":6},"ФИО сотрудника Банка",{"$nulls":10},"дата"]

{"sheet":"Согласие НБ и МВД ФЛ","index":12,"n_rows":42,"n_cols":99,"rows_kept":42,"merged":[[0,1,0,100],[1,86,1,100],[2,1,2,100],[3,1,3,100],[5,1,5,45],[5,46,5,75],[5,76,5,100],[6,1,6,45],[6,46,6,75],[6,76,6,100],[7,1,7,45],[7,46,7,75],[7,76,7,100],[8,1,8,45],[8,46,8,75],[8,76,8,100],[9,1,9,45],[9,46,9,75],[9,76,9,100],[10,1,10,45],[10,46,10,75],[10,76,10,100],[11,1,11,45],[11,46,11,75],[11,76,11,100],[12,1,12,45],[12,46,12,75],[12,76,12,100],[13,1,13,45],[13,46,13,75],[13,76,13,100],[14,1,14,45],[14,46,14,75],[14,76,14,100],[15,1,15,45],[15,46,15,75],[15,76,15,100],[16,1,16,45],[16,46,16,75],[16,76,16,100],[18,6,18,22],[18,24,18,100],[19,24,19,100],[21,1,21,100],[22,1,22,100],[24,1,24,38],[24,44,24,63],[24,71,24,100],[25,24,25,43],[25,44,25,63],[25,71,25,100],[26,1,26,5],[26,7,26,40],[29,1,29,40],[29,46,29,65],[29,71,29,100],[30,1,30,40],[30,46,30,65],[30,71,30,100],[33,1,33,2],[33,4,33,100],[35,1,35,100],[36,1,36,4],[36,5,36,39],[36,41,36,68],[36,69,36,97],[37,1,37,19],[37,21,37,48],[37,49,37,58],[37,59,37,65],[37,66,37,75],[37,76,37,97],[38,1,38,97],[40,1,40,5],[40,7,40,16],[40,39,40,58],[40,64,40,93],[41,39,41,58],[41,64,41,93]]}
[null,"Приложение 1.9  к Положению о порядке предоставления субъектам хозяйствования Кредитных продуктов категории \"Экспресс\" в ЗАО \"Банк \"Решение\""]
[]
[null,"СОГЛАСИЕ"]
[null,"на предоставление кредитного отчета"]
[]
[null,"Сведения о субъекте кредитной истории*",{"$nulls":44},"Действующие",{"$nulls":29},"Прежние"]
[null,"Фамилия "]
[null,"Собственное имя "]
[null,"Отчество (если таковое имеется) "]
[null,"Гражданство"]
[null,"Пол",{"$nulls":74},"X"]
[null,"Идентификационный номер (для гражданина Республики Беларусь, иностранного гражданина или лица без гражданства, имеющих вид на жительство в Республике Беларусь)"]
[null,"Число, месяц, год рождения"]
[null,"Сведения о документе, удостоверяющем личность (для иностранного гражданина или лица без гражданства, не имеющих вида на жительство в Республике Беларусь):",{"$nulls":44},"Х",{"$nulls":29},"Х"]
[null,"наименование",{"$nulls":44},"-"]
[null,"дата выдачи",{"$nulls":44},"-"]
[null,"серия и номер",{"$nulls":44},"-"]
[]
[{"$nulls":6},"Выражаю согласие",{"$nulls":17},"Закрытому акционерному обществу \"Банк \"Решение\""]
[{"$nulls":24},"(указывается пользователь кредитной истории, которому дается согласие)"]
[]
[null,"(далее – Пользователь кредитной истории) на предоставление ему Национальным банком Республики Беларусь моего кредитного отчета."]
[null,"          Настоящее согласие действует в течение трех месяцев с даты его оформления, а в случае заключения в течение трех месяцев с даты его оформления кредитной сделки между Пользователем кредитной истории и субъектом кредитной истории – в течение всего срока действия указанной кредитной сделки до ее прекращения в установленном законодательством порядке. Согласие на предоставление кредитного отчета, оформленное в течение срока действия кредитной сделки, заключенной между Пользователем кредитной истории и субъектом кредитной истории, действует в течение всего срока действия указанной кредитной сделки до ее прекращения в установленном законодательством порядке."]
[]
[null,"Субъект кредитной истории:"]
[{"$nulls":44},"(подпись)",{"$nulls":26},"(инициалы, фамилия)"]
[null,"Дата"]
[]
[null,"Отметка лица, в присутствии которого оформлено согласие:"]
[]
[null,"(должность)",{"$nulls":44},"(подпись)",{"$nulls":24},"(инициалы, фамилия)"]
[]
[]
[null,"*",null,null,"Если сведения о субъекте кредитной истории отсутствуют, в графе делается пометка \"–\"."]
[]
[null,"Согласие  (уникальный номер: __________________________________)"]
[null,"Я,",{"$nulls":39},"идентификационный номер",{"$nulls":56},","]
[null,"документ:",{"$nulls":19},"вид на жительство",{"$nulls":27},"серия:",{"$nulls":16},"номер:",{"$nulls":31},","]
[null,"выражаю согласие на представление сведений обо мне из информационных ресурсов, находящихся в ведении Министерства внутренних дел Республики Беларусь и Национального банка Республики Беларусь."]
[]
[null,"Дата"]
[{"$nulls":39},"(подпись)",{"$nulls":24},"(инициалы, фамилия)"]

{"sheet":"Анкета поруч-залог ЮЛ","index":13,"n_rows":90,"n_cols":30,"rows_kept":90,"merged":[[0,0,0,36],[1,8,1,36],[2,0,2,36],[4,0,4,10],[4,11,4,34],[5,6,5,34],[6,0,6,34],[8,1,8,33],[10,0,10,34],[12,1,12,5],[12,7,12,34],[13,1,13,5],[13,7,13,34],[14,1,14,34],[17,0,17,34],[19,0,19,35],[22,0,22,35],[23,10,23,34],[25,6,25,13],[25,17,25,24],[28,18,28,27],[28,29,28,34],[29,12,29,16],[29,18,29,27],[29,29,29,35]]}
["Приложение 1.6  к Положению о порядке предоставления субъектам хозяйствования Кредитных продуктов категории \"Экспресс\" в ЗАО \"Банк \"Решение\""]
[{"$nulls":8},"Анкета залогодателя для юридического лица"]
["Уважаемый клиент! Просим Вас проверить, что заполнены все реквизиты Анкеты. В случае отстутствия информации просим указать в соответствующем реквизите «Нет». "]
[]
["Настоящим выражаю готовность выступить залогодателем за"]
[{"$nulls":6},"наименование лица, за которого поручаюсь / выступаю залогодателем"]
["Полное наименованеие юридического лица"]
[]
[]
[]
["Юридический адрес"]
[]
[]
[null,"индекс",{"$nulls":5},"Область, район, населенный пункт, улица, дом, офис"]
[]
[]
[]
[]
[]
["Сообщаем, что представили для подтверждения своей правоспособности и полномочий органов управления, представителей учредительные и иные документы в контрольном состоянии (с учетом всех изменений и дополнений) на дату заполнения Заявки. Органы управления избраны согласно установленной процедуре, являются легитимными, корпоративных споров между участниками нет. "]
[]
[]
["Подтверждаем, что отсутствуют ограничения на совершение сделок, в том числе отсутствуют ограничения полномочий органов управления и представителей, помимо прямо предусмотренных представленными в ЗАО «Банк «Решение» учредительными документами.  "]
["КОНТАКТНОЕ ЛИЦО"]
[]
[{"$nulls":5},"моб. тел.",{"$nulls":10},"Е-mail"]
[]
[]
["Залогодатель"]
[{"$nulls":12},"подпись",{"$nulls":5},"ФИО",{"$nulls":10},"дата"]
[]
[{"$nulls":18},"М.П."]
{"$rows_empty":56}
["Подтверждаем, что отсутствуют ограничения на совершение сделок, в том числе отсутствуют ограничения полномочий органов управления и представителей"]
["Сообщаем, что существуют ограничения на совершение сделок с ЗАО «Банк «Решение» (в том числе ограничения полномочий органов управления и представителей), предусмотренные в следующих прилагаемых документах: "]

{"sheet":"залоговая опись авто","index":14,"n_rows":52,"n_cols":9,"rows_kept":52,"merged":[[1,3,1,4],[1,5,1,6],[5,0,5,6],[7,0,7,1],[7,2,7,6],[17,0,17,2],[17,3,17,6],[19,0,19,2],[29,1,29,3],[37,1,37,5],[38,1,38,7],[39,1,39,5],[42,1,42,5],[43,1,43,5],[46,3,46,4],[47,3,47,4],[49,3,49,4],[50,3,50,4]]}
[{"$nulls":5},"ЗАПОЛНИТЕ, ПОЖАЛУЙСТА РОЗОВЫЕ ЯЧЕЙКИ"]
[{"$nulls":3},"Залогодатель:"]
[]
[]
[]
["Опись предоставляемых в залог транспортных средств и автотехники"]
[]
[{"$f":"IF(F2=\"физ.лицо/ИП\",\"ФИО залогодателя:\",\"Наимненование залогодателя:\")","v":"Наимненование залогодателя:"}]
[]
["Наименование и марка автотехники","Регистра-ционный знак*","Номер кузова (шасси)","Год выпуска","Объем двигателя, л","Тип двигателя","Трансмиссия",{"$f":"IF(F2=\"юр.лицо\",\"Первоначальная стоимость, бел. руб.\",\" \")","v":" "},{"$f":"IF(F2=\"юр.лицо\",\"Балансовая (остаточная) стоимость за последний отчетный месяц, бел. руб.\",\" \")","v":" "}]
[1,2,3,4,5,6,7,{"$f":"IF(F2=\"юр.лицо\",\"8\",\" \")","v":" "},{"$f":"IF(F2=\"юр.лицо\",\"9\",\" \")","v":" "}]
[]
[]
[]
[]
["*Регистрационный знак может не указываться, если на момент составления настоящей Описи он неизвестен (автотехника не зарегистрирована в ГАИ)"]
[]
["Место хранения объектов (во внеэксплуатационный период):"]
[]
["Предлагаемое в залог имущество: "]
[null,"Ранее заложено в ЗАО «Банк «Решение»",{"$nulls":3},"Передано в доверительное управление"]
[null,"Ранее заложено в ином банке",{"$nulls":3},"Находится в споре или под арестом"]
[null,"Сдано в аренду (лизинг)",{"$nulls":3},"Иное обременение:  "]
[]
["Сведения о вещном праве на имущество:"]
[null,"Право собственности",{"$nulls":3},{"$f":"IF(F2=\"юр.лицо\",\"Право хозяйственного ведения\",\"Иное право:\")","v":"Иное право:"}]
[null,{"$f":"IF(F2=\"юр.лицо\",\"Право оперативного управления\",\" \")","v":" "},{"$nulls":3},{"$f":"IF(F2=\"юр.лицо\",\"Иное право:\",\" \")","v":" "}]
[]
["Сведения об оплате:"]
[null,"Полностью оплачено"]
[null,"Оплачено частично в размере"]
[null,"Приобретено на территории Республики Беларусь"]
[null,"Приобретено за пределами Республики Беларусь, таможенные пошлины и НДС уплачены полностью"]
[null,"Приобретено за пределами Республики Беларусь, таможенные пошлины и НДС не уплачены в сумме "]
[null,null,"на основании"]
[]
[{"$f":"IF(F2=\"юр.лицо\",\" \",\"Сведения о режиме собственности предлагаемого в залог имущества:\")","v":"Сведения о режиме собственности предлагаемого в залог имущества:"}]
[null,{"$f":"IF(F2=\"юр.лицо\",\" \",\"В режиме совместной собственности с бывшим супругом(ой)\")","v":"В режиме совместной собственности с бывшим супругом(ой)"}]
[null,{"$f":"IF(F2=\"юр.лицо\",\" \",\"В режиме совместной собственности с супругом(ой), с которым(ой) в настоящее время состою в браке\")","v":"В режиме совместной собственности с супругом(ой), с которым(ой) в настоящее время состою в браке"}]
[null,{"$f":"IF(F2=\"юр.лицо\",\" \",\"В режиме личной собственности\")","v":"В режиме личной собственности"}]
[]
["С примерной формой предполагаемого к заключению договора залога ознакомлен и согласен:"]
[null,"Да"]
[null,"Ознакомлен, протокол разногласий прилагается"]
[]
[]
[{"$f":"IF(F2=\"юр.лицо\",\"Подпись руководителя залогодателя\",\"Подпись залогодателя\")","v":"Подпись залогодателя"},{"$nulls":4},"Дата"]
[{"$nulls":3},"расшифровка"]
[]
[{"$f":"IF(F2=\"юр.лицо\",\"Подпись гл.бухгалтера залогодателя\",\" \")","v":" "}]
[{"$nulls":3},{"$f":"IF(F2=\"юр.лицо\",\"расшифровка\",\" \")","v":" "}]
[null,null,{"$f":"IF(F2=\"юр.лицо\",\"М.П.\",\" \")","v":" "}]

{"sheet":"залоговая опись недвиж","index":15,"n_rows":42,"n_cols":9,"rows_kept":42,"merged":[[1,3,1,4],[1,5,1,6],[5,0,5,6],[7,0,7,1],[7,2,7,6],[9,4,9,6],[10,4,10,6],[11,4,11,6],[12,4,12,6],[13,4,13,6],[14,4,14,6],[16,0,16,2],[25,0,25,7],[30,0,30,7],[31,1,31,5],[32,1,32,7],[33,1,33,5],[36,3,36,4],[37,3,37,4],[39,3,39,4],[40,3,40,4]]}
[{"$nulls":5},"ЗАПОЛНИТЕ, ПОЖАЛУЙСТА РОЗОВЫЕ ЯЧЕЙКИ"]
[{"$nulls":3},"Залогодатель:"]
[]
[]
[]
["Опись предоставляемых в залог объектов недвижимости"]
[]
[{"$f":"IF(F2=\"физ.лицо/ИП\",\"ФИО залогодателя:\",\"Наимненование залогодателя:\")","v":"Наимненование залогодателя:"}]
[]
["Наименование объекта","Адрес","Площадь, м2","Инвентарный номер (кадастровый номер)","Право на земельный участок, который относится к соответствующему объекту",null,null,{"$f":"IF(F2=\"юр.лицо\",\"Первоначальная стоимость, бел. руб.\",\" \")","v":" "},{"$f":"IF(F2=\"юр.лицо\",\"Балансовая (остаточная) стоимость за последний отчетный месяц, бел. руб.\",\" \")","v":" "}]
[1,2,3,4,5,null,null,{"$f":"IF(F2=\"юр.лицо\",\"6\",\" \")","v":" "},{"$f":"IF(F2=\"юр.лицо\",\"7\",\" \")","v":" "}]
[]
[]
[]
[]
[]
["Предлагаемое в залог имущество: "]
[null,"Ранее заложено в ЗАО «Банк «Решение»",{"$nulls":3},"Передано в доверительное управление"]
[null,"Ранее заложено в ином банке",{"$nulls":3},"Находится в споре или под арестом"]
[null,"Сдано в аренду (лизинг)",{"$nulls":3},"Иное обременение:  "]
[]
["Сведения о вещном праве на имущество:"]
[null,"Право собственности",{"$nulls":3},{"$f":"IF(F2=\"юр.лицо\",\"Право хозяйственного ведения\",\"Иное право:\")","v":"Иное право:"}]
[null,{"$f":"IF(F2=\"юр.лицо\",\"Право оперативного управления\",\" \")","v":" "},{"$nulls":3},{"$f":"IF(F2=\"юр.лицо\",\"Иное право:\",\" \")","v":" "}]
[]
["Сведения о договоре аренды земельного участка (в случае, если у залогодателя имеется право аренды либо доля в праве аренды соответствующего земельного участка):"]
[null,"По договору аренды земельного участка (доли в праве аренды земельного участка) взималась* плата за право заключения договора аренды "]
[null,"По договору аренды земельного участка (доли в праве аренды земельного участка) не взималась* плата за право заключения договора аренды"]
[null," * Взимание платы учитывается не зависимо от того, взималась ли она с залогодателя или с иного первого арендатора участка"]
[]
["Сведения о наличии принадлежащих Залогодателю и не предоставляемых в залог (т.е. не указанных в таблице выше) зарегистрированных объектов недвижимого имущества (строений, изолированных помещений) на том же земельном участке:"]
[null,"На том же земельном участке присутствуют следующие объекты недвижимости, не предоставляемые в залог:"]
[]
[null,"На том же земельном участке объекты недвижимости, не предоставляемые в залог, отсутствуют"]
[]
[]
[{"$f":"IF(F2=\"юр.лицо\",\"Подпись руководителя залогодателя\",\"Подпись залогодателя\")","v":"Подпись залогодателя"},{"$nulls":4},"Дата"]
[{"$nulls":3},"расшифровка"]
[]
[{"$f":"IF(F2=\"юр.лицо\",\"Подпись гл.бухгалтера залогодателя\",\" \")","v":" "}]
[{"$nulls":3},{"$f":"IF(F2=\"юр.лицо\",\"расшифровка\",\" \")","v":" "}]
[null,null,{"$f":"IF(F2=\"юр.лицо\",\"М.П.\",\" \")","v":" "}]

{"sheet":"акт оценки авто","index":16,"n_rows":72,"n_cols":8,"rows_kept":72,"merged":[[0,1,0,4],[6,2,6,4],[7,2,7,4],[12,2,12,4],[21,2,21,4],[22,2,22,4],[24,2,24,4],[26,1,26,4],[48,3,48,4],[49,3,49,4],[51,1,51,2],[61,1,61,2],[71,1,71,2]]}
[null,"АКТ №б/н",{"$nulls":3},{"$f":"TEXT(D2,\"ДД.ММ.ГГГГ\")","v":"дата оценки"}]
[null,null,"о внутренней оценке имущества от ","дата оценки",null,{"$f":"YEAR(D2)","v":{"$error":"#VALUE!"}}]
[{"$nulls":5},{"$f":"F2+1","v":{"$error":"#VALUE!"}},{"$f":"CONCATENATE(\"01.01.\",F3)","v":{"$error":"#VALUE!"}},{"$f":"(G3-D2)/365","v":{"$error":"#VALUE!"}}]
[null,"Исполнитель оценки:","полное наименование залогодателя",null,null,{"$f":"F2+2","v":{"$error":"#VALUE!"}},{"$f":"CONCATENATE(\"01.01.\",F4)","v":{"$error":"#VALUE!"}}]
[null,"Цель оценки:","для передачи в залог ЗАО «Банк «Решение».",null,null,{"$f":"F2+3","v":{"$error":"#VALUE!"}},{"$f":"CONCATENATE(\"01.01.\",F5)","v":{"$error":"#VALUE!"}}]
[null,"Дата оценки: ",{"$f":"D2","v":"дата оценки"},null,null,{"$f":"F2+4","v":{"$error":"#VALUE!"}},{"$f":"CONCATENATE(\"01.01.\",F6)","v":{"$error":"#VALUE!"}}]
[null,"Тип имущества:",{"$nulls":3},{"$f":"F2+5","v":{"$error":"#VALUE!"}},{"$f":"CONCATENATE(\"01.01.\",F7)","v":{"$error":"#VALUE!"}}]
[null,"Объект оценки: ",{"$f":"CONCATENATE('залоговая опись авто'!A12,\", номер кузова (шасси) \",'залоговая опись авто'!C12,\", рег.знак \",'залоговая опись авто'!B12)","v":", номер кузова (шасси) , рег.знак "}]
[null,"Год выпуска объекта оценки:",{"$f":"'залоговая опись авто'!D12","v":0}]
[null,"Передается ли объект оценки в краткосрочную аренду / используется ли под такси / учебный транспорт либо планируется к такой передаче?"]
[null,"Валюта оценки:"]
[null,"Метод оценки: ","рыночный (сравнительный)."]
[null,"Данные, используемые при оценке: ","цены предложений аналогичных объектов, схожих с объектом оценки по основным характеристикам."]
[null,"Курсы валют НБ РБ на дату оценки:","1 USD","1 EUR","1 RUB"]
[]
[null,"Расчет стоимости объекта оценки:"]
[null,"Параметры","Аналог 1","Аналог 2","Аналог 3"]
[null,"Наименование "]
[null,{"$f":"CONCATENATE(\"Стоимость в \",C11,\", с НДС\")","v":"Стоимость в , с НДС"}]
[null,{"$f":"CONCATENATE(\"Стоимость в \",C11,\", без НДС\")","v":"Стоимость в , без НДС"},{"$f":"ROUND(C19/1.2,2)","v":0},{"$f":"ROUND(D19/1.2,2)","v":0},{"$f":"ROUND(E19/1.2,2)","v":0}]
[null,"Адрес объявления "]
[null,{"$f":"CONCATENATE(\"Рыночная (оценочная) стоимость объекта оценки в \",C11,\", без НДС\")","v":"Рыночная (оценочная) стоимость объекта оценки в , без НДС"},{"$f":"AVERAGE(C20:E20)","v":0}]
[null,{"$f":"CONCATENATE(\"Рыночная (оценочная) стоимость объекта оценки в \",C11,\" с учетом округления, без НДС\")","v":"Рыночная (оценочная) стоимость объекта оценки в  с учетом округления, без НДС"},{"$f":"IF(C22<=99999.99,ROUND(C22,-2),ROUND(C22,-3))","v":0}]
[]
[null,"Результат внутренней оценки: ",{"$f":"CONCATENATE(\"оценочная стоимость объекта оценки для целей залога по состоянию на \",F1,\" составляет \",C23,\" (\",Лист2!A59,\") \",IF('акт оценки авто'!C11=\"BYN\",\"белорусских рублей\",IF('акт оценки авто'!C11=\"USD\",\"долларов США\",IF('акт оценки авто'!C11=\"EUR\",\"евро\",\"российских рублей\"))),\" без НДС.\")","v":"оценочная стоимость объекта оценки для целей залога по состоянию на дата оценки составляет 0 () российских рублей без НДС."}]
[]
[null,{"$f":"CONCATENATE(\"Стоимость имущества с учетом ежегодного прогнозного снижения стоимости, \",IF('акт оценки авто'!C11=\"BYN\",\"белорусских рублей\",IF('акт оценки авто'!C11=\"USD\",\"долларов США\",IF('акт оценки авто'!C11=\"EUR\",\"евро\",\"российских рублей\"))),\" без НДС:\")","v":"Стоимость имущества с учетом ежегодного прогнозного снижения стоимости, российских рублей без НДС:"}]
["№\nп.п.","Предмет залога",{"$f":"CONCATENATE(\"Оценочная стоимость с 01.01.\",F2+1)","v":{"$error":"#VALUE!"}},{"$f":"CONCATENATE(\"Оценочная стоимость с 01.01.\",F2+2)","v":{"$error":"#VALUE!"}},{"$f":"CONCATENATE(\"Оценочная стоимость с 01.01.\",F2+3)","v":{"$error":"#VALUE!"}}]
["1 ",{"$f":"C8","v":", номер кузова (шасси) , рег.знак "},{"$f":"IF(AND(C7=\"легковые автомобили\",F3-C9<5,C10=\"нет\"),C23*(1-0.05*H3),IF(AND(C7=\"легковые автомобили\",F3-C9<10,C10=\"нет\"),C23*(1-0.07*H3),IF(AND(C7=\"легковые автомобили\",F3-C9<15,C10=\"нет\"),C23*(1-0.1*H3),IF(AND(C7=\"легковые автомобили\",F3-C9<5,C10=\"да\"),C23*(1-0.08*H3),IF(AND(C7=\"легковые автомобили\",F3-C9<10,C10=\"да\"),C23*(1-0.1*H3),IF(AND(C7=\"легковые автомобили\",F3-C9<15,C10=\"да\"),C23*(1-0.13*H3),IF(AND(C7=\"мотоциклы\",C10=\"нет\",F3-C9<5),C23*(1-0.07*H3),IF(AND(C7=\"мотоциклы\",C10=\"нет\",F3-C9<10),C23*(1-0.1*H3),IF(AND(C7=\"мотоциклы\",C10=\"да\",F3-C9<5),C23*(1-0.1*H3),IF(AND(C7=\"мотоциклы\",C10=\"да\",F3-C9<10),C23*(1-0.13*H3),IF(AND(C7=\"грузовые автомобили, прицепы и полуприцепы, автобусы\",F3-C9<4,C10=\"нет\"),C23*(1-0.05*H3),IF(AND(C7=\"грузовые автомобили, прицепы и полуприцепы, автобусы\",F3-C9<10,C10=\"нет\"),C23*(1-0.07*H3),IF(AND(C7=\"грузовые автомобили, прицепы и полуприцепы, автобусы\",F3-C9<20,C10=\"нет\"),C23*(1-0.1*H3),IF(AND(C7=\"грузовые автомобили, прицепы и полуприцепы, автобусы\",F3-C9<4,C10=\"да\")*C23*(1-0.08*H3),IF(AND(C7=\"грузовые автомобили, прицепы и полуприцепы, автобусы\",F3-C9<10,C10=\"да\"),C23*(1-0.1*H3),IF(AND(C7=\"грузовые автомобили, прицепы и полуприцепы, автобусы\",F3-C9<20,C10=\"да\"),C23*(1-0.13*H3),IF(AND(C7=\"тракторы (прицепы к ним), самоходные сельскохозяйственные мелиоративные и дорожно-строительные машины, машины, изготовленные на базе тракторов, спецтехника\",C10=\"нет\",F3-C9<4),C23*(1-0.07*H3),IF(AND(C7=\"тракторы (прицепы к ним), самоходные сельскохозяйственные мелиоративные и дорожно-строительные машины, машины, изготовленные на базе тракторов, спецтехника\",C10=\"нет\",F3-C9<10,F3-C9>=4),C23*(1-0.1*H3),IF(AND(C7=\"тракторы (прицепы к ним), самоходные сельскохозяйственные мелиоративные и дорожно-строительные машины, машины, изготовленные на базе тракторов, спецтехника\",C10=\"нет\",F3-C9<20,F3-C9>=10),C23*(1-0.13*H3),IF(AND(C7=\"тракторы (прицепы к ним), самоходные сельскохозяйственные мелиоративные и дорожно-строительные машины, машины, изготовленные на базе тракторов, спецтехника\",C10=\"да\",F3-C9<4),C23*(1-0.1*H3),IF(AND(C7=\"тракторы (прицепы к ним), самоходные сельскохозяйственные мелиоративные и дорожно-строительные машины, машины, изготовленные на базе тракторов, спецтехника\",C10=\"да\",F3-C9<10,F3-C9>=4),C23*(1-0.13*H3),IF(AND(C7=\"тракторы (прицепы к ним), самоходные сельскохозяйственные мелиоративные и дорожно-строительные машины, машины, изготовленные на базе тракторов, спецтехника\",C10=\"да\",F3-C9<20,F3-C9>=10),C23*(1-0.17*H3),IF(AND(C7=\"воздушный и водный транспорт\",C10=\"нет\",F3-C9<10),C23*(1-0.07*H3),IF(AND(C7=\"воздушный и водный транспорт\",C10=\"нет\",F3-C9>=10),C23*(1-0.1*H3),IF(AND(C7=\"воздушный и водный транспорт\",C10=\"да\",F3-C9<10),C23*(1-0.1*H3),IF(AND(C7=\"воздушный и водный транспорт\",C10=\"да\",F3-C9>=10),C23*(1-0.13*H3)))))))))))))))))))))))))))","v":{"$error":"#VALUE!"}},{"$f":"IF(AND(C7=\"легковые автомобили\",F4-C9<5,C10=\"нет\"),C29*0.95,IF(AND(C7=\"легковые автомобили\",F4-C9<10,C10=\"нет\"),C29*0.93,IF(AND(C7=\"легковые автомобили\",F4-C9<15,C10=\"нет\"),C29*0.9,IF(AND(C7=\"легковые автомобили\",F4-C9<5,C10=\"да\"),C29*0.92,IF(AND(C7=\"легковые автомобили\",F4-C9<10,C10=\"да\"),C29*0.9,IF(AND(C7=\"легковые автомобили\",F4-C9<15,C10=\"да\"),C29*0.87,IF(AND(C7=\"мотоциклы\",C10=\"нет\",F4-C9<5),C29*0.93,IF(AND(C7=\"мотоциклы\",C10=\"нет\",F4-C9<10),C29*0.9,IF(AND(C7=\"мотоциклы\",C10=\"да\",F4-C9<5),C29*0.9,IF(AND(C7=\"мотоциклы\",C10=\"да\",F4-C9<10),C29*0.87,IF(AND(C7=\"грузовые автомобили, прицепы и полуприцепы, автобусы\",F4-C9<4,C10=\"нет\"),C29*0.95,IF(AND(C7=\"грузовые автомобили, прицепы и полуприцепы, автобусы\",F4-C9<10,C10=\"нет\"),C29*0.93,IF(AND(C7=\"грузовые автомобили, прицепы и полуприцепы, автобусы\",F4-C9<20,C10=\"нет\"),C29*0.9,IF(AND(C7=\"грузовые автомобили, прицепы и полуприцепы, автобусы\",F4-C9<4,C10=\"да\"),C29*0.92,IF(AND(C7=\"грузовые автомобили, прицепы и полуприцепы, автобусы\",F4-C9<10,C10=\"да\"),C29*0.9,IF(AND(C7=\"грузовые автомобили, прицепы и полуприцепы, автобусы\",F4-C9<20,C10=\"да\"),C29*0.87,IF(AND(C7=\"тракторы (прицепы к ним), самоходные сельскохозяйственные мелиоративные и дорожно-строительные машины, машины, изготовленные на базе тракторов, спецтехника\",C10=\"нет\",F4-C9<4),C29*0.93,IF(AND(C7=\"тракторы (прицепы к ним), самоходные сельскохозяйственные мелиоративные и дорожно-строительные машины, машины, изготовленные на базе тракторов, спецтехника\",C10=\"нет\",F4-C9<10,F4-C9>=4),C29*0.9,IF(AND(C7=\"тракторы (прицепы к ним), самоходные сельскохозяйственные мелиоративные и дорожно-строительные машины, машины, изготовленные на базе тракторов, спецтехника\",C10=\"нет\",F4-C9<20,F4-C9>=10),C29*0.87,IF(AND(C7=\"тракторы (прицепы к ним), самоходные сельскохозяйственные мелиоративные и дорожно-строительные машины, машины, изготовленные на базе тракторов, спецтехника\",C10=\"да\",F4-C9<4),C29*0.9,IF(AND(C7=\"тракторы (прицепы к ним), самоходные сельскохозяйственные мелиоративные и дорожно-строительные машины, машины, изготовленные на базе тракторов, спецтехника\",C10=\"да\",F4-C9<10,F4-C9>=4),C29*0.87,IF(AND(C7=\"тракторы (прицепы к ним), самоходные сельскохозяйственные мелиоративные и дорожно-строительные машины, машины, изготовленные на базе тракторов, спецтехника\",C10=\"да\",F4-C9<20,F4-C9>=10),C29*0.83,IF(AND(C7=\"воздушный и водный транспорт\",C10=\"нет\",F4-C9<10),C29*0.93,IF(AND(C7=\"воздушный и водный транспорт\",C10=\"нет\",F4-C9>=10),C29*0.9,IF(AND(C7=\"воздушный и водный транспорт\",C10=\"да\",F4-C9<10),C29*0.9,IF(AND(C7=\"воздушный и водный транспорт\",C10=\"да\",F4-C9>=10),C29*0.87))))))))))))))))))))))))))","v":{"$error":"#VALUE!"}},{"$f":"IF(AND(C7=\"легковые автомобили\",F5-C9<5,C10=\"нет\"),D29*0.95,IF(AND(C7=\"легковые автомобили\",F5-C9<10,C10=\"нет\"),D29*0.93,IF(AND(C7=\"легковые автомобили\",F5-C9<15,C10=\"нет\"),D29*0.9,IF(AND(C7=\"легковые автомобили\",F5-C9<5,C10=\"да\"),D29*0.92,IF(AND(C7=\"легковые автомобили\",F5-C9<10,C10=\"да\"),D29*0.9,IF(AND(C7=\"легковые автомобили\",F5-C9<15,C10=\"да\"),D29*0.87,IF(AND(C7=\"мотоциклы\",C10=\"нет\",F5-C9<5),D29*0.93,IF(AND(C7=\"мотоциклы\",C10=\"нет\",F5-C9<10),D29*0.9,IF(AND(C7=\"мотоциклы\",C10=\"да\",F5-C9<5),D29*0.9,IF(AND(C7=\"мотоциклы\",C10=\"да\",F5-C9<10),D29*0.87,IF(AND(C7=\"грузовые автомобили, прицепы и полуприцепы, автобусы\",F5-C9<4,C10=\"нет\"),D29*0.95,IF(AND(C7=\"грузовые автомобили, прицепы и полуприцепы, автобусы\",F5-C9<10,C10=\"нет\"),D29*0.93,IF(AND(C7=\"грузовые автомобили, прицепы и полуприцепы, автобусы\",F5-C9<20,C10=\"нет\"),D29*0.9,IF(AND(C7=\"грузовые автомобили, прицепы и полуприцепы, автобусы\",F5-C9<4,C10=\"да\"),D29*0.92,IF(AND(C7=\"грузовые автомобили, прицепы и полуприцепы, автобусы\",F5-C9<10,C10=\"да\"),D29*0.9,IF(AND(C7=\"грузовые автомобили, прицепы и полуприцепы, автобусы\",F5-C9<20,C10=\"да\"),D29*0.87,IF(AND(C7=\"тракторы (прицепы к ним), самоходные сельскохозяйственные мелиоративные и дорожно-строительные машины, машины, изготовленные на базе тракторов, спецтехника\",C10=\"нет\",F5-C9<4),D29*0.93,IF(AND(C7=\"тракторы (прицепы к ним), самоходные сельскохозяйственные мелиоративные и дорожно-строительные машины, машины, изготовленные на базе тракторов, спецтехника\",C10=\"нет\",F5-C9<10,F5-C9>=4),D29*0.9,IF(AND(C7=\"тракторы (прицепы к ним), самоходные сельскохозяйственные мелиоративные и дорожно-строительные машины, машины, изготовленные на базе тракторов, спецтехника\",C10=\"нет\",F5-C9<20,F5-C9>=10),D29*0.87,IF(AND(C7=\"тракторы (прицепы к ним), самоходные сельскохозяйственные мелиоративные и дорожно-строительные машины, машины, изготовленные на базе тракторов, спецтехника\",C10=\"да\",F5-C9<4),D29*0.9,IF(AND(C7=\"тракторы (прицепы к ним), самоходные сельскохозяйственные мелиоративные и дорожно-строительные машины, машины, изготовленные на базе тракторов, спецтехника\",C10=\"да\",F5-C9<10,F5-C9>=4),D29*0.87,IF(AND(C7=\"тракторы (прицепы к ним), самоходные сельскохозяйственные мелиоративные и дорожно-строительные машины, машины, изготовленные на базе тракторов, спецтехника\",C10=\"да\",F5-C9<20,F5-C9>=10),D29*0.83,IF(AND(C7=\"воздушный и водный транспорт\",C10=\"нет\",F5-C9<10),D29*0.93,IF(AND(C7=\"воздушный и водный транспорт\",C10=\"нет\",F5-C9>=10),D29*0.9,IF(AND(C7=\"воздушный и водный транспорт\",C10=\"да\",F5-C9<10),D29*0.9,IF(AND(C7=\"воздушный и водный транспорт\",C10=\"да\",F5-C9>=10),D29*0.87))))))))))))))))))))))))))","v":{"$error":"#VALUE!"}}]
[]
[null,null,{"$f":"CONCATENATE(\"Оценочная стоимость с 01.01.\",F2+4)","v":{"$error":"#VALUE!"}},{"$f":"CONCATENATE(\"Оценочная стоимость с 01.01.\",F2+5)","v":{"$error":"#VALUE!"}}]
[null,null,{"$f":"IF(AND(C7=\"легковые автомобили\",F6-C9<5,C10=\"нет\"),E29*0.95,IF(AND(C7=\"легковые автомобили\",F6-C9<10,C10=\"нет\"),E29*0.93,IF(AND(C7=\"легковые автомобили\",F6-C9<15,C10=\"нет\"),E29*0.9,IF(AND(C7=\"легковые автомобили\",F6-C9<5,C10=\"да\"),E29*0.92,IF(AND(C7=\"легковые автомобили\",F6-C9<10,C10=\"да\"),E29*0.9,IF(AND(C7=\"легковые автомобили\",F6-C9<15,C10=\"да\"),E29*0.87,IF(AND(C7=\"мотоциклы\",C10=\"нет\",F6-C9<5),E29*0.93,IF(AND(C7=\"мотоциклы\",C10=\"нет\",F6-C9<10),E29*0.9,IF(AND(C7=\"мотоциклы\",C10=\"да\",F6-C9<5),E29*0.9,IF(AND(C7=\"мотоциклы\",C10=\"да\",F6-C9<10),E29*0.87,IF(AND(C7=\"грузовые автомобили, прицепы и полуприцепы, автобусы\",F6-C9<4,C10=\"нет\"),E29*0.95,IF(AND(C7=\"грузовые автомобили, прицепы и полуприцепы, автобусы\",F6-C9<10,C10=\"нет\"),E29*0.93,IF(AND(C7=\"грузовые автомобили, прицепы и полуприцепы, автобусы\",F6-C9<20,C10=\"нет\"),E29*0.9,IF(AND(C7=\"грузовые автомобили, прицепы и полуприцепы, автобусы\",F6-C9<4,C10=\"да\"),E29*0.92,IF(AND(C7=\"грузовые автомобили, прицепы и полуприцепы, автобусы\",F6-C9<10,C10=\"да\"),E29*0.9,IF(AND(C7=\"грузовые автомобили, прицепы и полуприцепы, автобусы\",F6-C9<20,C10=\"да\"),E29*0.87,IF(AND(C7=\"тракторы (прицепы к ним), самоходные сельскохозяйственные мелиоративные и дорожно-строительные машины, машины, изготовленные на базе тракторов, спецтехника\",C10=\"нет\",F6-C9<4),E29*0.93,IF(AND(C7=\"тракторы (прицепы к ним), самоходные сельскохозяйственные мелиоративные и дорожно-строительные машины, машины, изготовленные на базе тракторов, спецтехника\",C10=\"нет\",F6-C9<10,F6-C9>=4),E29*0.9,IF(AND(C7=\"тракторы (прицепы к ним), самоходные сельскохозяйственные мелиоративные и дорожно-строительные машины, машины, изготовленные на базе тракторов, спецтехника\",C10=\"нет\",F6-C9<20,F6-C9>=10),E29*0.87,IF(AND(C7=\"тракторы (прицепы к ним), самоходные сельскохозяйственные мелиоративные и дорожно-строительные машины, машины, изготовленные на базе тракторов, спецтехника\",C10=\"да\",F6-C9<4),E29*0.9,IF(AND(C7=\"тракторы (прицепы к ним), самоходные сельскохозяйственные мелиоративные и дорожно-строительные машины, машины, изготовленные на базе тракторов, спецтехника\",C10=\"да\",F6-C9<10,F6-C9>=4),E29*0.87,IF(AND(C7=\"тракторы (прицепы к ним), самоходные сельскохозяйственные мелиоративные и дорожно-строительные машины, машины, изготовленные на базе тракторов, спецтехника\",C10=\"да\",F6-C9<20,F6-C9>=10),E29*0.83,IF(AND(C7=\"воздушный и водный транспорт\",C10=\"нет\",F6-C9<10),E29*0.93,IF(AND(C7=\"воздушный и водный транспорт\",C10=\"нет\",F6-C9>=10),E29*0.9,IF(AND(C7=\"воздушный и водный транспорт\",C10=\"да\",F6-C9<10),E29*0.9,IF(AND(C7=\"воздушный и водный транспорт\",C10=\"да\",F6-C9>=10),E29*0.87))))))))))))))))))))))))))","v":{"$error":"#VALUE!"}},{"$f":"IF(AND(C7=\"легковые автомобили\",F7-C9<5,C10=\"нет\"),C32*0.95,IF(AND(C7=\"легковые автомобили\",F7-C9<10,C10=\"нет\"),C32*0.93,IF(AND(C7=\"легковые автомобили\",F7-C9<15,C10=\"нет\"),C32*0.9,IF(AND(C7=\"легковые автомобили\",F7-C9<5,C10=\"да\"),C32*0.92,IF(AND(C7=\"легковые автомобили\",F7-C9<10,C10=\"да\"),C32*0.9,IF(AND(C7=\"легковые автомобили\",F7-C9<15,C10=\"да\"),C32*0.87,IF(AND(C7=\"мотоциклы\",C10=\"нет\",F7-C9<5),C32*0.93,IF(AND(C7=\"мотоциклы\",C10=\"нет\",F7-C9<10),C32*0.9,IF(AND(C7=\"мотоциклы\",C10=\"да\",F7-C9<5),C32*0.9,IF(AND(C7=\"мотоциклы\",C10=\"да\",F7-C9<10),C32*0.87,IF(AND(C7=\"грузовые автомобили, прицепы и полуприцепы, автобусы\",F7-C9<4,C10=\"нет\"),C32*0.95,IF(AND(C7=\"грузовые автомобили, прицепы и полуприцепы, автобусы\",F7-C9<10,C10=\"нет\"),C32*0.93,IF(AND(C7=\"грузовые автомобили, прицепы и полуприцепы, автобусы\",F7-C9<20,C10=\"нет\"),C32*0.9,IF(AND(C7=\"грузовые автомобили, прицепы и полуприцепы, автобусы\",F7-C9<4,C10=\"да\"),C32*0.92,IF(AND(C7=\"грузовые автомобили, прицепы и полуприцепы, автобусы\",F7-C9<10,C10=\"да\"),C32*0.9,IF(AND(C7=\"грузовые автомобили, прицепы и полуприцепы, автобусы\",F7-C9<20,C10=\"да\"),C32*0.87,IF(AND(C7=\"тракторы (прицепы к ним), самоходные сельскохозяйственные мелиоративные и дорожно-строительные машины, машины, изготовленные на базе тракторов, спецтехника\",C10=\"нет\",F7-C9<4),C32*0.93,IF(AND(C7=\"тракторы (прицепы к ним), самоходные сельскохозяйственные мелиоративные и дорожно-строительные машины, машины, изготовленные на базе тракторов, спецтехника\",C10=\"нет\",F7-C9<10,F7-C9>=4),C32*0.9,IF(AND(C7=\"тракторы (прицепы к ним), самоходные сельскохозяйственные мелиоративные и дорожно-строительные машины, машины, изготовленные на базе тракторов, спецтехника\",C10=\"нет\",F7-C9<20,F7-C9>=10),C32*0.87,IF(AND(C7=\"тракторы (прицепы к ним), самоходные сельскохозяйственные мелиоративные и дорожно-строительные машины, машины, изготовленные на базе тракторов, спецтехника\",C10=\"да\",F7-C9<4),C32*0.9,IF(AND(C7=\"тракторы (прицепы к ним), самоходные сельскохозяйственные мелиоративные и дорожно-строительные машины, машины, изготовленные на базе тракторов, спецтехника\",C10=\"да\",F7-C9<10,F7-C9>=4),C32*0.87,IF(AND(C7=\"тракторы (прицепы к ним), самоходные сельскохозяйственные мелиоративные и дорожно-строительные машины, машины, изготовленные на базе тракторов, спецтехника\",C10=\"да\",F7-C9<20,F7-C9>=10),C32*0.83,IF(AND(C7=\"воздушный и водный транспорт\",C10=\"нет\",F7-C9<10),C32*0.93,IF(AND(C7=\"воздушный и водный транспорт\",C10=\"нет\",F7-C9>=10),C32*0.9,IF(AND(C7=\"воздушный и водный транспорт\",C10=\"да\",F7-C9<10),C32*0.9,IF(AND(C7=\"воздушный и водный транспорт\",C10=\"да\",F7-C9>=10),C32*0.87))))))))))))))))))))))))))","v":{"$error":"#VALUE!"}}]
[]
[null,{"$f":"IF('залоговая опись авто'!F2=\"юр.лицо\",\"Подпись руководителя залогодателя\",\"Подпись залогодателя\")","v":"Подпись залогодателя"}]
[{"$nulls":3},"расшифровка"]
[]
[null,{"$f":"IF('залоговая опись авто'!F2=\"юр.лицо\",\"Подпись исполнителя оценки\",\" \")","v":" "}]
[{"$nulls":3},{"$f":"IF('залоговая опись авто'!F2=\"юр.лицо\",\"расшифровка\",\" \")","v":" "}]
[null,null,{"$f":"IF('залоговая опись авто'!F2=\"юр.лицо\",\"М.П.\",\" \")","v":" "}]
{"$rows_empty":8}
[{"$nulls":3},"Приложение №1"]
[{"$nulls":3},"к Акту о внутренней оценке имущества от"]
[{"$nulls":3},{"$f":"D2","v":"дата оценки"}]
[null,"Аналог 1 "]
[null,"*Адрес объявления + скрин объявления со стоимостью"]
{"$rows_empty":8}
[null,"Аналог 2"]
[null,"*Адрес объявления + скрин объявления со стоимостью"]
{"$rows_empty":8}
[null,"Аналог 3"]
[null,"*Адрес объявления + скрин объявления со стоимостью"]

{"sheet":"с копейками","index":17,"n_rows":19,"n_cols":2,"rows_kept":19,"hidden":true}
["до 7 разраядов"]
["вход",{"$f":"A17","v":{"$error":"#REF!"}}]
[{"$f":"IF(LEN(A7)>9,VALUE(MID(A7,LEN(A7)-9,1)),0)","v":{"$error":"#REF!"}},{"$f":"IF(A3=0,\"\",CHOOSE(A3,\"один миллион \",\"два миллиона \",\"три миллиона \",\"четыре миллиона \",\"пять миллионов \",\"шесть миллионов \",\"семь миллионов \",\"восемь миллионов \",\"девять миллионов \"))","v":{"$error":"#REF!"}}]
[{"$f":"IF(LEN(A7)>8,VALUE(MID(A7,LEN(A7)-8,1)),0)","v":{"$error":"#REF!"}},{"$f":"IF(A4=0,\"\",CHOOSE(A4,\"сто \",\"двести \",\"триста \",\"четыреста \",\"пятьсот \",\"шестьсот \",\"семьсот \",\"восемьсот \",\"девятьсот \"))","v":{"$error":"#REF!"}}]
[{"$f":"IF(LEN(A7)>7,VALUE(MID(A7,LEN(A7)-7,1)),0)","v":{"$error":"#REF!"}},{"$f":"IF(AND(A5=1,A6=0),\"десять \",IF(A5=0,\"\",CHOOSE(A5,CHOOSE(A6,\"одиннадцать \",\"двенадцать \",\"тринадцать \",\"четырнадцать \",\"пятнадцать \",\"шестнадцать \",\"семнадцать \",\"восемнадцать \",\"девятнадцать \"),\"двадцать \",\"тридцать \",\"сорок \",\"пятьдесят \",\"шестьдесят \",\"семьдесят \",\"восемьдесят \",\"девяносто \")))","v":{"$error":"#REF!"}}]
[{"$f":"IF(LEN(A7)>6,VALUE(MID(A7,LEN(A7)-6,1)),0)","v":{"$error":"#REF!"}},{"$f":"IF(OR(A5=1,A6=0),\"\",CHOOSE(A6,\"одна \",\"две \",\"три \",\"четыре \",\"пять \",\"шесть \",\"семь \",\"восемь \",\"девять \"))","v":{"$error":"#REF!"}}]
[{"$f":"FIXED(B2,2,1)","v":{"$error":"#REF!"}},{"$f":"IF(SUM(A3:A6)=0,\"\",CHOOSE(IF(AND(A5<>1,A6=1),1,IF(AND(A5<>1,A6>1,A6<5),2,3)),\"тысяча \",\"тысячи \",\"тысяч \"))","v":{"$error":"#REF!"}}]
[{"$f":"IF(LEN(A7)>5,VALUE(MID(A7,LEN(A7)-5,1)),0)","v":{"$error":"#REF!"}},{"$f":"IF(A8=0,\"\",CHOOSE(A8,\"сто \",\"двести \",\"триста \",\"четыреста \",\"пятьсот \",\"шестьсот \",\"семьсот \",\"восемьсот \",\"девятьсот \"))","v":{"$error":"#REF!"}}]
[{"$f":"IF(LEN(A7)>4,VALUE(MID(A7,LEN(A7)-4,1)),0)","v":{"$error":"#REF!"}},{"$f":"IF(AND(A9=1,A10=0),\"десять \",IF(A9=0,\"\",CHOOSE(A9,CHOOSE(A10,\"одиннадцать \",\"двенадцать \",\"тринадцать \",\"четырнадцать \",\"пятнадцать \",\"шестнадцать \",\"семнадцать \",\"восемнадцать \",\"девятнадцать \"),\"двадцать \",\"тридцать \",\"сорок \",\"пятьдесят \",\"шестьдесят \",\"семьдесят \",\"восемьдесят \",\"девяносто \")))","v":{"$error":"#REF!"}}]
[{"$f":"IF(LEN(A7)>3,VALUE(MID(A7,LEN(A7)-3,1)),0)","v":{"$error":"#REF!"}},{"$f":"IF(OR(A9=1,A10=0),\"\",CHOOSE(A10,\"один \",\"два \",\"три \",\"четыре \",\"пять \",\"шесть \",\"семь \",\"восемь \",\"девять \"))","v":{"$error":"#REF!"}}]
[{"$f":"IF(LEN(A7)>10,\"ошибка: превышение разрядности числа\",B3&B4&B5&B6&B7&B8&B9&B10&B11&B12&B13)","v":{"$error":"#REF!"}},{"$f":"IF(SUM(A3:A6,A8:A10)=0,\"ноль рублей \",CHOOSE(IF(AND(A9<>1,A10=1),1,IF(AND(A9<>1,A10>1,A10<5),2,3)),\"белорусский рубль \",\"белорусских рубля \",\"белорусских рублей \"))","v":{"$error":"#REF!"}}]
[{"$f":"IF(LEN(A7)>1,VALUE(MID(A7,LEN(A7)-1,1)),0)","v":{"$error":"#REF!"}},{"$f":"CONCATENATE(A12,A13,\" \")","v":{"$error":"#REF!"}}]
[{"$f":"VALUE(RIGHT(A7,1))","v":{"$error":"#REF!"}},{"$f":"CHOOSE(IF(AND(A12<>1,A13=1),1,IF(AND(A12<>1,A13>1,A13<5),2,3)),\"копейка\",\"копейки\",\"копеек\")","v":{"$error":"#REF!"}}]
["выход",{"$f":"REPLACE(A11,1,1,UPPER(LEFT(A11,1)))","v":{"$error":"#REF!"}}]
[{"$f":"IF(LEN(A7)>10,\"ошибка: превышение разрядности числа\",B3&B4&B5&B6&B7&B8&B9&B10)","v":{"$error":"#REF!"}},{"$f":"REPLACE(A15,1,1,UPPER(LEFT(A15,1)))","v":{"$error":"#REF!"}}]
[]
[{"$f":"заключение!#REF!","v":{"$error":"#REF!"}},"ссылка на число"]
[]
[{"$f":"B14","v":{"$error":"#REF!"}}]

{"sheet":"без копеек","index":18,"n_rows":20,"n_cols":11,"rows_kept":20,"hidden":true,"merged":[[0,0,0,1],[0,3,0,4],[0,6,0,7],[0,9,0,10]]}
["ЛИМИТ",null,null,"СТАВКА",null,null,"число членов кк",null,null,"ОБОРОТЫ"]
["до 7 разраядов",null,null,"до 7 разраядов",null,null,"до 7 разраядов",null,null,"до 7 разраядов"]
["вход",{"$f":"A18","v":{"$error":"#REF!"}},null,"вход",{"$f":"D18","v":{"$error":"#REF!"}},null,"вход",{"$f":"G18","v":{"$error":"#REF!"}},null,"вход",{"$f":"J18","v":{"$error":"#REF!"}}]
[{"$f":"IF(LEN(A8)>9,VALUE(MID(A8,LEN(A8)-9,1)),0)","v":{"$error":"#REF!"}},{"$f":"IF(A4=0,\"\",CHOOSE(A4,\"один миллион \",\"два миллиона \",\"три миллиона \",\"четыре миллиона \",\"пять миллионов \",\"шесть миллионов \",\"семь миллионов \",\"восемь миллионов \",\"девять миллионов \"))","v":{"$error":"#REF!"}},null,{"$f":"IF(LEN(D8)>9,VALUE(MID(D8,LEN(D8)-9,1)),0)","v":{"$error":"#REF!"}},{"$f":"IF(D4=0,\"\",CHOOSE(D4,\"один миллион \",\"два миллиона \",\"три миллиона \",\"четыре миллиона \",\"пять миллионов \",\"шесть миллионов \",\"семь миллионов \",\"восемь миллионов \",\"девять миллионов \"))","v":{"$error":"#REF!"}},null,{"$f":"IF(LEN(G8)>9,VALUE(MID(G8,LEN(G8)-9,1)),0)","v":{"$error":"#REF!"}},{"$f":"IF(G4=0,\"\",CHOOSE(G4,\"один миллион \",\"два миллиона \",\"три миллиона \",\"четыре миллиона \",\"пять миллионов \",\"шесть миллионов \",\"семь миллионов \",\"восемь миллионов \",\"девять миллионов \"))","v":{"$error":"#REF!"}},null,{"$f":"IF(LEN(J8)>9,VALUE(MID(J8,LEN(J8)-9,1)),0)","v":{"$error":"#REF!"}},{"$f":"IF(J4=0,\"\",CHOOSE(J4,\"один миллион \",\"два миллиона \",\"три миллиона \",\"четыре миллиона \",\"пять миллионов \",\"шесть миллионов \",\"семь миллионов \",\"восемь миллионов \",\"девять миллионов \"))","v":{"$error":"#REF!"}}]
[{"$f":"IF(LEN(A8)>8,VALUE(MID(A8,LEN(A8)-8,1)),0)","v":{"$error":"#REF!"}},{"$f":"IF(A5=0,\"\",CHOOSE(A5,\"сто \",\"двести \",\"триста \",\"четыреста \",\"пятьсот \",\"шестьсот \",\"семьсот \",\"восемьсот \",\"девятьсот \"))","v":{"$error":"#REF!"}},null,{"$f":"IF(LEN(D8)>8,VALUE(MID(D8,LEN(D8)-8,1)),0)","v":{"$error":"#REF!"}},{"$f":"IF(D5=0,\"\",CHOOSE(D5,\"сто \",\"двести \",\"триста \",\"четыреста \",\"пятьсот \",\"шестьсот \",\"семьсот \",\"восемьсот \",\"девятьсот \"))","v":{"$error":"#REF!"}},null,{"$f":"IF(LEN(G8)>8,VALUE(MID(G8,LEN(G8)-8,1)),0)","v":{"$error":"#REF!"}},{"$f":"IF(G5=0,\"\",CHOOSE(G5,\"сто \",\"двести \",\"триста \",\"четыреста \",\"пятьсот \",\"шестьсот \",\"семьсот \",\"восемьсот \",\"девятьсот \"))","v":{"$error":"#REF!"}},null,{"$f":"IF(LEN(J8)>8,VALUE(MID(J8,LEN(J8)-8,1)),0)","v":{"$error":"#REF!"}},{"$f":"IF(J5=0,\"\",CHOOSE(J5,\"сто \",\"двести \",\"триста \",\"четыреста \",\"пятьсот \",\"шестьсот \",\"семьсот \",\"восемьсот \",\"девятьсот \"))","v":{"$error":"#REF!"}}]
[{"$f":"IF(LEN(A8)>7,VALUE(MID(A8,LEN(A8)-7,1)),0)","v":{"$error":"#REF!"}},{"$f":"IF(AND(A6=1,A7=0),\"десять \",IF(A6=0,\"\",CHOOSE(A6,CHOOSE(A7,\"одиннадцать \",\"двенадцать \",\"тринадцать \",\"четырнадцать \",\"пятнадцать \",\"шестнадцать \",\"семнадцать \",\"восемнадцать \",\"девятнадцать \"),\"двадцать \",\"тридцать \",\"сорок \",\"пятьдесят \",\"шестьдесят \",\"семьдесят \",\"восемьдесят \",\"девяносто \")))","v":{"$error":"#REF!"}},null,{"$f":"IF(LEN(D8)>7,VALUE(MID(D8,LEN(D8)-7,1)),0)","v":{"$error":"#REF!"}},{"$f":"IF(AND(D6=1,D7=0),\"десять \",IF(D6=0,\"\",CHOOSE(D6,CHOOSE(D7,\"одиннадцать \",\"двенадцать \",\"тринадцать \",\"четырнадцать \",\"пятнадцать \",\"шестнадцать \",\"семнадцать \",\"восемнадцать \",\"девятнадцать \"),\"двадцать \",\"тридцать \",\"сорок \",\"пятьдесят \",\"шестьдесят \",\"семьдесят \",\"восемьдесят \",\"девяносто \")))","v":{"$error":"#REF!"}},null,{"$f":"IF(LEN(G8)>7,VALUE(MID(G8,LEN(G8)-7,1)),0)","v":{"$error":"#REF!"}},{"$f":"IF(AND(G6=1,G7=0),\"десять \",IF(G6=0,\"\",CHOOSE(G6,CHOOSE(G7,\"одиннадцать \",\"двенадцать \",\"тринадцать \",\"четырнадцать \",\"пятнадцать \",\"шестнадцать \",\"семнадцать \",\"восемнадцать \",\"девятнадцать \"),\"двадцать \",\"тридцать \",\"сорок \",\"пятьдесят \",\"шестьдесят \",\"семьдесят \",\"восемьдесят \",\"девяносто \")))","v":{"$error":"#REF!"}},null,{"$f":"IF(LEN(J8)>7,VALUE(MID(J8,LEN(J8)-7,1)),0)","v":{"$error":"#REF!"}},{"$f":"IF(AND(J6=1,J7=0),\"десять \",IF(J6=0,\"\",CHOOSE(J6,CHOOSE(J7,\"одиннадцать \",\"двенадцать \",\"тринадцать \",\"четырнадцать \",\"пятнадцать \",\"шестнадцать \",\"семнадцать \",\"восемнадцать \",\"девятнадцать \"),\"двадцать \",\"тридцать \",\"сорок \",\"пятьдесят \",\"шестьдесят \",\"семьдесят \",\"восемьдесят \",\"девяносто \")))","v":{"$error":"#REF!"}}]
[{"$f":"IF(LEN(A8)>6,VALUE(MID(A8,LEN(A8)-6,1)),0)","v":{"$error":"#REF!"}},{"$f":"IF(OR(A6=1,A7=0),\"\",CHOOSE(A7,\"одна \",\"две \",\"три \",\"четыре \",\"пять \",\"шесть \",\"семь \",\"восемь \",\"девять \"))","v":{"$error":"#REF!"}},null,{"$f":"IF(LEN(D8)>6,VALUE(MID(D8,LEN(D8)-6,1)),0)","v":{"$error":"#REF!"}},{"$f":"IF(OR(D6=1,D7=0),\"\",CHOOSE(D7,\"одна \",\"две \",\"три \",\"четыре \",\"пять \",\"шесть \",\"семь \",\"восемь \",\"девять \"))","v":{"$error":"#REF!"}},null,{"$f":"IF(LEN(G8)>6,VALUE(MID(G8,LEN(G8)-6,1)),0)","v":{"$error":"#REF!"}},{"$f":"IF(OR(G6=1,G7=0),\"\",CHOOSE(G7,\"одна \",\"две \",\"три \",\"четыре \",\"пять \",\"шесть \",\"семь \",\"восемь \",\"девять \"))","v":{"$error":"#REF!"}},null,{"$f":"IF(LEN(J8)>6,VALUE(MID(J8,LEN(J8)-6,1)),0)","v":{"$error":"#REF!"}},{"$f":"IF(OR(J6=1,J7=0),\"\",CHOOSE(J7,\"одна \",\"две \",\"три \",\"четыре \",\"пять \",\"шесть \",\"семь \",\"восемь \",\"девять \"))","v":{"$error":"#REF!"}}]
[{"$f":"FIXED(B3,2,1)","v":{"$error":"#REF!"}},{"$f":"IF(SUM(A4:A7)=0,\"\",CHOOSE(IF(AND(A6<>1,A7=1),1,IF(AND(A6<>1,A7>1,A7<5),2,3)),\"тысяча \",\"тысячи \",\"тысяч \"))","v":{"$error":"#REF!"}},null,{"$f":"FIXED(E3,2,1)","v":{"$error":"#REF!"}},{"$f":"IF(SUM(D4:D7)=0,\"\",CHOOSE(IF(AND(D6<>1,D7=1),1,IF(AND(D6<>1,D7>1,D7<5),2,3)),\"тысяча \",\"тысячи \",\"тысяч \"))","v":{"$error":"#REF!"}},null,{"$f":"FIXED(H3,2,1)","v":{"$error":"#REF!"}},{"$f":"IF(SUM(G4:G7)=0,\"\",CHOOSE(IF(AND(G6<>1,G7=1),1,IF(AND(G6<>1,G7>1,G7<5),2,3)),\"тысяча \",\"тысячи \",\"тысяч \"))","v":{"$error":"#REF!"}},null,{"$f":"FIXED(K3,2,1)","v":{"$error":"#REF!"}},{"$f":"IF(SUM(J4:J7)=0,\"\",CHOOSE(IF(AND(J6<>1,J7=1),1,IF(AND(J6<>1,J7>1,J7<5),2,3)),\"тысяча \",\"тысячи \",\"тысяч \"))","v":{"$error":"#REF!"}}]
[{"$f":"IF(LEN(A8)>5,VALUE(MID(A8,LEN(A8)-5,1)),0)","v":{"$error":"#REF!"}},{"$f":"IF(A9=0,\"\",CHOOSE(A9,\"сто \",\"двести \",\"триста \",\"четыреста \",\"пятьсот \",\"шестьсот \",\"семьсот \",\"восемьсот \",\"девятьсот \"))","v":{"$error":"#REF!"}},null,{"$f":"IF(LEN(D8)>5,VALUE(MID(D8,LEN(D8)-5,1)),0)","v":{"$error":"#REF!"}},{"$f":"IF(D9=0,\"\",CHOOSE(D9,\"сто \",\"двести \",\"триста \",\"четыреста \",\"пятьсот \",\"шестьсот \",\"семьсот \",\"восемьсот \",\"девятьсот \"))","v":{"$error":"#REF!"}},null,{"$f":"IF(LEN(G8)>5,VALUE(MID(G8,LEN(G8)-5,1)),0)","v":{"$error":"#REF!"}},{"$f":"IF(G9=0,\"\",CHOOSE(G9,\"сто \",\"двести \",\"триста \",\"четыреста \",\"пятьсот \",\"шестьсот \",\"семьсот \",\"восемьсот \",\"девятьсот \"))","v":{"$error":"#REF!"}},null,{"$f":"IF(LEN(J8)>5,VALUE(MID(J8,LEN(J8)-5,1)),0)","v":{"$error":"#REF!"}},{"$f":"IF(J9=0,\"\",CHOOSE(J9,\"сто \",\"двести \",\"триста \",\"четыреста \",\"пятьсот \",\"шестьсот \",\"семьсот \",\"восемьсот \",\"девятьсот \"))","v":{"$error":"#REF!"}}]
[{"$f":"IF(LEN(A8)>4,VALUE(MID(A8,LEN(A8)-4,1)),0)","v":{"$error":"#REF!"}},{"$f":"IF(AND(A10=1,A11=0),\"десять \",IF(A10=0,\"\",CHOOSE(A10,CHOOSE(A11,\"одиннадцать \",\"двенадцать \",\"тринадцать \",\"четырнадцать \",\"пятнадцать \",\"шестнадцать \",\"семнадцать \",\"восемнадцать \",\"девятнадцать \"),\"двадцать \",\"тридцать \",\"сорок \",\"пятьдесят \",\"шестьдесят \",\"семьдесят \",\"восемьдесят \",\"девяносто \")))","v":{"$error":"#REF!"}},null,{"$f":"IF(LEN(D8)>4,VALUE(MID(D8,LEN(D8)-4,1)),0)","v":{"$error":"#REF!"}},{"$f":"IF(AND(D10=1,D11=0),\"десять \",IF(D10=0,\"\",CHOOSE(D10,CHOOSE(D11,\"одиннадцать \",\"двенадцать \",\"тринадцать \",\"четырнадцать \",\"пятнадцать \",\"шестнадцать \",\"семнадцать \",\"восемнадцать \",\"девятнадцать \"),\"двадцать \",\"тридцать \",\"сорок \",\"пятьдесят \",\"шестьдесят \",\"семьдесят \",\"восемьдесят \",\"девяносто \")))","v":{"$error":"#REF!"}},null,{"$f":"IF(LEN(G8)>4,VALUE(MID(G8,LEN(G8)-4,1)),0)","v":{"$error":"#REF!"}},{"$f":"IF(AND(G10=1,G11=0),\"десять \",IF(G10=0,\"\",CHOOSE(G10,CHOOSE(G11,\"одиннадцать \",\"двенадцать \",\"тринадцать \",\"четырнадцать \",\"пятнадцать \",\"шестнадцать \",\"семнадцать \",\"восемнадцать \",\"девятнадцать \"),\"двадцать \",\"тридцать \",\"сорок \",\"пятьдесят \",\"шестьдесят \",\"семьдесят \",\"восемьдесят \",\"девяносто \")))","v":{"$error":"#REF!"}},null,{"$f":"IF(LEN(J8)>4,VALUE(MID(J8,LEN(J8)-4,1)),0)","v":{"$error":"#REF!"}},{"$f":"IF(AND(J10=1,J11=0),\"десять \",IF(J10=0,\"\",CHOOSE(J10,CHOOSE(J11,\"одиннадцать \",\"двенадцать \",\"тринадцать \",\"четырнадцать \",\"пятнадцать \",\"шестнадцать \",\"семнадцать \",\"восемнадцать \",\"девятнадцать \"),\"двадцать \",\"тридцать \",\"сорок \",\"пятьдесят \",\"шестьдесят \",\"семьдесят \",\"восемьдесят \",\"девяносто \")))","v":{"$error":"#REF!"}}]
[{"$f":"IF(LEN(A8)>3,VALUE(MID(A8,LEN(A8)-3,1)),0)","v":{"$error":"#REF!"}},{"$f":"IF(OR(A10=1,A11=0),\"\",CHOOSE(A11,\"один\",\"два\",\"три\",\"четыре\",\"пять\",\"шесть\",\"семь\",\"восемь\",\"девять\"))","v":{"$error":"#REF!"}},null,{"$f":"IF(LEN(D8)>3,VALUE(MID(D8,LEN(D8)-3,1)),0)","v":{"$error":"#REF!"}},{"$f":"IF(OR(D10=1,D11=0),\"\",CHOOSE(D11,\"один \",\"два \",\"три \",\"четыре \",\"пять \",\"шесть \",\"семь \",\"восемь \",\"девять \"))","v":{"$error":"#REF!"}},null,{"$f":"IF(LEN(G8)>3,VALUE(MID(G8,LEN(G8)-3,1)),0)","v":{"$error":"#REF!"}},{"$f":"IF(OR(G10=1,G11=0),\"\",CHOOSE(G11,\"один\",\"два\",\"три\",\"четыре\",\"пять\",\"шесть\",\"семь\",\"восемь\",\"девять\"))","v":{"$error":"#REF!"}},null,{"$f":"IF(LEN(J8)>3,VALUE(MID(J8,LEN(J8)-3,1)),0)","v":{"$error":"#REF!"}},{"$f":"IF(OR(J10=1,J11=0),\"\",CHOOSE(J11,\"один\",\"два\",\"три\",\"четыре\",\"пять\",\"шесть\",\"семь\",\"восемь\",\"девять\"))","v":{"$error":"#REF!"}}]
[{"$f":"IF(LEN(A8)>10,\"ошибка: превышение разрядности числа\",B4&B5&B6&B7&B8&B9&B10&B11&B12&B13&B14)","v":{"$error":"#REF!"}},null,null,{"$f":"IF(LEN(D8)>10,\"ошибка: превышение разрядности числа\",E4&E5&E6&E7&E8&E9&E10&E11&E12&E13&E14)","v":{"$error":"#REF!"}},{"$f":"IF(SUM(D4:D7,D9:D11)=0,\"ноль целых \",CHOOSE(IF(AND(D10<>1,D11=1),1,IF(AND(D10<>1,D11>1,D11<5),2,3)),\"целая \",\"целых \",\"целых \"))","v":{"$error":"#REF!"}},null,{"$f":"IF(LEN(G8)>10,\"ошибка: превышение разрядности числа\",H4&H5&H6&H7&H8&H9&H10&H11&H12&H13&H14)","v":{"$error":"#REF!"}},null,null,{"$f":"IF(LEN(J8)>10,\"ошибка: превышение разрядности числа\",K4&K5&K6&K7&K8&K9&K10&K11&K12&K13&K14)","v":{"$error":"#REF!"}}]
[{"$f":"IF(LEN(A8)>1,VALUE(MID(A8,LEN(A8)-1,1)),0)","v":{"$error":"#REF!"}},null,null,{"$f":"IF(LEN(D8)>1,VALUE(MID(D8,LEN(D8)-1,1)),0)","v":{"$error":"#REF!"}},{"$f":"CONCATENATE(D13,D14,\" \")","v":{"$error":"#REF!"}},null,{"$f":"IF(LEN(G8)>1,VALUE(MID(G8,LEN(G8)-1,1)),0)","v":{"$error":"#REF!"}},null,null,{"$f":"IF(LEN(J8)>1,VALUE(MID(J8,LEN(J8)-1,1)),0)","v":{"$error":"#REF!"}}]
[{"$f":"VALUE(RIGHT(A8,1))","v":{"$error":"#REF!"}},null,null,{"$f":"VALUE(RIGHT(D8,1))","v":{"$error":"#REF!"}},{"$f":"CHOOSE(IF(AND(D13<>1,D14=1),1,IF(AND(D13<>1,D14>1,D14<5),2,3)),\"сотых\",\"сотые\",\"сотых\")","v":{"$error":"#REF!"}},null,{"$f":"VALUE(RIGHT(G8,1))","v":{"$error":"#REF!"}},null,null,{"$f":"VALUE(RIGHT(J8,1))","v":{"$error":"#REF!"}}]
["выход",{"$f":"REPLACE(A12,1,1,UPPER(LEFT(A12,1)))","v":{"$error":"#REF!"}},null,"выход",{"$f":"REPLACE(D12,1,1,UPPER(LEFT(D12,1)))","v":{"$error":"#REF!"}},null,"выход",null,null,"выход",{"$f":"REPLACE(J12,1,1,UPPER(LEFT(J12,1)))","v":{"$error":"#REF!"}}]
[{"$f":"IF(LEN(A8)>10,\"ошибка: превышение разрядности числа\",B4&B5&B6&B7&B8&B9&B10&B11)","v":{"$error":"#REF!"}},null,null,{"$f":"IF(LEN(D8)>10,\"ошибка: превышение разрядности числа\",E4&E5&E6&E7&E8&E9&E10&E11)","v":{"$error":"#REF!"}},{"$f":"REPLACE(D16,1,1,UPPER(LEFT(D16,1)))","v":{"$error":"#REF!"}},null,{"$f":"IF(LEN(G8)>10,\"ошибка: превышение разрядности числа\",H4&H5&H6&H7&H8&H9&H10&H11)","v":{"$error":"#REF!"}},null,null,{"$f":"IF(LEN(J8)>10,\"ошибка: превышение разрядности числа\",K4&K5&K6&K7&K8&K9&K10&K11)","v":{"$error":"#REF!"}}]
[]
[{"$f":"заключение!#REF!","v":{"$error":"#REF!"}},"ссылка на число",null,{"$f":"заключение!#REF!","v":{"$error":"#REF!"}},"ссылка на число",null,{"$f":"#REF!","v":{"$error":"#REF!"}},"ссылка на число",null,{"$f":"заключение!#REF!","v":{"$error":"#REF!"}},"ссылка на число"]
[]
[{"$f":"B15","v":{"$error":"#REF!"}},null,null,{"$f":"E15","v":{"$error":"#REF!"}},null,null,{"$f":"G12","v":{"$error":"#REF!"}},null,null,{"$f":"K15","v":{"$error":"#REF!"}}]

{"sheet":"ДП овер+вкл","index":19,"n_rows":42,"n_cols":3,"rows_kept":42,"hidden":true,"merged":[[0,0,0,1],[3,0,3,1],[5,0,5,1],[7,0,7,1],[8,0,8,1],[9,0,9,1],[10,0,10,1],[11,0,11,1],[12,0,12,1],[13,0,13,1],[14,0,14,1],[15,0,15,1],[16,0,16,1],[17,0,17,1],[18,0,18,1],[19,0,19,1],[20,0,20,1],[21,0,21,1],[22,0,22,1],[23,0,23,1],[24,0,24,1],[25,0,25,1],[26,0,26,1],[27,0,27,1],[28,0,28,1],[29,0,29,1],[30,0,30,1],[31,0,31,1]]}
[{"$f":"CONCATENATE(\"ДОГОВОР  ПОРУЧИТЕЛЬСТВА №\",#REF!)","v":{"$error":"#REF!"}}]
[]
[]
[{"$f":"#REF!","v":{"$error":"#REF!"}}]
[]
[{"$f":"CONCATENATE(\"      Закрытое акционерное общество «Банк «Решение», именуемое в дальнейшем «Банк», в лице \",#REF!,\", действующего на основании Устава, с одной стороны, и \",#REF!,заключение!E42,\", \",#REF!,\" в дальнейшем «Поручитель», с другой стороны, при совместном упоминании именуемые «Стороны», заключили настоящий договор о нижеследующем.\")","v":{"$error":"#REF!"}}]
[]
[{"$f":"CONCATENATE(\"      1. По кредитному договору №\",#REF!,\" от \",#REF!,\" (далее - кредитный договор) Банк обязался предоставить индивидуальному предпринимателю \",#REF!,\" (далее - Должник) \",IF(ISNUMBER(SEARCH(\"быстрое\",заключение!#REF!)),\"овердрафтный кредит к текущему (расчетному) банковскому счету Должника №\",\"возобновляемляемую кредитную линию с установлением предельного размера единовременной задолженности в размере \"),IF(ISNUMBER(SEARCH(\"быстрое\",заключение!#REF!)),CONCATENATE(#REF!,\", открытому в Банке, с установлением лимита овердрафта в размере \"),),заключение!#REF!,\" (\",'без копеек'!A20,\" \",заключение!#REF!,\"), а Должник обязался возвратить кредит и уплатить проценты на условиях, установленных кредитным договором, а также исполнять надлежащим образом иные обязанности, предусмотренные указанным кредитным договором.\")","v":{"$error":"#REF!"}}]
[{"$f":"IF(ISNUMBER(SEARCH(\"быстрое\",заключение!#REF!)),CONCATENATE(\"      За пользование кредитом Должник уплачивает Банку проценты исходя из установленного Национальным банком Республики Беларусь размера расчетной величины стандартного риска по новым кредитам в \",\"национальной валюте, предоставленным юридическим лицам. Процентная ставка за пользование кредитом \",\"по кредитному договору является переменной, указанная расчетная величина является базовым показателем, в связи с чем изменение базового показателя влечет изменение \",\"процентной ставки за пользование кредитом по кредитному договору, что не является ее изменением\",\" в одностороннем порядке, при этом заключения дополнительного соглашения к кредитному договору в \",\"случае изменения базового показателя не требуется. Информация об актуальном размере базового показателя размещается на сайте Национального банка Республики Беларусь www.nbrb.by.\"),\"За пользование кредитом Должник уплачивает Банку проценты исходя из процентной ставки, составляющей 0,00001 % годовых.\")","v":"За пользование кредитом Должник уплачивает Банку проценты исходя из процентной ставки, составляющей 0,00001 % годовых."}]
[{"$f":"CONCATENATE(\"      Срок полного погашения кредита: \",#REF!,\".\")","v":{"$error":"#REF!"}}]
["      Подписанием настоящего договора Поручитель подтверждает, что ознакомлен и согласен с условиями вышеуказанного кредитного договора, заключенного между Банком и Должником."]
["      2. Поручитель обязывается перед Банком отвечать за исполнение Должником обязательств по кредитному договору в полном объеме с учетом всех последующих дополнительных соглашений."]
["      Объем ответственности Поручителя определяется статьей 343 Гражданского кодекса Республики Беларусь."]
["      3. Поручитель и Должник отвечают перед Банком солидарно."]
["      4. В случае неисполнения или ненадлежащего исполнения Должником обязательств перед Банком по кредитному договору Поручитель обязуется исполнить соответствующее обязательство за Должника в течение 3 (трех) рабочих дней после получения требования Банка по реквизитам, которые будут указаны Банком дополнительно. "]
["      В случае неисполнения в трехдневный срок данного обязательства Поручитель уплачивает Банку пеню в размере 1% от суммы неисполненного обязательства за каждый календарный день просрочки."]
["      5. Поручитель отвечает перед Банком за выполнение обязательств по настоящему договору всем своим имуществом. При недостаточности денежных средств, перечисленных (внесенных) Поручителем в погашение задолженности Должника, Банк вправе в установленном порядке обратить взыскание на иное имущество Поручителя, на которое по законодательству может быть обращено взыскание."]
["      Поручитель дает согласие отвечать перед Банком и в том случае, если условия кредитного договора будут изменены (в т.ч. при изменении суммы кредита, размера процентов за пользование кредитом, сроков возврата кредита, ответственности Должника, состава обеспечения, других существенных условий кредитного договора)."]
["      6. Поручительство Поручителя является безотзывным обязательством. Не допускается односторонний отказ от исполнения обязательств по настоящему договору."]
["      7. К Поручителю, исполнившему обязательство, переходят права кредитора по этому обязательству в том объеме, в котором Поручитель удовлетворил требование Банка. Поручитель также вправе требовать от Должника уплаты процентов на сумму, выплаченную Банку, и возмещения иных убытков, понесенных в связи с ответственностью за Должника."]
["      8. Настоящий договор вступает в силу с момента его подписания и прекращается по основаниям, предусмотренным законодательством."]
["      9. К правам и обязанностям Сторон по настоящему договору применяется право Республики Беларусь."]
["      10. Возникающие между сторонами споры разрешаются в порядке установленном законодательством Республики Беларусь."]
["      11. Поручитель обязуется в случае изменения паспортных данных, места прописки (регистрации) незамедлительно, в течение 10 (десяти) календарных дней, письменно сообщить Банку о происшедших изменениях и (или) предоставить соответствующие документы."]
["      В случае неисполнения данной обязанности Поручитель уплачивает Банку штраф в размере 15 (пятнадцать) базовых величин на день уплаты."]
["      12. Поручитель уведомлен о том, что Банк направляет сведения о заключении настоящего Договора и о выполнении обязательств по нему в Национальный банк Республики Беларусь."]
["      13. Любая переписка между Сторонами осуществляется по адресам, указанным в разделе 15 настоящего договора. Данные адреса считаются действительными до момента письменного уведомления соответствующей Стороны об их изменении."]
["      Уведомления, направляемые одной из Сторон другой Стороне в соответствии с условиями настоящего договора, будут считаться полученными Стороной-адресатом в следующие сроки:"]
["      - уведомления, направляемые посредством заказной или курьерской почты – с момента доставки адресату. Уведомление считается  доставленным адресату и при его возврате отправителю по основаниям, предусмотренным правилами оказания услуг почтовой связи;"]
["      - уведомления, направляемые нарочно – с момента вручения под роспись любому работнику Стороны – адресата."]
["      14. Настоящий договор составлен в двух экземплярах одинаковой юридической силы, по одному для каждой из Сторон. "]
["      15. Реквизиты и подписи Сторон:"]
[]
["БАНК:","ПОРУЧИТЕЛЬ:"]
["ЗАО «Банк «Решение»",{"$f":"заключение!E42","v":0}]
["220035, г. Минск, ул. Игнатенко, 11",{"$f":"CONCATENATE(\"зарегистрирован по адресу: \",#REF!)","v":{"$error":"#REF!"}}]
["к/с BY98NBRB32000028800120000000 \nв УМКО НБ РБ, БИК NBRBBY2X",{"$f":"CONCATENATE(\"паспорт №\",#REF!,\", выдан \",#REF!,\" \",#REF!)","v":{"$error":"#REF!"}}]
[]
["Председатель Правления"]
[null,null,"    "]
["____________________/С.Д. Будников/",{"$f":"CONCATENATE(\"________________ /\",#REF!,\"/\")","v":{"$error":"#REF!"}}]
["М.П. "]

{"sheet":"обороты счета в бел","index":20,"n_rows":50,"n_cols":27,"rows_kept":50,"hidden":true,"merged":[[5,24,25,26]]}
[{"$nulls":25},"выручка",{"$f":"SUBTOTAL(9,G2:G100000)","v":0}]
[]
[]
[]
[]
[{"$nulls":24},"КАК РАБОТАТЬ С ЭТИМ ФАЙЛОМ: \n1. вытянуть движения по счету за месяц из опердня \n2. Экспортировать их в Эксель\n3. вставить это все сюда, стоя на ячейке А1\n4. перейти в след. Вкладку"]
{"$rows_empty":9}
["2020-11-04","12","6","","BY58RSHN23206935400170000000",0,488.68,0,488.68,"ИП ТИТОВА Н.П.",9065,"2020-11-04T16:58:49",1,198,76320802,0,0,"22","Признание овердрафта по текущему счету по кредитному договору N229-1/19 от 11/12/2019 с ИП ТИТОВА НИНА ПЕТРОВНА  РБ","","","04/11/2020",""]
{"$rows_empty":15}
["2020-11-09","317","1","AKBBBY2X","BY98AKBB30120655722927000000",2446.8,0,2446.8,0,"ООО \"БЕЛПОШИВ\"",1000,"2020-11-09T14:00:11",1,23,76374258,-2446.8,-2446.8,"22","ВОЗВРАТ ОШИБОЧНО ПЕРЕЧИСЛЕННЫХ СРЕДСТВ ПО ПП280 ОТ 02.11.2020 Г. СОГЛАСНО ПИСЬМУ С ПРОСЬБОЙ О ВОЗВРАТЕ ДЕН СРЕДСТВ 154 ОТ 05.11.2020 Г.","791128677","790817682","09/11/2020",""]
["2020-11-09","23","6","","BY58RSHN23206935400170000000",0,2446.8,0,2446.8,"ИП ТИТОВА Н.П.",9065,"2020-11-09T16:55:59",1,159,76377980,0,0,"22","Признание овердрафта по текущему счету по кредитному договору N229-1/19 от 11/12/2019 с ИП ТИТОВА НИНА ПЕТРОВНА  РБ","","","09/11/2020",""]
{"$rows_empty":7}
["2020-11-10","6","6","","BY58RSHN23206935400170000000",0,5609.79,0,5609.79,"ИП ТИТОВА Н.П.",9065,"2020-11-10T16:57:07",1,230,76400367,0,0,"22","Признание овердрафта по текущему счету по кредитному договору N229-1/19 от 11/12/2019 с ИП ТИТОВА НИНА ПЕТРОВНА  РБ","","","10/11/2020",""]
[]
[]
[]
[]
[]
[]
["2020-11-11","74","6","","BY58RSHN23206935400170000000",0,366.18,0,366.18,"ИП ТИТОВА Н.П.",9065,"2020-11-11T16:54:53",1,75,76419992,0,0,"22","Признание овердрафта по текущему счету по кредитному договору N229-1/19 от 11/12/2019 с ИП ТИТОВА НИНА ПЕТРОВНА  РБ","","","11/11/2020",""]
[]
["2020-11-12","36","6","","BY58RSHN23206935400170000000",0,0.55,0,0.55,"ИП ТИТОВА Н.П.",9065,"2020-11-12T16:59:11",1,205,76444191,0,0,"22","Признание овердрафта по текущему счету по кредитному договору N229-1/19 от 11/12/2019 с ИП ТИТОВА НИНА ПЕТРОВНА  РБ","","","12/11/2020",""]

{"sheet":"обороты счета в долл","index":21,"n_rows":6,"n_cols":27,"rows_kept":6,"hidden":true,"merged":[[5,24,25,26]]}
[{"$nulls":25},"выручка",{"$f":"SUBTOTAL(9,G2:G100000)","v":0}]
[]
[]
[]
[]
[{"$nulls":24},"КАК РАБОТАТЬ С ЭТИМ ФАЙЛОМ: \n1. вытянуть движения по счету за месяц из опердня \n2. Экспортировать их в Эксель\n3. вставить это все сюда, стоя на ячейке А1\n4. В столбце S сделать фильтр по цвету ячейки (без цвета)\n5. перейти в след. Вкладку"]

{"sheet":"обороты счета в евро","index":22,"n_rows":50,"n_cols":27,"rows_kept":50,"hidden":true,"merged":[[5,24,25,26]]}
[{"$nulls":25},"выручка",{"$f":"SUBTOTAL(9,G2:G100000)","v":0}]
[]
[]
[]
[]
[{"$nulls":24},{"$f":"'обороты счета в долл'!Y6:AA26","v":"КАК РАБОТАТЬ С ЭТИМ ФАЙЛОМ: \n1. вытянуть движения по счету за месяц из опердня \n2. Экспортировать их в Эксель\n3. вставить это все сюда, стоя на ячейке А1\n4. В столбце S сделать фильтр по цвету ячейки (без цвета)\n5. перейти в след. Вкладку"}]
{"$rows_empty":9}
["2020-11-04","12","6","","BY58RSHN23206935400170000000",0,488.68,0,488.68,"ИП ТИТОВА Н.П.",9065,"2020-11-04T16:58:49",1,198,76320802,0,0,"22","Признание овердрафта по текущему счету по кредитному договору N229-1/19 от 11/12/2019 с ИП ТИТОВА НИНА ПЕТРОВНА  РБ","","","04/11/2020",""]
{"$rows_empty":15}
["2020-11-09","317","1","AKBBBY2X","BY98AKBB30120655722927000000",2446.8,0,2446.8,0,"ООО \"БЕЛПОШИВ\"",1000,"2020-11-09T14:00:11",1,23,76374258,-2446.8,-2446.8,"22","ВОЗВРАТ ОШИБОЧНО ПЕРЕЧИСЛЕННЫХ СРЕДСТВ ПО ПП280 ОТ 02.11.2020 Г. СОГЛАСНО ПИСЬМУ С ПРОСЬБОЙ О ВОЗВРАТЕ ДЕН СРЕДСТВ 154 ОТ 05.11.2020 Г.","791128677","790817682","09/11/2020",""]
["2020-11-09","23","6","","BY58RSHN23206935400170000000",0,2446.8,0,2446.8,"ИП ТИТОВА Н.П.",9065,"2020-11-09T16:55:59",1,159,76377980,0,0,"22","Признание овердрафта по текущему счету по кредитному договору N229-1/19 от 11/12/2019 с ИП ТИТОВА НИНА ПЕТРОВНА  РБ","","","09/11/2020",""]
{"$rows_empty":7}
["2020-11-10","6","6","","BY58RSHN23206935400170000000",0,5609.79,0,5609.79,"ИП ТИТОВА Н.П.",9065,"2020-11-10T16:57:07",1,230,76400367,0,0,"22","Признание овердрафта по текущему счету по кредитному договору N229-1/19 от 11/12/2019 с ИП ТИТОВА НИНА ПЕТРОВНА  РБ","","","10/11/2020",""]
[]
[]
[]
[]
[]
[]
["2020-11-11","74","6","","BY58RSHN23206935400170000000",0,366.18,0,366.18,"ИП ТИТОВА Н.П.",9065,"2020-11-11T16:54:53",1,75,76419992,0,0,"22","Признание овердрафта по текущему счету по кредитному договору N229-1/19 от 11/12/2019 с ИП ТИТОВА НИНА ПЕТРОВНА  РБ","","","11/11/2020",""]
[]
["2020-11-12","36","6","","BY58RSHN23206935400170000000",0,0.55,0,0.55,"ИП ТИТОВА Н.П.",9065,"2020-11-12T16:59:11",1,205,76444191,0,0,"22","Признание овердрафта по текущему счету по кредитному договору N229-1/19 от 11/12/2019 с ИП ТИТОВА НИНА ПЕТРОВНА  РБ","","","12/11/2020",""]

{"sheet":"обороты счета в росс","index":23,"n_rows":50,"n_cols":27,"rows_kept":50,"hidden":true,"merged":[[5,24,25,26]]}
[{"$nulls":25},"выручка",{"$f":"SUBTOTAL(9,G2:G100000)","v":0}]
[]
[]
[]
[]
[{"$nulls":24},"КАК РАБОТАТЬ С ЭТИМ ФАЙЛОМ: \n1. вытянуть движения по счету за месяц из опердня \n2. Экспортировать их в Эксель\n3. вставить это все сюда, стоя на ячейке А1\n4. В столбце S сделать фильтр по цвету ячейки (без цвета)\n5. перейти в след. Вкладку"]
{"$rows_empty":9}
["2020-11-04","12","6","","BY58RSHN23206935400170000000",0,488.68,0,488.68,"ИП ТИТОВА Н.П.",9065,"2020-11-04T16:58:49",1,198,76320802,0,0,"22","Признание овердрафта по текущему счету по кредитному договору N229-1/19 от 11/12/2019 с ИП ТИТОВА НИНА ПЕТРОВНА  РБ","","","04/11/2020",""]
{"$rows_empty":15}
["2020-11-09","317","1","AKBBBY2X","BY98AKBB30120655722927000000",2446.8,0,2446.8,0,"ООО \"БЕЛПОШИВ\"",1000,"2020-11-09T14:00:11",1,23,76374258,-2446.8,-2446.8,"22","ВОЗВРАТ ОШИБОЧНО ПЕРЕЧИСЛЕННЫХ СРЕДСТВ ПО ПП280 ОТ 02.11.2020 Г. СОГЛАСНО ПИСЬМУ С ПРОСЬБОЙ О ВОЗВРАТЕ ДЕН СРЕДСТВ 154 ОТ 05.11.2020 Г.","791128677","790817682","09/11/2020",""]
["2020-11-09","23","6","","BY58RSHN23206935400170000000",0,2446.8,0,2446.8,"ИП ТИТОВА Н.П.",9065,"2020-11-09T16:55:59",1,159,76377980,0,0,"22","Признание овердрафта по текущему счету по кредитному договору N229-1/19 от 11/12/2019 с ИП ТИТОВА НИНА ПЕТРОВНА  РБ","","","09/11/2020",""]
{"$rows_empty":7}
["2020-11-10","6","6","","BY58RSHN23206935400170000000",0,5609.79,0,5609.79,"ИП ТИТОВА Н.П.",9065,"2020-11-10T16:57:07",1,230,76400367,0,0,"22","Признание овердрафта по текущему счету по кредитному договору N229-1/19 от 11/12/2019 с ИП ТИТОВА НИНА ПЕТРОВНА  РБ","","","10/11/2020",""]
[]
[]
[]
[]
[]
[]
["2020-11-11","74","6","","BY58RSHN23206935400170000000",0,366.18,0,366.18,"ИП ТИТОВА Н.П.",9065,"2020-11-11T16:54:53",1,75,76419992,0,0,"22","Признание овердрафта по текущему счету по кредитному договору N229-1/19 от 11/12/2019 с ИП ТИТОВА НИНА ПЕТРОВНА  РБ","","","11/11/2020",""]
[]
["2020-11-12","36","6","","BY58RSHN23206935400170000000",0,0.55,0,0.55,"ИП ТИТОВА Н.П.",9065,"2020-11-12T16:59:11",1,205,76444191,0,0,"22","Признание овердрафта по текущему счету по кредитному договору N229-1/19 от 11/12/2019 с ИП ТИТОВА НИНА ПЕТРОВНА  РБ","","","12/11/2020",""]

{"sheet":"закл о мониторинге","index":24,"n_rows":26,"n_cols":7,"rows_kept":26,"hidden":true,"merged":[[0,0,0,6],[1,0,1,6],[6,2,6,3],[8,0,8,4],[10,0,10,4],[11,0,11,4],[12,0,12,4],[13,0,13,4],[14,0,14,4],[15,0,15,4],[17,5,17,6],[22,0,22,2]]}
["Мониторинг поступлений выручки на текущие (расчетные) счета"]
[{"$f":"[12]рабочий!D14","v":0}]
[]
[{"$nulls":6},{"$f":"TODAY()","v":"2021-05-26"}]
[{"$f":"CONCATENATE(\"Курсы валют к BYN на \",TEXT(\"01\"&\".\"&MONTH(G4)-1&\".\"&YEAR(G4),\"ДД.ММ.ГГГГ\"))","v":"Курсы валют к BYN на 01.4.2021"},"1 USD =",null,"1 EUR = ",null,"1 RUB = "]
[]
["Месяц мониторинга:",null,{"$f":"G4-30","v":"2021-04-26"}]
[]
["Необходимый ежемесячный объем выручки, необходимый для перечисления на текущие (расчетные) счета в Банке:",{"$nulls":4},{"$f":"заключение!#REF!","v":{"$error":"#REF!"}},{"$f":"заключение!#REF!","v":{"$error":"#REF!"}}]
[]
["Фактический объем поступлений выручки на текущие (расчетные) счета в Банке:"]
["текущий счет в белорусских рублях:",{"$nulls":4},{"$f":"IF($G$9=\"белорусских рублей\",'обороты счета в бел'!AA1,IF($G$9=\"долларов США\",('обороты счета в бел'!AA1/$C$5,IF($G$9=\"евро\",('обороты счета в бел'!AA1/$E$5)))))","v":{"$error":"#REF!"}},{"$f":"G9","v":{"$error":"#REF!"}}]
["текущий счет в долларах США:",{"$nulls":4},{"$f":"IF($G$9=\"белорусских рублей\",'обороты счета в долл'!AA1*C5,IF($G$9=\"долларов США\",('обороты счета в долл'!AA1,IF($G$9=\"евро\",('обороты счета в долл'!AA1*C5/E5)))))","v":{"$error":"#REF!"}},{"$f":"G9","v":{"$error":"#REF!"}}]
["текущий счет в евро:",{"$nulls":4},{"$f":"IF($G$9=\"белорусских рублей\",'обороты счета в евро'!AA1*E5,IF($G$9=\"долларов США\",('обороты счета в евро'!AA1*E5/C5,IF($G$9=\"евро\",('обороты счета в евро'!AA1)))))","v":{"$error":"#REF!"}},{"$f":"G9","v":{"$error":"#REF!"}}]
["текущий счет в российских рублях:",{"$nulls":4},{"$f":"IF($G$9=\"белорусских рублей\",'обороты счета в росс'!AA1*G5,IF($G$9=\"долларов США\",('обороты счета в росс'!AA1*G5/C5,IF($G$9=\"евро\",('обороты счета в росс'!AA1*G5/E5)))))","v":{"$error":"#REF!"}},{"$f":"G9","v":{"$error":"#REF!"}}]
["Итого поступлений выручки:",{"$nulls":4},{"$f":"SUM(F12:F15)","v":{"$error":"#REF!"}},{"$f":"G9","v":{"$error":"#REF!"}}]
[]
["Вывод о достаточности поступлений за отчетный месяц:",{"$nulls":4},{"$f":"IF(F16>F9,\"поступлений достаточно\",\"поступлений не достаточно\")","v":{"$error":"#REF!"}}]
[]
[{"$f":"IF(F18=\"поступлений не достаточно\",\"Штрафные санкции Клиента у уплате:\",\" \")","v":{"$error":"#REF!"}},{"$nulls":3},{"$f":"IF(F18=\"поступлений не достаточно\",-(F16-F9)*0.01,\" \")","v":{"$error":"#REF!"}},{"$f":"IF(F18=\"поступлений не достаточно\",G9,\" \")","v":{"$error":"#REF!"}}]
[{"$f":"IF(F18=\"поступлений не достаточно\",\"Лимит овердрафта следует уменьшить до:\",\" \")","v":{"$error":"#REF!"}},{"$nulls":3},{"$f":"IF(F18=\"поступлений не достаточно\",F16*0.3,\" \")","v":{"$error":"#REF!"}},{"$f":"F20","v":{"$error":"#REF!"}}]
[]
["Должность сотрудника ОСКО",null,null,"_________________",null,"И.О. Фамилия"]
[]
["Согласовано:"]
["Начальник УККБ",null,null,"_________________",null,"И.О. Фамилия"]